Workbook

Sheet Ident
A1: SOCIETE | E1: SALARIE(E) | R1: JOURS FERIES | S1: =IF(MONTH(DATE(YEAR(U1),2,29))=2,"Année Bissextile","Année non Bissextile") -> Année non Bissextile | U1: 2013 | V1: cadre | W1: 10 | X1: Oui
A2: Raison sociale | B2: calindoudou | E2: Nom | R2: 2015-01-01 | S2: Jour de l'an | T2: =WEEKDAY(R2,2) -> 4 | U2: =IF(R2<>"",R2,"") -> 2015-01-01 | V2: non cadre | W2: 15 | X2: Non | Y2: http://www.paie.org/
A3: Adresse 1 | E3: Prénom | R3: 2015-04-05 | S3: Dimanche de Pâques | T3: =WEEKDAY(R3,2) -> 7 | U3: =IF(R3<>"",R3,"") -> 2015-04-05 | V3: ouvrier | W3: 20
A4: Adresse 2 | E4: Adresse 1 | R4: =R3+1 -> 2015-04-06 | S4: Lundi de Pâques | T4: 1 | U4: 2015-04-06 | V4: employé | W4: 25
A5: Code postal | E5: Adresse 2 | R5: 2015-05-01 | S5: Fête du travail | T5: 5 | U5: 2015-05-01 | V5: ETAM | W5: 30
A6: Ville | E6: Code Postal | R6: 2015-05-08 | S6: Victoire 1945 | T6: 5 | U6: 2015-05-08 | V6: Cadre dirigeant | W6: 35
A7: Téléphone | E7: Ville | R7: =R3+39 -> 2015-05-14 | S7: Ascension | T7: 4 | U7: 2015-05-14 | V7: dirigeant | W7: CDI
A8: Fax | E8: N° Sécurité Sociale | R8: =R3+50 -> 2015-05-25 | S8: Lundi de Pentecôte | T8: 1 | U8: 2015-05-25 | W8: CDD
A9: + 9 salariés | E9: Qualification | R9: 2015-07-14 | S9: Fête nationale | T9: 2 | U9: 2015-07-14
A10: Siret | E10: Coef | R10: 2015-08-15 | S10: Assomption | T10: 6 | U10: 2015-08-15
A11: APE | E11: Echelon | R11: 2015-11-01 | S11: Toussaint | T11: 7 | U11: 2015-11-01
A12: URSSAF | E12: Indice | R12: 2015-11-11 | S12: Armistice | T12: 3 | U12: 2015-11-11
A13: Convention Collective | E13: Emploi | F13: Resp Administratif & Fin | R13: 2015-12-25 | S13: Noël | T13: 5 | U13: 2015-12-25
A14: CNVD | B14: Ventes à distance sur catalogue spécialisé de produits par internet | E14: Catégorie / Contrat | F14: non cadre | G14: CDI | R14: 2015-12-26 | S14: Saint-Étienne | T14: 6 | U14: 2015-12-26 | V14: AL
E15: Tx Horaire / B Mensuel | F15: 17.33 € | G15: =G16*F15 -> 2,628.44 € | R15: =R3-2 -> 2015-04-03 | S15: Vendredi Saint | T15: 5 | U15: 2015-04-03 | V15: AL
E16: contrat Hebd / mens | F16: 35 heures | G16: =Salaire!B2 -> 151.67
B17: =G15 -> Brut Mensuel : 2,628.44 | C17: =IF(G14="CDI","",G15*G17+(G15*G17*0.1)+(G15*G17*0.1)) ->  | E17: Date d'entrée /durée | F17: 2012-09-01 | G17: 04 mois
B18: =Salaire!N32*Ident!G15 -> Net mensuel : 2,000.95 | C18: =IF(G14="CDI","",C17*Salaire!N32) -> 
B19: =(G15*Salaire!N30)+(Salaire!N31*G15) -> Charges mensuelles : 1,655.01 € | C19: =IF(G14="CDI","",(C17*Salaire!N30)+(Salaire!N31*C17)) -> 
B20: =B19+B18 -> Total à décaisser : 3,655.97 € | C20: =IF(G14="cdi","",C19+C18) -> 

Sheet Salaire
A1: 2015 | B1: 01 | C1: 02 | D1: 03 | E1: 04 | F1: 05 | G1: 06 | H1: 07 | I1: 08 | J1: 09 | K1: 10 | L1: 11 | M1: 12 | Z1: 1
A2: Horaire mensuel | B2: =ROUND(B3*4.3333,2) -> 151.67 | C2: 151.67 | D2: 151.67 | E2: 151.67 | F2: 151.67 | G2: 151.67 | H2: 151.67 | I2: 151.67 | J2: 151.67 | K2: 151.67 | L2: 151.67 | M2: 151.67 | N2: =ROUND(M2/4.3333/5,0) -> 7
A3: Horaire Hebdomadaire | B3: =Ident!$F$16 -> 35 | C3: =Ident!$F$16 -> 35 | D3: =Ident!$F$16 -> 35 | E3: =Ident!$F$16 -> 35 | F3: =Ident!$F$16 -> 35 | G3: =Ident!$F$16 -> 35 | H3: =Ident!$F$16 -> 35 | I3: =Ident!$F$16 -> 35 | J3: =Ident!$F$16 -> 35 | K3: =Ident!$F$16 -> 35 | L3: =Ident!$F$16 -> 35 | M3: =Ident!$F$16 -> 35
A4: Horaire journalier | B4: =B3/5 -> 7 | C4: 7 | D4: 7 | E4: 7 | F4: 7 | G4: 7 | H4: 7 | I4: 7 | J4: 7 | K4: 7 | L4: 7 | M4: 7
A5: Base horaire (en euros) | B5: =Ident!$F$15 -> 17.33 | C5: =Ident!$F$15 -> 17.33 | D5: =Ident!$F$15 -> 17.33 | E5: =Ident!$F$15 -> 17.33 | F5: =Ident!$F$15 -> 17.33 | G5: =Ident!$F$15 -> 17.33 | H5: =Ident!$F$15 -> 17.33 | I5: =Ident!$F$15 -> 17.33 | J5: =Ident!$F$15 -> 17.33 | K5: =Ident!$F$15 -> 17.33 | L5: =Ident!$F$15 -> 17.33 | M5: =Ident!$F$15 -> 17.33
A6: Salaire mensuel | B6: =ROUNDUP(B5*B2,2) -> 2628.45 | C6: =ROUNDUP(C5*C2,2) -> 2628.45 | D6: 2628.45 | E6: 2628.45 | F6: 2628.45 | G6: 2628.45 | H6: 2628.45 | I6: 2628.45 | J6: 2628.45 | K6: 2628.45 | L6: 2628.45 | M6: 2628.45
A8: Mois | B8: JANVIER | C8: FEVRIER | D8: MARS | E8: AVRIL | F8: MAI | G8: JUIN | H8: JUILLET | I8: AOÛT | J8: SEPTEMBRE | K8: OCTOBRE | L8: NOVEMBRE | M8: DÉCEMBRE
A9: Debut du mois | B9: =DATE($A$1,B1,1) -> 2015-01-01 | C9: 2015-02-01 | D9: 2015-03-01 | E9: 2015-04-01 | F9: 2015-05-01 | G9: 2015-06-01 | H9: 2015-07-01 | I9: 2015-08-01 | J9: 2015-09-01 | K9: 2015-10-01 | L9: 2015-11-01 | M9: 2015-12-01
A10: Fin du mois | B10: =EOMONTH(B9,0) -> 2015-01-31 | C10: =EOMONTH(C9,0) -> 2015-02-28 | D10: 2015-03-31 | E10: 2015-04-30 | F10: 2015-05-31 | G10: 2015-06-30 | H10: 2015-07-31 | I10: 2015-08-31 | J10: 2015-09-30 | K10: 2015-10-31 | L10: 2015-11-30 | M10: 2015-12-31
A11: Jours ouvrés | B11: =NETWORKDAYS(B9,B10,Ident!$R$2:$R$13) -> 21 | C11: =NETWORKDAYS(C9,C10,Ident!$R$2:$R$13) -> 20 | D11: =NETWORKDAYS(D9,D10,Ident!$R$2:$R$13) -> 22 | E11: =NETWORKDAYS(E9,E10,Ident!$R$2:$R$13) -> 21 | F11: =NETWORKDAYS(F9,F10,Ident!$R$2:$R$13) -> 17 | G11: =NETWORKDAYS(G9,G10,Ident!$R$2:$R$13) -> 22 | H11: =NETWORKDAYS(H9,H10,Ident!$R$2:$R$13) -> 22 | I11: =NETWORKDAYS(I9,I10,Ident!$R$2:$R$13) -> 21 | J11: =NETWORKDAYS(J9,J10,Ident!$R$2:$R$13) -> 22 | K11: =NETWORKDAYS(K9,K10,Ident!$R$2:$R$13) -> 22 | L11: =NETWORKDAYS(L9,L10,Ident!$R$2:$R$13) -> 20 | M11: =NETWORKDAYS(M9,M10,Ident!$R$2:$R$13) -> 22
A13: Primes, avantages | M13: 3,000.00 €
A14: Abs/Ind congés payés
A15: Heures supplémentaires 25%
A16: Abs/Ind Maladie 100%
A17: RTT pris
A20: Temps de travail effectif | B20: =+B11 -> 21 jr(s) | C20: 20 jr(s) | D20: 22 jr(s) | E20: 21 jr(s) | F20: 17 jr(s) | G20: 22 jr(s) | H20: 22 jr(s) | I20: 21 jr(s) | J20: 22 jr(s) | K20: 22 jr(s) | L20: 20 jr(s) | M20: 22 jr(s)
A21: Total absences | B21: =+B14+B16+B17 -> 0 jr(s) | C21: =+C14+C16+C17 -> 0 jr(s) | D21: 0 jr(s) | E21: 0 jr(s) | F21: 0 jr(s) | G21: 0 jr(s) | H21: 0 jr(s) | I21: 0 jr(s) | J21: 0 jr(s) | K21: 0 jr(s) | L21: 0 jr(s) | M21: 0 jr(s)
A22: RTT acquis | B22: =1/B11*(B11-B16) -> 1.00 jr(s) | C22: 1.00 jr(s) | D22: 1.00 jr(s) | E22: 1.00 jr(s) | F22: 1.00 jr(s) | G22: 1.00 jr(s) | H22: 1.00 jr(s) | I22: 1.00 jr(s) | J22: 1.00 jr(s) | K22: 1.00 jr(s) | L22: 1.00 jr(s) | M22: 1.00 jr(s)
A23: Solde CP A-1 | B23: 11.00 jr(s) | G23: =+F25 -> 21.42 jr(s) | H23: =IF(H14>0,G23-G14,0) -> 0.00 jr(s) | I23: 0.00 jr(s) | J23: 0.00 jr(s) | K23: 0.00 jr(s) | L23: 0.00 jr(s) | M23: 0.00 jr(s)
A24: CP Acquis | B24: =$B$27 -> 2.08 jr(s) | C24: 2.08 jr(s) | D24: 2.08 jr(s) | E24: 2.08 jr(s) | F24: 2.08 jr(s) | G24: 2.08 jr(s) | H24: 2.08 jr(s) | I24: 2.08 jr(s) | J24: 2.08 jr(s) | K24: 2.08 jr(s) | L24: 2.08 jr(s) | M24: 2.08 jr(s)
A25: Solde CP | B25: =+B23+B24-B14 -> 13.08 jr(s) | C25: =+B25+C24-C14 -> 15.17 jr(s) | D25: =+C25+D24-D14 -> 17.25 jr(s) | E25: =+D25+E24-E14 -> 19.33 jr(s) | F25: =+E25+F24-F14 -> 21.42 jr(s) | G25: =+G24-G14+G23 -> 23.50 jr(s) | H25: =+G25+H24-H14 -> 25.58 jr(s) | I25: 27.67 jr(s) | J25: 29.75 jr(s) | K25: 31.83 jr(s) | L25: 33.92 jr(s) | M25: 36.00 jr(s)
A26: Solde RTT | B26: =+B22 -> 1.00 jr(s) | C26: =+B26+C22-C17 -> 2.00 jr(s) | D26: 3.00 jr(s) | E26: 4.00 jr(s) | F26: 5.00 jr(s) | G26: 6.00 jr(s) | H26: 7.00 jr(s) | I26: 8.00 jr(s) | J26: 9.00 jr(s) | K26: 10.00 jr(s) | L26: 11.00 jr(s) | M26: 12.00 jr(s)
A27: Base CP (25 jours par an) | B27: 2.08 jr(s)
A29: total SB | B29: =jan!H20 -> 2,628.44 | C29: =fév!H20 -> 2,628.44 | D29: =mar!H20 -> 2,628.44 | E29: =avr!H20 -> 2,628.44 | F29: =mai!H20 -> 2,628.44 | G29: =jun!H20 -> 2,628.44 | H29: =jui!H20 -> 2,628.44 | I29: =aoû!H20 -> 2,628.44 | J29: =sep!H20 -> 2,628.44 | K29: =oct!H20 -> 2,628.44 | L29: =nov!H20 -> 2,628.44 | M29: =[1]déc!H20 -> 2,628.44 | N29: x
A30: Total Cotisations salariales | B30: =jan!I50 -> 627.49 | C30: =fév!I50 -> 627.49 | D30: =mar!I50 -> 627.49 | E30: =avr!I50 -> 627.49 | F30: =mai!I50 -> 627.49 | G30: =jun!I50 -> 627.49 | H30: =jui!I50 -> 627.49 | I30: =aoû!I50 -> 627.49 | J30: =sep!I50 -> 627.49 | K30: =oct!I50 -> 627.49 | L30: =nov!I50 -> 627.49 | M30: =[1]déc!I50 -> 627.49 | N30: =B30/B29 -> 23.87%
A31: Total Cotisations patronales | B31: =jan!K50 -> 1,027.53 | C31: =fév!K50 -> 1,027.53 | D31: =mar!K50 -> 1,027.53 | E31: =avr!K50 -> 1,027.53 | F31: =mai!K50 -> 1,027.53 | G31: =jun!K50 -> 1,027.53 | H31: =jui!K50 -> 1,027.53 | I31: =aoû!K50 -> 1,027.53 | J31: =sep!K50 -> 1,027.53 | K31: =oct!K50 -> 1,027.53 | L31: =nov!K50 -> 1,027.53 | M31: =[1]déc!K50 -> 1,027.53 | N31: =B31/B29 -> 39.09%
A32: Net à Payer | B32: =B29-B30 -> 2,000.95 | C32: 2,000.95 | D32: 2,000.95 | E32: 2,000.95 | F32: 2,000.95 | G32: 2,000.95 | H32: 2,000.95 | I32: 2,000.95 | J32: 2,000.95 | K32: 2,000.95 | L32: 2,000.95 | M32: 2,000.95 | N32: =B32/B29 -> 76.13%
A33: cumul net à payer | B33: =B32 -> 2,000.95 | C33: =B33+C32 -> 4,001.91 | D33: 6,002.86 | E33: 8,003.81 | F33: 10,004.77 | G33: 12,005.72 | H33: 14,006.67 | I33: 16,007.63 | J33: 18,008.58 | K33: 20,009.53 | L33: 22,010.49 | M33: 24,011.44 | N33: x
A34: Net imposable | B34: =jan!D55 -> 2,062.93 | C34: =fév!D55 -> 2,062.93 | D34: =mar!D55 -> 2,062.93 | E34: =avr!D55 -> 2,062.93 | F34: =mai!D55 -> 2,062.93 | G34: =jun!D55 -> 2,062.93 | H34: =jui!D55 -> 2,062.93 | I34: =aoû!D55 -> 2,062.93 | J34: =sep!D55 -> 2,062.93 | K34: =oct!D55 -> 2,062.93 | L34: =nov!D55 -> 2,062.93 | M34: =[1]déc!D55 -> 2,062.93 | N34: x
A35: cumul net imposable | B35: =B34 -> 2,062.93 | C35: =B35+C34 -> 4,125.86 | D35: 6,188.80 | E35: 8,251.73 | F35: 10,314.66 | G35: 12,377.59 | H35: 14,440.52 | I35: 16,503.46 | J35: 18,566.39 | K35: 20,629.32 | L35: 22,692.25 | M35: 24,755.18 | N35: x

Sheet Taux
B1: 2015-01-01
B2: Mois | D2: 3,170.00 € | F2: =D2*4 -> 12,680.00 € | H2: Oui | I2: Plafond S.S. | J2: 2010
B3: SMIC horaire | C3: SMIC An | D3: SMIC 35h | E3: SMIC 39h | F3: SMIC 39h (2) | H3: Non | I3: Total SB | J3: 2011
B4: 9.61 € | C4: =D4*12 -> 17,491.44 € | D4: 1,457.62 € | E4: 1,640.70 € | F4: 1,665.65 € | I4: Différence SS/SB | J4: 2012
B5: 2015-01-01 | I5: TR | J5: 2013 | K5: Calcul Réduction Fillon
B6: CSG CRDS | D6: Base | E6: Taux salarial | F6: Taux patronal | J6: 2014 | K6: (T/0,6) x ([1,6 x (smic annuel/salaire annuel brut)] -1)
A7: CSG1 | B7: CSG non déductible | C7: 98.25 | D7: 98.25% | E7: 2.400% | J7: 2015 | K7: T = 0,2795 pour les entreprises de moins de 20 salariés
A8: CSG2 | B8: CSG déductible | C8: 98.25 | D8: 98.25% | E8: 5.100% | J8: 2016 | K8: T = 0,2835 pour les entreprises de 20 salariés et plus
A9: CSG3 | B9: CRDS | C9: 98.25 | D9: 98.25% | E9: 0.500% | J9: 2017 | K9: !!! Ne pas oublier la régul soit mensuel , soit annuel !!!
B10: Sécurité sociale | J10: 2018
A11: SS1 | B11: Maladie, Maternité , Veuvage | C11: totalite | D11: Totalité du salaire | E11: 0.750% | F11: 12.800% | J11: 2019
A12: SS2 | B12: Vieillesse Déplafonnée | C12: totalite | D12: Totalité du salaire | E12: 0.300% | F12: 1.800% | J12: 2020
A13: SS3 | B13: Vieillesse Plafonnée | C13: =$D$2 -> 3,170.00 € | D13: de 0 à 3 170 | E13: 6.850% | F13: 8.500%
A14: SS4 | B14: Allocations Familiales | C14: totalite | D14: Totalité du salaire | F14: 5.250%
A15: SS5 | B15: FNAL (tous employeurs) | C15: =$D$2 -> 3,170.00 € | D15: de 0 à 3 170 € | F15: 0.100%
A16: SS6 | B16: FNAL supplémentaire TA | C16: =$D$2 -> 3,170.00 € | D16: de 0 à 3 170 € | F16: 0.400%
A17: SS7 | B17: FNAL supplémentaire 20+ | C17: =$F$2 -> 12,680.00 € | D17: au-delà de 3 170 € | F17: 0.500%
A18: SS8 | B18: Contribution solidarité | C18: totalite | D18: Totalité du salaire | F18: 0.300%
A19: SS9 | B19: Calcul IJSS | C19: x | D19: =D4*1.8 -> 2,623.72 €
A20: SS10 | B20: Taxe 8% Prévoyance | D20: forfait social | F20: 8.000% | G20: fofait social
A21: SS11 | B21: Accidents du Travail | C21: totalite | D21: Totalité du salaire | F21: 1.880%
A22: LF1 | B22: Loi Fillon | C22: totalite | F22: =(0.2795/0.6)*(1.6*(C4/(Ident!G15*12))-1) -> -5.250%
A23: SS12 | B23: Versement de transport | C23: totalite | D23: Totalité du salaire | F23: 1.600% | G23: >9 salariés
B24: Pôle Emploi (Assurance chômage)
A25: PE1 | B25: Assurance chômage TA + TB | C25: totalite | D25: de 0 à 12 680 € | E25: 2.400% | F25: 4.000%
A26: PE2 | B26: AGS (FNGS) | C26: totalite | D26: de 0 à 12 680 € | F26: 0.300%
B27: Retraite complémentaire Non Cadre
A28: NC1 | B28: ARRCO Tranche 1 (Non Cadre) | C28: =$D$2 -> 3,170.00 € | D28: de 0 à 3 170 € | E28: 3.100% | F28: 4.650%
A29: NC2 | B29: AGFF Tranche 1 (Non Cadre) | C29: =$D$2 -> 3,170.00 € | D29: de 0 à 3 170 € | E29: 0.800% | F29: 1.200%
A30: NC3 | B30: ARRCO Tranche 2 (Non Cadre) | C30: =$F$2 -> 12,680.00 € | D30: de 3170 € à 12680 € | E30: 8.100% | F30: 12.150%
A31: NC4 | B31: AGFF Tranche 2 (Non Cadre) | C31: =$F$2 -> 12,680.00 € | D31: de 3170 € à 12680 € | E31: 0.900% | F31: 1.300%
B34: Cadre
A35: CAD1 | B35: ARRCO Tranche A (Cadres) | C35: =$D$2 -> 3,170.00 € | D35: de 0 à 3 170 € | E35: 3.100% | F35: 4.650%
A36: CAD2 | B36: AGFF Tranche A (Cadres) | C36: =$D$2 -> 3,170.00 € | D36: de 0 à 3 170 € | E36: 0.800% | F36: 1.200%
A37: CAD3 | B37: AGIRC Tranche B (Cadres) | C37: =$F$2 -> 12,680.00 € | D37: de 3170 € à 12680 € | E37: 7.800% | F37: 12.750%
A38: CAD4 | B38: AGFF Tranche B (Cadres) | C38: =$F$2 -> 12,680.00 € | D38: de 3170 € à 12680 € | E38: 0.900% | F38: 1.300%
A39: CAD5 | B39: GMP (Tanche B minimale) | C39: 323.33 | D39: 323.33 € | E39: 7.700% | F39: 12.600%
A40: CAD6 | B40: APEC | C40: totalite | D40: de 0 à 12680 € | E40: 0.024% | F40: 0.036%
A41: CAD7 | B41: CET | C41: totalite | D41: de 0 à 25 360 € | E41: 0.130% | F41: 0.220%
B45: Prévoyance complémentaire
A46: PR1 | B46: Mutuelle non cadre | C46: x | D46: Selon contrat | E46: 1.813% | F46: 1.483%
A47: PR2 | B47: Assurance décès cadres | C47: =$D$2 -> 3,170.00 € | D47: de 0 à 3 170 € | F47: 1.500%
B49: Autres cotisations
B50: Participation construction (+ de 20 sal.) | C50: totalite | D50: Totalité du salaire | F50: 0.450%
A51: TA1 | B51: Taxe d’apprentissage (hors Al-Mo) | C51: totalite | D51: Totalité du salaire | F51: 0.680%
B52: Taxe d’apprentissage (Alsace-Moselle) | C52: totalite | D52: Totalité du salaire | F52: 0.440%
B53: Contribution additionnelle au développement de l’apprentissage | C53: totalite | D53: Totalité du salaire | F53: 0.180%
B54: Contribution supplémentaire à la taxe d’apprentissage (hors Alsace-Moselle) | C54: totalite | D54: Totalité du salaire
A55: PF1 | B55: Participation formation (10 sal.) | C55: totalite | D55: Totalité du salaire | F55: 1.000%
B56: Participation formation (+ de 10 sal.) | C56: totalite | D56: Totalité du salaire | F56: 0.550%
B57: Rubriques complémentaires dernières lignes | F57: Base
B58: =#REF! -> 
A59: TT | B59: Total des cotisations

Sheet jan
A2: =Ident!B2 -> calindoudou | J2: ="BULLETIN DE PAIE " -> BULLETIN DE PAIE
A3: =Ident!B3 -> 0 | G3: 2015-01-01 | J3: =EOMONTH(G3,0) -> 2015-01-31
A4: =Ident!B4 -> 00000
A5: =Ident!B5 &" " & Ident!B6 ->  | G5: =+"SIRET: " &Ident!B10 & " APE : " &Ident!B11 -> SIRET: APE :
G6: ="URSSAF :" & Ident!B12 -> URSSAF :
A8: Numéro S.S : | C8: =Ident!F8 -> 0 | G8: =CONCATENATE(Ident!F2," ",Ident!F3) -> 
A9: Emploi : | C9: =Ident!F13 -> Resp Administratif & Fin | G9: =Ident!F4 -> 0
A10: Anc : | C10: =(J3-Ident!F17)/360 -> 2 an(s).5 mois | G10: =Ident!F5 -> 0
A11: Cat : | C11: =Ident!F14 -> non cadre | G11: =CONCATENATE(Ident!F6," ",(Ident!F7)) -> 
A12: Qualité : | C12: =Ident!F9 -> 0
A13: Coef : | C13: =Ident!F10 -> 0 | G13: ="Congés " & Salaire!A1-1 & "-" & Salaire!A1 -> Congés 2014-2015 | I13: CP A-1 | J13: ="Rtt " & Salaire!A1 -> Rtt 2015
A14: Echelon : | C14: =Ident!F11 -> 0 | G14: Pris | H14: =HLOOKUP($G$3,Salaire!$B$9:$M$26,6,) -> 0.00 jr(s) | J14: Pris | K14: =HLOOKUP($G$3,Salaire!$B$9:$M$26,9,) -> 0.00
A15: =CONCATENATE(Ident!A13," ",Ident!B14) -> Convention Collective Ventes à distance sur catalogue spécialisé de produits par internet | G15: Restant | H15: =HLOOKUP($G$3,Salaire!$B$9:$M$26,17,) -> 13.08 jr(s) | I15: =HLOOKUP($G$3,Salaire!$B$9:$M$26,15,) -> 11.00 jr(s) | J15: Restant | K15: =HLOOKUP($G$3,Salaire!$B$9:$M$26,18,) -> 1.00
G16: Acquis | H16: =HLOOKUP($G$3,Salaire!$B$9:$M$26,16,) -> 2.08 jr(s) | J16: Acquis | K16: =HLOOKUP($G$3,Salaire!$B$9:$M$26,14,) -> 1.00
B18: Rub. | C18: Intitulé | D18: Nombre | F18: Base | G18: Part Salariale | J18: Part Patronale
G19: Taux | H19: Gain | I19: Retenue | J19: Taux | K19: Retenue
C20: Salaire Brut | F20: =Ident!G16 -> 151.67 | G20: =Salaire!B5 -> 17.33 | H20: =G20*F20 -> 2,628.44
C21: =IF(ISBLANK(Salaire!B13)=TRUE,"",Salaire!A13) ->  | D21: =IF(ISNA(VLOOKUP($C21,Salaire!$A$13:$M$19,2,FALSE))=TRUE,"",VLOOKUP($C21,Salaire!$A$13:$M$19,2,FALSE)) ->  | H21: =IF(D21>0,D21," ") -> 
C22: =IF(ISBLANK(Salaire!B14)=TRUE,"",Salaire!A14) ->  | D22: =IF(ISNA(VLOOKUP($C22,Salaire!$A$13:$M$19,2,FALSE))=TRUE,"",VLOOKUP($C22,Salaire!$A$13:$M$19,2,FALSE)) -> 
C23: =IF(ISBLANK(Salaire!B15)=TRUE,"",Salaire!A15) ->  | D23: =IF(ISNA(VLOOKUP($C23,Salaire!$A$13:$M$19,2,FALSE))=TRUE,"",VLOOKUP($C23,Salaire!$A$13:$M$19,2,FALSE)) ->  | G23: =IF(D23=""," ",(G20+G20*Salaire!A15/100)) ->  | H23: =IF(ISNA(VLOOKUP($C23,Salaire!$A$13:$M$19,2,FALSE))=TRUE,"",IF(OR($C23="Abs/Ind congés payés",$C23="Abs/Ind Maladie 100%")=TRUE,,IF($C23="Primes, avantages",D23,(D23*E23)+((D23*G23))))) -> 
C24: =IF(ISBLANK(Salaire!B16)=TRUE,"",Salaire!A16) ->  | D24: =IF(ISNA(VLOOKUP($C24,Salaire!$A$13:$M$19,2,FALSE))=TRUE,"",VLOOKUP($C24,Salaire!$A$13:$M$19,2,FALSE)) ->  | G24: =IF(D24=""," ",G20*Salaire!B4) ->  | I24: =IF(ISNA(VLOOKUP($C24,Salaire!$A$13:$M$19,2,FALSE))=TRUE,"",IF(OR($C24="Abs/Ind congés payés",$C24="Abs/Ind Maladie 100%")=FALSE,,IF($C24="Primes, avantages",D24,D24*G24))) -> 
C25: Total brut Mensuel | H25: =SUM(H20:H24)-SUM(I21:I24) -> 2,628.44
B27: SS1 | C27: =VLOOKUP(B27,[1]Taux!$A$1:$F$58,2,) -> Maladie, Maternité , Veuvage | E27: =IF(VLOOKUP(C27,[1]Taux!$B$2:$F$58,2,)=98.25,$H$25*0.9825,IF(VLOOKUP(C27,[1]Taux!$B$2:$F$58,2,)<=PSS,$H$25,(VLOOKUP(C27,[1]Taux!$B$2:$F$58,2,)))) -> totalite | F27: =IF(E27=" ","",IF(E27="totalite",$H$25,IF(E27<PSS,E27,IF($H$25<=PSS,$H$25,IF(AND($H$25>PSS,E27=_PSS4),$H$25-PSS,PSS))))) -> 2,628.44 | G27: =VLOOKUP(B27,[1]Taux!$A$1:$F$58,5,) -> 0.750% | I27: =IF(G27=" "," ",F27*G27) -> 19.71 | J27: =VLOOKUP(B27,[1]Taux!$A$1:$F$58,6,) -> 12.800% | K27: =IF(J27=" "," ",F27*J27) -> 336.44
B28: ss4 | C28: =VLOOKUP(B28,[1]Taux!$A$1:$F$58,2,) -> Allocations Familiales | E28: =IF(VLOOKUP(C28,[1]Taux!$B$2:$F$58,2,)=98.25,$H$25*0.9825,IF(VLOOKUP(C28,[1]Taux!$B$2:$F$58,2,)<=PSS,$H$25,(VLOOKUP(C28,[1]Taux!$B$2:$F$58,2,)))) -> totalite | F28: 2,628.44 | G28: =VLOOKUP(B28,[1]Taux!$A$1:$F$58,5,) ->  | I28: =IF(G28=" "," ",F28*G28) ->  | J28: =VLOOKUP(B28,[1]Taux!$A$1:$F$58,6,) -> 5.250% | K28: 137.99
B29: SS2 | C29: =VLOOKUP(B29,[1]Taux!$A$1:$F$58,2,) -> Vieillesse Déplafonnée | E29: =IF(VLOOKUP(C29,[1]Taux!$B$2:$F$58,2,)=98.25,$H$25*0.9825,IF(VLOOKUP(C29,[1]Taux!$B$2:$F$58,2,)<=PSS,$H$25,(VLOOKUP(C29,[1]Taux!$B$2:$F$58,2,)))) -> totalite | F29: 2,628.44 | G29: =VLOOKUP(B29,[1]Taux!$A$1:$F$58,5,) -> 0.300% | I29: 7.89 | J29: =VLOOKUP(B29,[1]Taux!$A$1:$F$58,6,) -> 1.800% | K29: 47.31
B30: SS3 | C30: =VLOOKUP(B30,[1]Taux!$A$1:$F$58,2,) -> Vieillesse Plafonnée | E30: =IF(VLOOKUP(C30,[1]Taux!$B$2:$F$58,2,)=98.25,$H$25*0.9825,VLOOKUP(C30,[1]Taux!$B$2:$F$58,2,)) -> 3,170.00 | F30: 2,628.44 | G30: =VLOOKUP(B30,[1]Taux!$A$1:$F$58,5,) -> 6.850% | I30: 180.05 | J30: =VLOOKUP(B30,[1]Taux!$A$1:$F$58,6,) -> 8.500% | K30: 223.42
B31: SS5 | C31: =VLOOKUP(B31,[1]Taux!$A$1:$F$58,2,) -> FNAL (tous employeurs) | E31: =IF(VLOOKUP(C31,[1]Taux!$B$2:$F$58,2,)=98.25,$H$25*0.9825,VLOOKUP(C31,[1]Taux!$B$2:$F$58,2,)) -> 3,170.00 | F31: 2,628.44 | G31: =VLOOKUP(B31,[1]Taux!$A$1:$F$58,5,) ->  | J31: =VLOOKUP(B31,[1]Taux!$A$1:$F$58,6,) -> 0.100% | K31: 2.63
B32: SS6 | C32: =VLOOKUP(B32,[1]Taux!$A$1:$F$58,2,) -> FNAL supplémentaire TA | E32: =IF(VLOOKUP(C32,[1]Taux!$B$2:$F$58,2,)=98.25,$H$25*0.9825,VLOOKUP(C32,[1]Taux!$B$2:$F$58,2,)) -> 3,170.00 | F32: 2,628.44 | G32: =VLOOKUP(B32,[1]Taux!$A$1:$F$58,5,) ->  | J32: =VLOOKUP(B32,[1]Taux!$A$1:$F$58,6,) -> 0.400% | K32: 10.51
B33: SS8 | C33: =VLOOKUP(B33,[1]Taux!$A$1:$F$58,2,) -> Contribution solidarité | E33: =IF(VLOOKUP(C33,[1]Taux!$B$2:$F$58,2,)=98.25,$H$25*0.9825,VLOOKUP(C33,[1]Taux!$B$2:$F$58,2,)) -> totalite | F33: 2,628.44 | G33: =VLOOKUP(B33,[1]Taux!$A$1:$F$58,5,) ->  | J33: =VLOOKUP(B33,[1]Taux!$A$1:$F$58,6,) -> 0.300% | K33: 7.89
B34: ss11 | C34: =VLOOKUP(B34,[1]Taux!$A$1:$F$58,2,) -> Accidents du Travail | E34: =IF(VLOOKUP(C34,[1]Taux!$B$2:$F$58,2,)=98.25,$H$25*0.9825,VLOOKUP(C34,[1]Taux!$B$2:$F$58,2,)) -> totalite | F34: 2,628.44 | G34: =VLOOKUP(B34,[1]Taux!$A$1:$F$58,5,) ->  | J34: =VLOOKUP(B34,[1]Taux!$A$1:$F$58,6,) -> 1.880% | K34: 49.41
B35: LF1 | C35: =VLOOKUP(B35,[1]Taux!$A$1:$F$58,2,) -> Loi Fillon | E35: =IF(VLOOKUP(C35,[1]Taux!$B$2:$F$58,2,)=98.25,$H$25*0.9825,VLOOKUP(C35,[1]Taux!$B$2:$F$58,2,)) -> totalite | F35: 2,628.44 | G35: =VLOOKUP(B35,[1]Taux!$A$1:$F$58,5,) ->  | J35: =VLOOKUP(B35,[1]Taux!$A$1:$F$58,6,) -> -5.250% | K35: -138.00
B36: pe1 | C36: =VLOOKUP(B36,[1]Taux!$A$1:$F$58,2,) -> Assurance chômage TA + TB | E36: =IF(VLOOKUP(C36,[1]Taux!$B$2:$F$58,2,)=98.25,$H$25*0.9825,VLOOKUP(C36,[1]Taux!$B$2:$F$58,2,)) -> totalite | F36: 2,628.44 | G36: =VLOOKUP(B36,[1]Taux!$A$1:$F$58,5,) -> 2.400% | I36: 63.08 | J36: =VLOOKUP(B36,[1]Taux!$A$1:$F$58,6,) -> 4.000% | K36: 105.14
B37: pe2 | C37: =VLOOKUP(B37,[1]Taux!$A$1:$F$58,2,) -> AGS (FNGS) | E37: =IF(VLOOKUP(C37,[1]Taux!$B$2:$F$58,2,)=98.25,$H$25*0.9825,VLOOKUP(C37,[1]Taux!$B$2:$F$58,2,)) -> totalite | F37: 2,628.44 | G37: =VLOOKUP(B37,[1]Taux!$A$1:$F$58,5,) ->  | J37: =VLOOKUP(B37,[1]Taux!$A$1:$F$58,6,) -> 0.300% | K37: 7.89
B38: =IF($C$11="non cadre",[1]Taux!A28,[1]Taux!A35) -> NC1 | C38: =VLOOKUP(B38,[1]Taux!$A$1:$F$58,2,) -> ARRCO Tranche 1 (Non Cadre) | E38: =IF(VLOOKUP(C38,[1]Taux!$B$2:$F$58,2,)=98.25,$H$25*0.9825,VLOOKUP(C38,[1]Taux!$B$2:$F$58,2,)) -> 3,170.00 | F38: 2,628.44 | G38: =VLOOKUP(B38,[1]Taux!$A$1:$F$58,5,) -> 3.100% | I38: 81.48 | J38: =VLOOKUP(B38,[1]Taux!$A$1:$F$58,6,) -> 4.650% | K38: 122.22 | L38: Bulletin de paie établi avec GestionVB_Paie v8.06
B39: =IF($C$11="non cadre",[1]Taux!A29,[1]Taux!A36) -> NC2 | C39: =VLOOKUP(B39,[1]Taux!$A$1:$F$58,2,) -> AGFF Tranche 1 (Non Cadre) | E39: =IF(VLOOKUP(C39,[1]Taux!$B$2:$F$58,2,)=98.25,$H$25*0.9825,VLOOKUP(C39,[1]Taux!$B$2:$F$58,2,)) -> 3,170.00 | F39: 2,628.44 | G39: =VLOOKUP(B39,[1]Taux!$A$1:$F$58,5,) -> 0.800% | I39: 21.03 | J39: =VLOOKUP(B39,[1]Taux!$A$1:$F$58,6,) -> 1.200% | K39: 31.54
B40: =IF(AND($B$39=_NC2,$H$25>PSS),_NC3,IF(AND($B$39=_CAD2,$H$25>PSS),_CAD3,IF($B$39=_CAD2,_CAD5,_PR1))) -> PR1 | C40: =VLOOKUP(B40,[1]Taux!$A$1:$F$58,2,) -> Mutuelle non cadre | E40: =IF(VLOOKUP(C40,[1]Taux!$B$2:$F$58,2,)=98.25,$H$25*0.9825,VLOOKUP(C40,[1]Taux!$B$2:$F$58,2,)) -> x | F40: 2,628.44 | G40: =VLOOKUP(B40,[1]Taux!$A$1:$F$58,5,) -> 1.813% | I40: 47.65 | J40: =VLOOKUP(B40,[1]Taux!$A$1:$F$58,6,) -> 1.483% | K40: 38.98
B41: =IF(AND($B$39=_NC2,$H$25>PSS),_NC4,IF(AND($B$39=_CAD2,$H$25>PSS),_CAD4,IF($B$39=_CAD2,_CAD6,_TA1))) -> TA1 | C41: =VLOOKUP(B41,[1]Taux!$A$1:$F$58,2,) -> Taxe d’apprentissage (hors Al-Mo) | E41: =IF(VLOOKUP(C41,[1]Taux!$B$2:$F$58,2,)=98.25,$H$25*0.9825,VLOOKUP(C41,[1]Taux!$B$2:$F$58,2,)) -> totalite | F41: 2,628.44 | G41: =VLOOKUP(B41,[1]Taux!$A$1:$F$58,5,) ->  | J41: =VLOOKUP(B41,[1]Taux!$A$1:$F$58,6,) -> 0.680% | K41: 17.87
B42: =IF(AND($B$39=_NC2,$H$25>PSS),_TA1,IF(AND($B$39=_CAD2,$H$25>PSS),_CAD6,IF($B$39=_CAD2,_CAD7,_PF1))) -> PF1 | C42: =VLOOKUP(B42,[1]Taux!$A$1:$F$58,2,) -> Participation formation (10 sal.) | E42: =IF(VLOOKUP(C42,[1]Taux!$B$2:$F$58,2,)=98.25,$H$25*0.9825,VLOOKUP(C42,[1]Taux!$B$2:$F$58,2,)) -> totalite | F42: 2,628.44 | G42: =VLOOKUP(B42,[1]Taux!$A$1:$F$58,5,) ->  | J42: =VLOOKUP(B42,[1]Taux!$A$1:$F$58,6,) -> 1.000% | K42: 26.28
B43: =IF(AND($B$39=_NC2,$H$25>PSS),_PF1,IF(AND($B$39=_CAD2,$H$25>PSS),_CAD7,IF($B$39=_CAD2,_PR2,_csg1))) -> CSG1 | C43: =VLOOKUP(B43,[1]Taux!$A$1:$F$58,2,) -> CSG non déductible | E43: =IF(VLOOKUP(C43,[1]Taux!$B$2:$F$58,2,)=98.25,$H$25*0.9825,VLOOKUP(C43,[1]Taux!$B$2:$F$58,2,)) -> 2,582.44 | F43: 2,582.44 | G43: =VLOOKUP(B43,[1]Taux!$A$1:$F$58,5,) -> 2.400% | I43: 61.98 | J43: =VLOOKUP(B43,[1]Taux!$A$1:$F$58,6,) -> 
B44: =IF(AND($B$39=_NC2,$H$25>PSS),_csg1,IF(AND($B$39=_CAD2,$H$25>PSS),_PR2,IF($B$39=_CAD2,_TA1,_CSG2))) -> CSG2 | C44: =VLOOKUP(B44,[1]Taux!$A$1:$F$58,2,) -> CSG déductible | E44: =IF(VLOOKUP(C44,[1]Taux!$B$2:$F$58,2,)=98.25,$H$25*0.9825,VLOOKUP(C44,[1]Taux!$B$2:$F$58,2,)) -> 2,582.44 | F44: 2,582.44 | G44: =VLOOKUP(B44,[1]Taux!$A$1:$F$58,5,) -> 5.100% | I44: 131.70 | J44: =VLOOKUP(B44,[1]Taux!$A$1:$F$58,6,) -> 
B45: =IF(AND($B$39=_NC2,$H$25>PSS),_CSG2,IF(AND($B$39=_CAD2,$H$25>PSS),_TA1,IF($B$39=_CAD2,_PF1,_CSG3))) -> CSG3 | C45: =VLOOKUP(B45,[1]Taux!$A$1:$F$58,2,) -> CRDS | E45: =IF(VLOOKUP(C45,[1]Taux!$B$2:$F$58,2,)=98.25,$H$25*0.9825,VLOOKUP(C45,[1]Taux!$B$2:$F$58,2,)) -> 2,582.44 | F45: 2,582.44 | G45: =VLOOKUP(B45,[1]Taux!$A$1:$F$58,5,) -> 0.500% | I45: 12.91 | J45: =VLOOKUP(B45,[1]Taux!$A$1:$F$58,6,) -> 
B46: =IF(AND($B$39=_NC2,$H$25>PSS),_CSG3,IF(AND($B$39=_CAD2,$H$25>PSS),_PF1,IF($B$39=_CAD2,_csg1," "))) ->  | C46: =VLOOKUP(B46,[1]Taux!$A$1:$F$58,2,) ->  | E46: =IF(VLOOKUP(C46,[1]Taux!$B$2:$F$58,2,)=98.25,$H$25*0.9825,VLOOKUP(C46,[1]Taux!$B$2:$F$58,2,)) -> 0.00 | F46: =IF(E46=" "," ",IF(B46="CSG1",$H$25*0.9825,IF(B46="CSG2",$H$25*0.9825,IF(E46="totalite",$H$25,IF(E46<PSS,E46,IF($H$25<=PSS,$H$25,IF(AND($H$25>PSS,E46=_PSS4),$H$25-PSS,PSS))))))) -> 0.00 | G46: =VLOOKUP(B46,[1]Taux!$A$1:$F$58,5,) ->  | J46: =VLOOKUP(B46,[1]Taux!$A$1:$F$58,6,) -> 
B47: =IF(AND($B$39=_NC2,$H$25>PSS)," ",IF(AND($B$39=_CAD2,$H$25>PSS),_csg1,IF($B$39=_CAD2,_CSG2," "))) ->  | C47: =VLOOKUP(B47,[1]Taux!$A$1:$F$58,2,) ->  | E47: =IF(VLOOKUP(C47,[1]Taux!$B$2:$F$58,2,)=98.25,$H$25*0.9825,VLOOKUP(C47,[1]Taux!$B$2:$F$58,2,)) -> 0.00 | F47: =IF(E47=" ","",IF(B47="CSG1",$H$25*0.9825,IF(B47="CSG2",$H$25*0.9825,IF(E47="totalite",$H$25,IF(E47<PSS,E47,IF($H$25<=PSS,$H$25,IF(AND($H$25>PSS,E47=_PSS4),$H$25-PSS,PSS))))))) -> 0.00 | G47: =VLOOKUP(B47,[1]Taux!$A$1:$F$58,5,) ->  | J47: =VLOOKUP(B47,[1]Taux!$A$1:$F$58,6,) -> 
B48: =IF(AND($B$39=_NC2,$H$25>PSS)," ",IF(AND($B$39=_CAD2,$H$25>PSS),_CSG2,IF($B$39=_CAD2,_CSG3," "))) ->  | C48: =VLOOKUP(B48,[1]Taux!$A$1:$F$58,2,) ->  | E48: =IF(VLOOKUP(C48,[1]Taux!$B$2:$F$58,2,)=98.25,$H$25*0.9825,VLOOKUP(C48,[1]Taux!$B$2:$F$58,2,)) -> 0.00 | F48: =IF(E48=" ","",IF(B48="CSG2",$H$25*0.9825,IF(B48="CSG3",$H$25*0.9825,IF(E48="totalite",$H$25,IF(E48<PSS,E48,IF($H$25<=PSS,$H$25,IF(AND($H$25>PSS,E48=_PSS4),$H$25-PSS,PSS))))))) -> 0.00 | G48: =VLOOKUP(B48,[1]Taux!$A$1:$F$58,5,) ->  | J48: =VLOOKUP(B48,[1]Taux!$A$1:$F$58,6,) -> 
B49: =IF(AND($B$39=_NC2,$H$25>PSS)," ",IF(AND($B$39=_CAD2,$H$25>PSS),_CSG3,IF($B$39=_CAD2," "," "))) ->  | C49: =VLOOKUP(B49,[1]Taux!$A$1:$F$59,2,) ->  | E49: =IF(VLOOKUP(C49,[1]Taux!$B$2:$F$58,2,)=98.25,$H$25*0.9825,VLOOKUP(C49,[1]Taux!$B$2:$F$58,2,)) -> 0.00 | F49: =IF(E49=" "," ",IF(B49="CSG2",$H$25*0.9825,IF(B49="CSG3",$H$25*0.9825,IF(E49="totalite",$H$25,IF(E49<PSS,E49,IF($H$25<=PSS,$H$25,IF(AND($H$25>PSS,E49=_PSS4),$H$25-PSS,PSS))))))) -> 0.00 | G49: =VLOOKUP(B49,[1]Taux!$A$1:$F$59,5,) ->  | J49: =VLOOKUP(B49,[1]Taux!$A$1:$F$59,6,) -> 
C50: Total cotisations | I50: =SUM(I27:I49) -> 627.49 | K50: =SUM(K27:K49) -> 1,027.53
J53: =IF([1]Taux!B59<>"",[1]Taux!E59,"") -> 
K54: Pour vous aider à faire valoir vos droits , conservez ce bulletin de paie sans limitation de durée.
C55: Net imposable | D55: =VLOOKUP("csg1",B27:I49,8,)+K55 -> 2,062.93 | I55: Net à payer | K55: =$H$25-$I$50 -> 2,000.95
C56: Cumul année | D56: =Salaire!B35 -> 2,062.93 | I56: Cumul année | K56: =Salaire!B33 -> 2,000.95

Sheet fév
A2: =Ident!B2 -> calindoudou | J2: ="BULLETIN DE PAIE " -> BULLETIN DE PAIE
A3: =Ident!B3 -> 0 | G3: 2015-01-01 | J3: =EOMONTH(G3,0) -> 2015-01-31
A4: =Ident!B4 -> 00000
A5: =Ident!B5 &" " & Ident!B6 ->  | G5: =+"SIRET: " &Ident!B10 & " APE : " &Ident!B11 -> SIRET: APE :
G6: ="URSSAF :" & Ident!B12 -> URSSAF :
A8: Numéro S.S : | C8: =Ident!F8 -> 0 | G8: =CONCATENATE(Ident!F2," ",Ident!F3) -> 
A9: Emploi : | C9: =Ident!F13 -> Resp Administratif & Fin | G9: =Ident!F4 -> 0
A10: Anc : | C10: =(J3-Ident!F17)/360 -> 2 an(s).5 mois | G10: =Ident!F5 -> 0
A11: Cat : | C11: =Ident!F14 -> non cadre | G11: =CONCATENATE(Ident!F6," ",(Ident!F7)) -> 
A12: Qualité : | C12: =Ident!F9 -> 0
A13: Coef : | C13: =Ident!F10 -> 0 | G13: ="Congés " & Salaire!A1-1 & "-" & Salaire!A1 -> Congés 2014-2015 | I13: CP A-1 | J13: ="Rtt " & Salaire!A1 -> Rtt 2015
A14: Echelon : | C14: =Ident!F11 -> 0 | G14: Pris | H14: =HLOOKUP($G$3,Salaire!$B$9:$M$26,6,) -> 0.00 jr(s) | J14: Pris | K14: =HLOOKUP($G$3,Salaire!$B$9:$M$26,9,) -> 0.00
A15: =CONCATENATE(Ident!A13," ",Ident!B14) -> Convention Collective Ventes à distance sur catalogue spécialisé de produits par internet | G15: Restant | H15: =HLOOKUP($G$3,Salaire!$B$9:$M$26,17,) -> 13.08 jr(s) | I15: =HLOOKUP($G$3,Salaire!$B$9:$M$26,15,) -> 11.00 jr(s) | J15: Restant | K15: =HLOOKUP($G$3,Salaire!$B$9:$M$26,18,) -> 1.00
G16: Acquis | H16: =HLOOKUP($G$3,Salaire!$B$9:$M$26,16,) -> 2.08 jr(s) | J16: Acquis | K16: =HLOOKUP($G$3,Salaire!$B$9:$M$26,14,) -> 1.00
B18: Rub. | C18: Intitulé | D18: Nombre | F18: Base | G18: Part Salariale | J18: Part Patronale
G19: Taux | H19: Gain | I19: Retenue | J19: Taux | K19: Retenue
C20: Salaire Brut | F20: =Ident!G16 -> 151.67 | G20: =Salaire!B5 -> 17.33 | H20: =G20*F20 -> 2,628.44
C21: =IF(ISBLANK(Salaire!B13)=TRUE,"",Salaire!A13) ->  | D21: =IF(ISNA(VLOOKUP($C21,Salaire!$A$13:$M$19,2,FALSE))=TRUE,"",VLOOKUP($C21,Salaire!$A$13:$M$19,2,FALSE)) ->  | H21: =IF(D21>0,D21," ") -> 
C22: =IF(ISBLANK(Salaire!B14)=TRUE,"",Salaire!A14) ->  | D22: =IF(ISNA(VLOOKUP($C22,Salaire!$A$13:$M$19,2,FALSE))=TRUE,"",VLOOKUP($C22,Salaire!$A$13:$M$19,2,FALSE)) -> 
C23: =IF(ISBLANK(Salaire!B15)=TRUE,"",Salaire!A15) ->  | D23: =IF(ISNA(VLOOKUP($C23,Salaire!$A$13:$M$19,2,FALSE))=TRUE,"",VLOOKUP($C23,Salaire!$A$13:$M$19,2,FALSE)) ->  | G23: =IF(D23=""," ",(G20+G20*Salaire!A15/100)) ->  | H23: =IF(ISNA(VLOOKUP($C23,Salaire!$A$13:$M$19,2,FALSE))=TRUE,"",IF(OR($C23="Abs/Ind congés payés",$C23="Abs/Ind Maladie 100%")=TRUE,,IF($C23="Primes, avantages",D23,(D23*E23)+((D23*G23))))) -> 
C24: =IF(ISBLANK(Salaire!B16)=TRUE,"",Salaire!A16) ->  | D24: =IF(ISNA(VLOOKUP($C24,Salaire!$A$13:$M$19,2,FALSE))=TRUE,"",VLOOKUP($C24,Salaire!$A$13:$M$19,2,FALSE)) ->  | G24: =IF(D24=""," ",G20*Salaire!B4) ->  | I24: =IF(ISNA(VLOOKUP($C24,Salaire!$A$13:$M$19,2,FALSE))=TRUE,"",IF(OR($C24="Abs/Ind congés payés",$C24="Abs/Ind Maladie 100%")=FALSE,,IF($C24="Primes, avantages",D24,D24*G24))) -> 
C25: Total brut Mensuel | H25: =SUM(H20:H24)-SUM(I21:I24) -> 2,628.44
B27: SS1 | C27: =VLOOKUP(B27,[1]Taux!$A$1:$F$58,2,) -> Maladie, Maternité , Veuvage | E27: =IF(VLOOKUP(C27,[1]Taux!$B$2:$F$58,2,)=98.25,$H$25*0.9825,IF(VLOOKUP(C27,[1]Taux!$B$2:$F$58,2,)<=PSS,$H$25,(VLOOKUP(C27,[1]Taux!$B$2:$F$58,2,)))) -> totalite | F27: =IF(E27=" ","",IF(E27="totalite",$H$25,IF(E27<PSS,E27,IF($H$25<=PSS,$H$25,IF(AND($H$25>PSS,E27=_PSS4),$H$25-PSS,PSS))))) -> 2,628.44 | G27: =VLOOKUP(B27,[1]Taux!$A$1:$F$58,5,) -> 0.750% | I27: =IF(G27=" "," ",F27*G27) -> 19.71 | J27: =VLOOKUP(B27,[1]Taux!$A$1:$F$58,6,) -> 12.800% | K27: =IF(J27=" "," ",F27*J27) -> 336.44
B28: ss4 | C28: =VLOOKUP(B28,[1]Taux!$A$1:$F$58,2,) -> Allocations Familiales | E28: =IF(VLOOKUP(C28,[1]Taux!$B$2:$F$58,2,)=98.25,$H$25*0.9825,IF(VLOOKUP(C28,[1]Taux!$B$2:$F$58,2,)<=PSS,$H$25,(VLOOKUP(C28,[1]Taux!$B$2:$F$58,2,)))) -> totalite | F28: 2,628.44 | G28: =VLOOKUP(B28,[1]Taux!$A$1:$F$58,5,) ->  | I28: =IF(G28=" "," ",F28*G28) ->  | J28: =VLOOKUP(B28,[1]Taux!$A$1:$F$58,6,) -> 5.250% | K28: 137.99
B29: SS2 | C29: =VLOOKUP(B29,[1]Taux!$A$1:$F$58,2,) -> Vieillesse Déplafonnée | E29: =IF(VLOOKUP(C29,[1]Taux!$B$2:$F$58,2,)=98.25,$H$25*0.9825,IF(VLOOKUP(C29,[1]Taux!$B$2:$F$58,2,)<=PSS,$H$25,(VLOOKUP(C29,[1]Taux!$B$2:$F$58,2,)))) -> totalite | F29: 2,628.44 | G29: =VLOOKUP(B29,[1]Taux!$A$1:$F$58,5,) -> 0.300% | I29: 7.89 | J29: =VLOOKUP(B29,[1]Taux!$A$1:$F$58,6,) -> 1.800% | K29: 47.31
B30: SS3 | C30: =VLOOKUP(B30,[1]Taux!$A$1:$F$58,2,) -> Vieillesse Plafonnée | E30: =IF(VLOOKUP(C30,[1]Taux!$B$2:$F$58,2,)=98.25,$H$25*0.9825,VLOOKUP(C30,[1]Taux!$B$2:$F$58,2,)) -> 3,170.00 | F30: 2,628.44 | G30: =VLOOKUP(B30,[1]Taux!$A$1:$F$58,5,) -> 6.850% | I30: 180.05 | J30: =VLOOKUP(B30,[1]Taux!$A$1:$F$58,6,) -> 8.500% | K30: 223.42
B31: SS5 | C31: =VLOOKUP(B31,[1]Taux!$A$1:$F$58,2,) -> FNAL (tous employeurs) | E31: =IF(VLOOKUP(C31,[1]Taux!$B$2:$F$58,2,)=98.25,$H$25*0.9825,VLOOKUP(C31,[1]Taux!$B$2:$F$58,2,)) -> 3,170.00 | F31: 2,628.44 | G31: =VLOOKUP(B31,[1]Taux!$A$1:$F$58,5,) ->  | J31: =VLOOKUP(B31,[1]Taux!$A$1:$F$58,6,) -> 0.100% | K31: 2.63
B32: SS6 | C32: =VLOOKUP(B32,[1]Taux!$A$1:$F$58,2,) -> FNAL supplémentaire TA | E32: =IF(VLOOKUP(C32,[1]Taux!$B$2:$F$58,2,)=98.25,$H$25*0.9825,VLOOKUP(C32,[1]Taux!$B$2:$F$58,2,)) -> 3,170.00 | F32: 2,628.44 | G32: =VLOOKUP(B32,[1]Taux!$A$1:$F$58,5,) ->  | J32: =VLOOKUP(B32,[1]Taux!$A$1:$F$58,6,) -> 0.400% | K32: 10.51
B33: SS8 | C33: =VLOOKUP(B33,[1]Taux!$A$1:$F$58,2,) -> Contribution solidarité | E33: =IF(VLOOKUP(C33,[1]Taux!$B$2:$F$58,2,)=98.25,$H$25*0.9825,VLOOKUP(C33,[1]Taux!$B$2:$F$58,2,)) -> totalite | F33: 2,628.44 | G33: =VLOOKUP(B33,[1]Taux!$A$1:$F$58,5,) ->  | J33: =VLOOKUP(B33,[1]Taux!$A$1:$F$58,6,) -> 0.300% | K33: 7.89
B34: ss11 | C34: =VLOOKUP(B34,[1]Taux!$A$1:$F$58,2,) -> Accidents du Travail | E34: =IF(VLOOKUP(C34,[1]Taux!$B$2:$F$58,2,)=98.25,$H$25*0.9825,VLOOKUP(C34,[1]Taux!$B$2:$F$58,2,)) -> totalite | F34: 2,628.44 | G34: =VLOOKUP(B34,[1]Taux!$A$1:$F$58,5,) ->  | J34: =VLOOKUP(B34,[1]Taux!$A$1:$F$58,6,) -> 1.880% | K34: 49.41
B35: LF1 | C35: =VLOOKUP(B35,[1]Taux!$A$1:$F$58,2,) -> Loi Fillon | E35: =IF(VLOOKUP(C35,[1]Taux!$B$2:$F$58,2,)=98.25,$H$25*0.9825,VLOOKUP(C35,[1]Taux!$B$2:$F$58,2,)) -> totalite | F35: 2,628.44 | G35: =VLOOKUP(B35,[1]Taux!$A$1:$F$58,5,) ->  | J35: =VLOOKUP(B35,[1]Taux!$A$1:$F$58,6,) -> -5.250% | K35: -138.00
B36: pe1 | C36: =VLOOKUP(B36,[1]Taux!$A$1:$F$58,2,) -> Assurance chômage TA + TB | E36: =IF(VLOOKUP(C36,[1]Taux!$B$2:$F$58,2,)=98.25,$H$25*0.9825,VLOOKUP(C36,[1]Taux!$B$2:$F$58,2,)) -> totalite | F36: 2,628.44 | G36: =VLOOKUP(B36,[1]Taux!$A$1:$F$58,5,) -> 2.400% | I36: 63.08 | J36: =VLOOKUP(B36,[1]Taux!$A$1:$F$58,6,) -> 4.000% | K36: 105.14
B37: pe2 | C37: =VLOOKUP(B37,[1]Taux!$A$1:$F$58,2,) -> AGS (FNGS) | E37: =IF(VLOOKUP(C37,[1]Taux!$B$2:$F$58,2,)=98.25,$H$25*0.9825,VLOOKUP(C37,[1]Taux!$B$2:$F$58,2,)) -> totalite | F37: 2,628.44 | G37: =VLOOKUP(B37,[1]Taux!$A$1:$F$58,5,) ->  | J37: =VLOOKUP(B37,[1]Taux!$A$1:$F$58,6,) -> 0.300% | K37: 7.89
B38: =IF($C$11="non cadre",[1]Taux!A28,[1]Taux!A35) -> NC1 | C38: =VLOOKUP(B38,[1]Taux!$A$1:$F$58,2,) -> ARRCO Tranche 1 (Non Cadre) | E38: =IF(VLOOKUP(C38,[1]Taux!$B$2:$F$58,2,)=98.25,$H$25*0.9825,VLOOKUP(C38,[1]Taux!$B$2:$F$58,2,)) -> 3,170.00 | F38: 2,628.44 | G38: =VLOOKUP(B38,[1]Taux!$A$1:$F$58,5,) -> 3.100% | I38: 81.48 | J38: =VLOOKUP(B38,[1]Taux!$A$1:$F$58,6,) -> 4.650% | K38: 122.22 | L38: Bulletin de paie établi avec GestionVB_Paie v8.06
B39: =IF($C$11="non cadre",[1]Taux!A29,[1]Taux!A36) -> NC2 | C39: =VLOOKUP(B39,[1]Taux!$A$1:$F$58,2,) -> AGFF Tranche 1 (Non Cadre) | E39: =IF(VLOOKUP(C39,[1]Taux!$B$2:$F$58,2,)=98.25,$H$25*0.9825,VLOOKUP(C39,[1]Taux!$B$2:$F$58,2,)) -> 3,170.00 | F39: 2,628.44 | G39: =VLOOKUP(B39,[1]Taux!$A$1:$F$58,5,) -> 0.800% | I39: 21.03 | J39: =VLOOKUP(B39,[1]Taux!$A$1:$F$58,6,) -> 1.200% | K39: 31.54
B40: =IF(AND($B$39=_NC2,$H$25>PSS),_NC3,IF(AND($B$39=_CAD2,$H$25>PSS),_CAD3,IF($B$39=_CAD2,_CAD5,_PR1))) -> PR1 | C40: =VLOOKUP(B40,[1]Taux!$A$1:$F$58,2,) -> Mutuelle non cadre | E40: =IF(VLOOKUP(C40,[1]Taux!$B$2:$F$58,2,)=98.25,$H$25*0.9825,VLOOKUP(C40,[1]Taux!$B$2:$F$58,2,)) -> x | F40: 2,628.44 | G40: =VLOOKUP(B40,[1]Taux!$A$1:$F$58,5,) -> 1.813% | I40: 47.65 | J40: =VLOOKUP(B40,[1]Taux!$A$1:$F$58,6,) -> 1.483% | K40: 38.98
B41: =IF(AND($B$39=_NC2,$H$25>PSS),_NC4,IF(AND($B$39=_CAD2,$H$25>PSS),_CAD4,IF($B$39=_CAD2,_CAD6,_TA1))) -> TA1 | C41: =VLOOKUP(B41,[1]Taux!$A$1:$F$58,2,) -> Taxe d’apprentissage (hors Al-Mo) | E41: =IF(VLOOKUP(C41,[1]Taux!$B$2:$F$58,2,)=98.25,$H$25*0.9825,VLOOKUP(C41,[1]Taux!$B$2:$F$58,2,)) -> totalite | F41: 2,628.44 | G41: =VLOOKUP(B41,[1]Taux!$A$1:$F$58,5,) ->  | J41: =VLOOKUP(B41,[1]Taux!$A$1:$F$58,6,) -> 0.680% | K41: 17.87
B42: =IF(AND($B$39=_NC2,$H$25>PSS),_TA1,IF(AND($B$39=_CAD2,$H$25>PSS),_CAD6,IF($B$39=_CAD2,_CAD7,_PF1))) -> PF1 | C42: =VLOOKUP(B42,[1]Taux!$A$1:$F$58,2,) -> Participation formation (10 sal.) | E42: =IF(VLOOKUP(C42,[1]Taux!$B$2:$F$58,2,)=98.25,$H$25*0.9825,VLOOKUP(C42,[1]Taux!$B$2:$F$58,2,)) -> totalite | F42: 2,628.44 | G42: =VLOOKUP(B42,[1]Taux!$A$1:$F$58,5,) ->  | J42: =VLOOKUP(B42,[1]Taux!$A$1:$F$58,6,) -> 1.000% | K42: 26.28
B43: =IF(AND($B$39=_NC2,$H$25>PSS),_PF1,IF(AND($B$39=_CAD2,$H$25>PSS),_CAD7,IF($B$39=_CAD2,_PR2,_csg1))) -> CSG1 | C43: =VLOOKUP(B43,[1]Taux!$A$1:$F$58,2,) -> CSG non déductible | E43: =IF(VLOOKUP(C43,[1]Taux!$B$2:$F$58,2,)=98.25,$H$25*0.9825,VLOOKUP(C43,[1]Taux!$B$2:$F$58,2,)) -> 2,582.44 | F43: 2,582.44 | G43: =VLOOKUP(B43,[1]Taux!$A$1:$F$58,5,) -> 2.400% | I43: 61.98 | J43: =VLOOKUP(B43,[1]Taux!$A$1:$F$58,6,) -> 
B44: =IF(AND($B$39=_NC2,$H$25>PSS),_csg1,IF(AND($B$39=_CAD2,$H$25>PSS),_PR2,IF($B$39=_CAD2,_TA1,_CSG2))) -> CSG2 | C44: =VLOOKUP(B44,[1]Taux!$A$1:$F$58,2,) -> CSG déductible | E44: =IF(VLOOKUP(C44,[1]Taux!$B$2:$F$58,2,)=98.25,$H$25*0.9825,VLOOKUP(C44,[1]Taux!$B$2:$F$58,2,)) -> 2,582.44 | F44: 2,582.44 | G44: =VLOOKUP(B44,[1]Taux!$A$1:$F$58,5,) -> 5.100% | I44: 131.70 | J44: =VLOOKUP(B44,[1]Taux!$A$1:$F$58,6,) -> 
B45: =IF(AND($B$39=_NC2,$H$25>PSS),_CSG2,IF(AND($B$39=_CAD2,$H$25>PSS),_TA1,IF($B$39=_CAD2,_PF1,_CSG3))) -> CSG3 | C45: =VLOOKUP(B45,[1]Taux!$A$1:$F$58,2,) -> CRDS | E45: =IF(VLOOKUP(C45,[1]Taux!$B$2:$F$58,2,)=98.25,$H$25*0.9825,VLOOKUP(C45,[1]Taux!$B$2:$F$58,2,)) -> 2,582.44 | F45: 2,582.44 | G45: =VLOOKUP(B45,[1]Taux!$A$1:$F$58,5,) -> 0.500% | I45: 12.91 | J45: =VLOOKUP(B45,[1]Taux!$A$1:$F$58,6,) -> 
B46: =IF(AND($B$39=_NC2,$H$25>PSS),_CSG3,IF(AND($B$39=_CAD2,$H$25>PSS),_PF1,IF($B$39=_CAD2,_csg1," "))) ->  | C46: =VLOOKUP(B46,[1]Taux!$A$1:$F$58,2,) ->  | E46: =IF(VLOOKUP(C46,[1]Taux!$B$2:$F$58,2,)=98.25,$H$25*0.9825,VLOOKUP(C46,[1]Taux!$B$2:$F$58,2,)) -> 0.00 | F46: =IF(E46=" "," ",IF(B46="CSG1",$H$25*0.9825,IF(B46="CSG2",$H$25*0.9825,IF(E46="totalite",$H$25,IF(E46<PSS,E46,IF($H$25<=PSS,$H$25,IF(AND($H$25>PSS,E46=_PSS4),$H$25-PSS,PSS))))))) -> 0.00 | G46: =VLOOKUP(B46,[1]Taux!$A$1:$F$58,5,) ->  | J46: =VLOOKUP(B46,[1]Taux!$A$1:$F$58,6,) -> 
B47: =IF(AND($B$39=_NC2,$H$25>PSS)," ",IF(AND($B$39=_CAD2,$H$25>PSS),_csg1,IF($B$39=_CAD2,_CSG2," "))) ->  | C47: =VLOOKUP(B47,[1]Taux!$A$1:$F$58,2,) ->  | E47: =IF(VLOOKUP(C47,[1]Taux!$B$2:$F$58,2,)=98.25,$H$25*0.9825,VLOOKUP(C47,[1]Taux!$B$2:$F$58,2,)) -> 0.00 | F47: =IF(E47=" ","",IF(B47="CSG1",$H$25*0.9825,IF(B47="CSG2",$H$25*0.9825,IF(E47="totalite",$H$25,IF(E47<PSS,E47,IF($H$25<=PSS,$H$25,IF(AND($H$25>PSS,E47=_PSS4),$H$25-PSS,PSS))))))) -> 0.00 | G47: =VLOOKUP(B47,[1]Taux!$A$1:$F$58,5,) ->  | J47: =VLOOKUP(B47,[1]Taux!$A$1:$F$58,6,) -> 
B48: =IF(AND($B$39=_NC2,$H$25>PSS)," ",IF(AND($B$39=_CAD2,$H$25>PSS),_CSG2,IF($B$39=_CAD2,_CSG3," "))) ->  | C48: =VLOOKUP(B48,[1]Taux!$A$1:$F$58,2,) ->  | E48: =IF(VLOOKUP(C48,[1]Taux!$B$2:$F$58,2,)=98.25,$H$25*0.9825,VLOOKUP(C48,[1]Taux!$B$2:$F$58,2,)) -> 0.00 | F48: =IF(E48=" ","",IF(B48="CSG2",$H$25*0.9825,IF(B48="CSG3",$H$25*0.9825,IF(E48="totalite",$H$25,IF(E48<PSS,E48,IF($H$25<=PSS,$H$25,IF(AND($H$25>PSS,E48=_PSS4),$H$25-PSS,PSS))))))) -> 0.00 | G48: =VLOOKUP(B48,[1]Taux!$A$1:$F$58,5,) ->  | J48: =VLOOKUP(B48,[1]Taux!$A$1:$F$58,6,) -> 
B49: =IF(AND($B$39=_NC2,$H$25>PSS)," ",IF(AND($B$39=_CAD2,$H$25>PSS),_CSG3,IF($B$39=_CAD2," "," "))) ->  | C49: =VLOOKUP(B49,[1]Taux!$A$1:$F$59,2,) ->  | E49: =IF(VLOOKUP(C49,[1]Taux!$B$2:$F$58,2,)=98.25,$H$25*0.9825,VLOOKUP(C49,[1]Taux!$B$2:$F$58,2,)) -> 0.00 | F49: =IF(E49=" "," ",IF(B49="CSG2",$H$25*0.9825,IF(B49="CSG3",$H$25*0.9825,IF(E49="totalite",$H$25,IF(E49<PSS,E49,IF($H$25<=PSS,$H$25,IF(AND($H$25>PSS,E49=_PSS4),$H$25-PSS,PSS))))))) -> 0.00 | G49: =VLOOKUP(B49,[1]Taux!$A$1:$F$59,5,) ->  | J49: =VLOOKUP(B49,[1]Taux!$A$1:$F$59,6,) -> 
C50: Total cotisations | I50: =SUM(I27:I49) -> 627.49 | K50: =SUM(K27:K49) -> 1,027.53
J53: =IF([1]Taux!B59<>"",[1]Taux!E59,"") -> 
K54: Pour vous aider à faire valoir vos droits , conservez ce bulletin de paie sans limitation de durée.
C55: Net imposable | D55: =VLOOKUP("csg1",B27:I49,8,)+K55 -> 2,062.93 | I55: Net à payer | K55: =$H$25-$I$50 -> 2,000.95
C56: Cumul année | D56: =Salaire!B35 -> 2,062.93 | I56: Cumul année | K56: =Salaire!B33 -> 2,000.95

Sheet mar
A2: =Ident!B2 -> calindoudou | J2: ="BULLETIN DE PAIE " -> BULLETIN DE PAIE
A3: =Ident!B3 -> 0 | G3: =EOMONTH(fév!G3,0)+1 -> 2015-02-01 | J3: =EOMONTH(G3,0) -> 2015-02-28
A4: =Ident!B4 -> 00000
A5: =Ident!B5 &" " & Ident!B6 ->  | G5: =+"SIRET: " &Ident!B10 & " APE : " &Ident!B11 -> SIRET: APE :
G6: ="URSSAF :" & Ident!B12 -> URSSAF :
A8: Numéro S.S : | C8: =Ident!F8 -> 0 | G8: =CONCATENATE(Ident!F2," ",Ident!F3) -> 
A9: Emploi : | C9: =Ident!F13 -> Resp Administratif & Fin | G9: =Ident!F4 -> 0
A10: Anc : | C10: =(J3-Ident!F17)/360 -> 2 an(s).5 mois | G10: =Ident!F5 -> 0
A11: Cat : | C11: =Ident!F14 -> non cadre | G11: =CONCATENATE(Ident!F6," ",(Ident!F7)) -> 
A12: Qualité : | C12: =Ident!F9 -> 0
A13: Coef : | C13: =Ident!F10 -> 0 | G13: ="Congés " & Salaire!A1-1 & "-" & Salaire!A1 -> Congés 2014-2015 | I13: CP A-1 | J13: ="Rtt " & Salaire!A1 -> Rtt 2015
A14: Echelon : | C14: =Ident!F11 -> 0 | G14: Pris | H14: =HLOOKUP($G$3,Salaire!$B$9:$M$26,6,) -> 0.00 jr(s) | J14: Pris | K14: =HLOOKUP($G$3,Salaire!$B$9:$M$26,9,) -> 0.00
A15: =CONCATENATE(Ident!A13," ",Ident!B14) -> Convention Collective Ventes à distance sur catalogue spécialisé de produits par internet | G15: Restant | H15: =HLOOKUP($G$3,Salaire!$B$9:$M$26,17,) -> 15.17 jr(s) | I15: =HLOOKUP($G$3,Salaire!$B$9:$M$26,15,) -> 0.00 jr(s) | J15: Restant | K15: =HLOOKUP($G$3,Salaire!$B$9:$M$26,18,) -> 2.00
G16: Acquis | H16: =HLOOKUP($G$3,Salaire!$B$9:$M$26,16,) -> 2.08 jr(s) | J16: Acquis | K16: =HLOOKUP($G$3,Salaire!$B$9:$M$26,14,) -> 1.00
B18: Rub. | C18: Intitulé | D18: Nombre | F18: Base | G18: Part Salariale | J18: Part Patronale
G19: Taux | H19: Gain | I19: Retenue | J19: Taux | K19: Retenue
C20: Salaire Brut | F20: =Ident!G16 -> 151.67 | G20: =Salaire!D5 -> 17.33 | H20: =G20*F20 -> 2,628.44
C21: =IF(ISBLANK(Salaire!D13)=TRUE,"",Salaire!A13) ->  | D21: =IF(ISNA(VLOOKUP($C21,Salaire!$A$13:$M$19,4,FALSE))=TRUE,"",VLOOKUP($C21,Salaire!$A$13:$M$19,4,FALSE)) ->  | H21: =IF(D21>0,D21," ") -> 
C22: =IF(ISBLANK(Salaire!D14)=TRUE,"",Salaire!A14) ->  | D22: =IF(ISNA(VLOOKUP($C22,Salaire!$A$13:$M$19,4,FALSE))=TRUE,"",VLOOKUP($C22,Salaire!$A$13:$M$19,4,FALSE)) -> 
C23: =IF(ISBLANK(Salaire!D15)=TRUE,"",Salaire!A15) ->  | D23: =IF(ISNA(VLOOKUP($C23,Salaire!$A$13:$M$19,4,FALSE))=TRUE,"",VLOOKUP($C23,Salaire!$A$13:$M$19,4,FALSE)) ->  | G23: =IF(D23=""," ",(G20+G20*Salaire!A15/100)) ->  | H23: =IF(ISNA(VLOOKUP($C23,Salaire!$A$13:$M$19,4,FALSE))=TRUE,"",IF(OR($C23="Abs/Ind congés payés",$C23="Abs/Ind Maladie 100%")=TRUE,,IF($C23="Primes, avantages",D23,(D23*E23)+((D23*G23))))) -> 
C24: =IF(ISBLANK(Salaire!D16)=TRUE,"",Salaire!A16) ->  | D24: =IF(ISNA(VLOOKUP($C24,Salaire!$A$13:$M$19,4,FALSE))=TRUE,"",VLOOKUP($C24,Salaire!$A$13:$M$19,4,FALSE)) ->  | G24: =IF(D24=""," ",G20*Salaire!D4) ->  | I24: =IF(ISNA(VLOOKUP($C24,Salaire!$A$13:$M$19,4,FALSE))=TRUE,"",IF(OR($C24="Abs/Ind congés payés",$C24="Abs/Ind Maladie 100%")=FALSE,,IF($C24="Primes, avantages",D24,D24*G24))) -> 
C25: Total brut Mensuel | H25: =SUM(H20:H24)-SUM(I21:I24) -> 2,628.44
B27: SS1 | C27: =VLOOKUP(B27,[1]Taux!$A$1:$F$58,2,) -> Maladie, Maternité , Veuvage | E27: =IF(VLOOKUP(C27,[1]Taux!$B$2:$F$58,2,)=98.25,$H$25*0.9825,VLOOKUP(C27,[1]Taux!$B$2:$F$58,2,)) -> totalite | F27: =IF(E27=" ","",IF(E27="totalite",$H$25,IF(E27<PSS,E27,IF($H$25<=PSS,$H$25,IF(AND($H$25>PSS,E27=_PSS4),$H$25-PSS,PSS))))) -> 2,628.44 | G27: =VLOOKUP(B27,[1]Taux!$A$1:$F$58,5,) -> 0.750% | I27: =IF(G27=" "," ",F27*G27) -> 19.71 | J27: =VLOOKUP(B27,[1]Taux!$A$1:$F$58,6,) -> 12.800% | K27: =IF(J27=" "," ",F27*J27) -> 336.44
B28: ss4 | C28: =VLOOKUP(B28,[1]Taux!$A$1:$F$58,2,) -> Allocations Familiales | E28: =IF(VLOOKUP(C28,[1]Taux!$B$2:$F$58,2,)=98.25,$H$25*0.9825,VLOOKUP(C28,[1]Taux!$B$2:$F$58,2,)) -> totalite | F28: 2,628.44 | G28: =VLOOKUP(B28,[1]Taux!$A$1:$F$58,5,) ->  | I28: =IF(G28=" "," ",F28*G28) ->  | J28: =VLOOKUP(B28,[1]Taux!$A$1:$F$58,6,) -> 5.250% | K28: 137.99
B29: SS2 | C29: =VLOOKUP(B29,[1]Taux!$A$1:$F$58,2,) -> Vieillesse Déplafonnée | E29: =IF(VLOOKUP(C29,[1]Taux!$B$2:$F$58,2,)=98.25,$H$25*0.9825,VLOOKUP(C29,[1]Taux!$B$2:$F$58,2,)) -> totalite | F29: 2,628.44 | G29: =VLOOKUP(B29,[1]Taux!$A$1:$F$58,5,) -> 0.300% | I29: 7.89 | J29: =VLOOKUP(B29,[1]Taux!$A$1:$F$58,6,) -> 1.800% | K29: 47.31
B30: SS3 | C30: =VLOOKUP(B30,[1]Taux!$A$1:$F$58,2,) -> Vieillesse Plafonnée | E30: =IF(VLOOKUP(C30,[1]Taux!$B$2:$F$58,2,)=98.25,$H$25*0.9825,VLOOKUP(C30,[1]Taux!$B$2:$F$58,2,)) -> 3,170.00 | F30: 2,628.44 | G30: =VLOOKUP(B30,[1]Taux!$A$1:$F$58,5,) -> 6.850% | I30: 180.05 | J30: =VLOOKUP(B30,[1]Taux!$A$1:$F$58,6,) -> 8.500% | K30: 223.42
B31: SS5 | C31: =VLOOKUP(B31,[1]Taux!$A$1:$F$58,2,) -> FNAL (tous employeurs) | E31: =IF(VLOOKUP(C31,[1]Taux!$B$2:$F$58,2,)=98.25,$H$25*0.9825,VLOOKUP(C31,[1]Taux!$B$2:$F$58,2,)) -> 3,170.00 | F31: 2,628.44 | G31: =VLOOKUP(B31,[1]Taux!$A$1:$F$58,5,) ->  | J31: =VLOOKUP(B31,[1]Taux!$A$1:$F$58,6,) -> 0.100% | K31: 2.63
B32: SS6 | C32: =VLOOKUP(B32,[1]Taux!$A$1:$F$58,2,) -> FNAL supplémentaire TA | E32: =IF(VLOOKUP(C32,[1]Taux!$B$2:$F$58,2,)=98.25,$H$25*0.9825,VLOOKUP(C32,[1]Taux!$B$2:$F$58,2,)) -> 3,170.00 | F32: 2,628.44 | G32: =VLOOKUP(B32,[1]Taux!$A$1:$F$58,5,) ->  | J32: =VLOOKUP(B32,[1]Taux!$A$1:$F$58,6,) -> 0.400% | K32: 10.51
B33: SS8 | C33: =VLOOKUP(B33,[1]Taux!$A$1:$F$58,2,) -> Contribution solidarité | E33: =IF(VLOOKUP(C33,[1]Taux!$B$2:$F$58,2,)=98.25,$H$25*0.9825,VLOOKUP(C33,[1]Taux!$B$2:$F$58,2,)) -> totalite | F33: 2,628.44 | G33: =VLOOKUP(B33,[1]Taux!$A$1:$F$58,5,) ->  | J33: =VLOOKUP(B33,[1]Taux!$A$1:$F$58,6,) -> 0.300% | K33: 7.89
B34: ss11 | C34: =VLOOKUP(B34,[1]Taux!$A$1:$F$58,2,) -> Accidents du Travail | E34: =IF(VLOOKUP(C34,[1]Taux!$B$2:$F$58,2,)=98.25,$H$25*0.9825,VLOOKUP(C34,[1]Taux!$B$2:$F$58,2,)) -> totalite | F34: 2,628.44 | G34: =VLOOKUP(B34,[1]Taux!$A$1:$F$58,5,) ->  | J34: =VLOOKUP(B34,[1]Taux!$A$1:$F$58,6,) -> 1.880% | K34: 49.41
B35: LF1 | C35: =VLOOKUP(B35,[1]Taux!$A$1:$F$58,2,) -> Loi Fillon | E35: =IF(VLOOKUP(C35,[1]Taux!$B$2:$F$58,2,)=98.25,$H$25*0.9825,VLOOKUP(C35,[1]Taux!$B$2:$F$58,2,)) -> totalite | F35: 2,628.44 | G35: =VLOOKUP(B35,[1]Taux!$A$1:$F$58,5,) ->  | J35: =VLOOKUP(B35,[1]Taux!$A$1:$F$58,6,) -> -5.250% | K35: -138.00
B36: pe1 | C36: =VLOOKUP(B36,[1]Taux!$A$1:$F$58,2,) -> Assurance chômage TA + TB | E36: =IF(VLOOKUP(C36,[1]Taux!$B$2:$F$58,2,)=98.25,$H$25*0.9825,VLOOKUP(C36,[1]Taux!$B$2:$F$58,2,)) -> totalite | F36: 2,628.44 | G36: =VLOOKUP(B36,[1]Taux!$A$1:$F$58,5,) -> 2.400% | I36: 63.08 | J36: =VLOOKUP(B36,[1]Taux!$A$1:$F$58,6,) -> 4.000% | K36: 105.14
B37: pe2 | C37: =VLOOKUP(B37,[1]Taux!$A$1:$F$58,2,) -> AGS (FNGS) | E37: =IF(VLOOKUP(C37,[1]Taux!$B$2:$F$58,2,)=98.25,$H$25*0.9825,VLOOKUP(C37,[1]Taux!$B$2:$F$58,2,)) -> totalite | F37: 2,628.44 | G37: =VLOOKUP(B37,[1]Taux!$A$1:$F$58,5,) ->  | J37: =VLOOKUP(B37,[1]Taux!$A$1:$F$58,6,) -> 0.300% | K37: 7.89
B38: =IF($C$11="non cadre",[1]Taux!A28,[1]Taux!A35) -> NC1 | C38: =VLOOKUP(B38,[1]Taux!$A$1:$F$58,2,) -> ARRCO Tranche 1 (Non Cadre) | E38: =IF(VLOOKUP(C38,[1]Taux!$B$2:$F$58,2,)=98.25,$H$25*0.9825,VLOOKUP(C38,[1]Taux!$B$2:$F$58,2,)) -> 3,170.00 | F38: 2,628.44 | G38: =VLOOKUP(B38,[1]Taux!$A$1:$F$58,5,) -> 3.100% | I38: 81.48 | J38: =VLOOKUP(B38,[1]Taux!$A$1:$F$58,6,) -> 4.650% | K38: 122.22 | L38: Bulletin de paie établi avec GestionVB_Paie v8.06
B39: =IF($C$11="non cadre",[1]Taux!A29,[1]Taux!A36) -> NC2 | C39: =VLOOKUP(B39,[1]Taux!$A$1:$F$58,2,) -> AGFF Tranche 1 (Non Cadre) | E39: =IF(VLOOKUP(C39,[1]Taux!$B$2:$F$58,2,)=98.25,$H$25*0.9825,VLOOKUP(C39,[1]Taux!$B$2:$F$58,2,)) -> 3,170.00 | F39: 2,628.44 | G39: =VLOOKUP(B39,[1]Taux!$A$1:$F$58,5,) -> 0.800% | I39: 21.03 | J39: =VLOOKUP(B39,[1]Taux!$A$1:$F$58,6,) -> 1.200% | K39: 31.54
B40: =IF(AND($B$39=_NC2,$H$25>PSS),_NC3,IF(AND($B$39=_CAD2,$H$25>PSS),_CAD3,IF($B$39=_CAD2,_CAD5,_PR1))) -> PR1 | C40: =VLOOKUP(B40,[1]Taux!$A$1:$F$58,2,) -> Mutuelle non cadre | E40: =IF(VLOOKUP(C40,[1]Taux!$B$2:$F$58,2,)=98.25,$H$25*0.9825,VLOOKUP(C40,[1]Taux!$B$2:$F$58,2,)) -> x | F40: 2,628.44 | G40: =VLOOKUP(B40,[1]Taux!$A$1:$F$58,5,) -> 1.813% | I40: 47.65 | J40: =VLOOKUP(B40,[1]Taux!$A$1:$F$58,6,) -> 1.483% | K40: 38.98
B41: =IF(AND($B$39=_NC2,$H$25>PSS),_NC4,IF(AND($B$39=_CAD2,$H$25>PSS),_CAD4,IF($B$39=_CAD2,_CAD6,_TA1))) -> TA1 | C41: =VLOOKUP(B41,[1]Taux!$A$1:$F$58,2,) -> Taxe d’apprentissage (hors Al-Mo) | E41: =IF(VLOOKUP(C41,[1]Taux!$B$2:$F$58,2,)=98.25,$H$25*0.9825,VLOOKUP(C41,[1]Taux!$B$2:$F$58,2,)) -> totalite | F41: 2,628.44 | G41: =VLOOKUP(B41,[1]Taux!$A$1:$F$58,5,) ->  | J41: =VLOOKUP(B41,[1]Taux!$A$1:$F$58,6,) -> 0.680% | K41: 17.87
B42: =IF(AND($B$39=_NC2,$H$25>PSS),_TA1,IF(AND($B$39=_CAD2,$H$25>PSS),_CAD6,IF($B$39=_CAD2,_CAD7,_PF1))) -> PF1 | C42: =VLOOKUP(B42,[1]Taux!$A$1:$F$58,2,) -> Participation formation (10 sal.) | E42: =IF(VLOOKUP(C42,[1]Taux!$B$2:$F$58,2,)=98.25,$H$25*0.9825,VLOOKUP(C42,[1]Taux!$B$2:$F$58,2,)) -> totalite | F42: 2,628.44 | G42: =VLOOKUP(B42,[1]Taux!$A$1:$F$58,5,) ->  | J42: =VLOOKUP(B42,[1]Taux!$A$1:$F$58,6,) -> 1.000% | K42: 26.28
B43: =IF(AND($B$39=_NC2,$H$25>PSS),_PF1,IF(AND($B$39=_CAD2,$H$25>PSS),_CAD7,IF($B$39=_CAD2,_PR2,_csg1))) -> CSG1 | C43: =VLOOKUP(B43,[1]Taux!$A$1:$F$58,2,) -> CSG non déductible | E43: =IF(VLOOKUP(C43,[1]Taux!$B$2:$F$58,2,)=98.25,$H$25*0.9825,VLOOKUP(C43,[1]Taux!$B$2:$F$58,2,)) -> 2,582.44 | F43: 2,582.44 | G43: =VLOOKUP(B43,[1]Taux!$A$1:$F$58,5,) -> 2.400% | I43: 61.98 | J43: =VLOOKUP(B43,[1]Taux!$A$1:$F$58,6,) -> 
B44: =IF(AND($B$39=_NC2,$H$25>PSS),_csg1,IF(AND($B$39=_CAD2,$H$25>PSS),_PR2,IF($B$39=_CAD2,_TA1,_CSG2))) -> CSG2 | C44: =VLOOKUP(B44,[1]Taux!$A$1:$F$58,2,) -> CSG déductible | E44: =IF(VLOOKUP(C44,[1]Taux!$B$2:$F$58,2,)=98.25,$H$25*0.9825,VLOOKUP(C44,[1]Taux!$B$2:$F$58,2,)) -> 2,582.44 | F44: 2,582.44 | G44: =VLOOKUP(B44,[1]Taux!$A$1:$F$58,5,) -> 5.100% | I44: 131.70 | J44: =VLOOKUP(B44,[1]Taux!$A$1:$F$58,6,) -> 
B45: =IF(AND($B$39=_NC2,$H$25>PSS),_CSG2,IF(AND($B$39=_CAD2,$H$25>PSS),_TA1,IF($B$39=_CAD2,_PF1,_CSG3))) -> CSG3 | C45: =VLOOKUP(B45,[1]Taux!$A$1:$F$58,2,) -> CRDS | E45: =IF(VLOOKUP(C45,[1]Taux!$B$2:$F$58,2,)=98.25,$H$25*0.9825,VLOOKUP(C45,[1]Taux!$B$2:$F$58,2,)) -> 2,582.44 | F45: 2,582.44 | G45: =VLOOKUP(B45,[1]Taux!$A$1:$F$58,5,) -> 0.500% | I45: 12.91 | J45: =VLOOKUP(B45,[1]Taux!$A$1:$F$58,6,) -> 
B46: =IF(AND($B$39=_NC2,$H$25>PSS),_CSG3,IF(AND($B$39=_CAD2,$H$25>PSS),_PF1,IF($B$39=_CAD2,_csg1," "))) ->  | C46: =VLOOKUP(B46,[1]Taux!$A$1:$F$58,2,) ->  | E46: =IF(VLOOKUP(C46,[1]Taux!$B$2:$F$58,2,)=98.25,$H$25*0.9825,VLOOKUP(C46,[1]Taux!$B$2:$F$58,2,)) -> 0.00 | F46: =IF(E46=" ","",IF(B46="CSG1",$H$25*0.9825,IF(B46="CSG2",$H$25*0.9825,IF(E46="totalite",$H$25,IF(E46<PSS,E46,IF($H$25<=PSS,$H$25,IF(AND($H$25>PSS,E46=_PSS4),$H$25-PSS,PSS))))))) -> 0.00 | G46: =VLOOKUP(B46,[1]Taux!$A$1:$F$58,5,) ->  | J46: =VLOOKUP(B46,[1]Taux!$A$1:$F$58,6,) -> 
B47: =IF(AND($B$39=_NC2,$H$25>PSS)," ",IF(AND($B$39=_CAD2,$H$25>PSS),_csg1,IF($B$39=_CAD2,_CSG2," "))) ->  | C47: =VLOOKUP(B47,[1]Taux!$A$1:$F$58,2,) ->  | E47: =IF(VLOOKUP(C47,[1]Taux!$B$2:$F$58,2,)=98.25,$H$25*0.9825,VLOOKUP(C47,[1]Taux!$B$2:$F$58,2,)) -> 0.00 | F47: =IF(E47=" ","",IF(B47="CSG1",$H$25*0.9825,IF(B47="CSG2",$H$25*0.9825,IF(E47="totalite",$H$25,IF(E47<PSS,E47,IF($H$25<=PSS,$H$25,IF(AND($H$25>PSS,E47=_PSS4),$H$25-PSS,PSS))))))) -> 0.00 | G47: =VLOOKUP(B47,[1]Taux!$A$1:$F$58,5,) ->  | J47: =VLOOKUP(B47,[1]Taux!$A$1:$F$58,6,) -> 
B48: =IF(AND($B$39=_NC2,$H$25>PSS)," ",IF(AND($B$39=_CAD2,$H$25>PSS),_CSG2,IF($B$39=_CAD2,_CSG3," "))) ->  | C48: =VLOOKUP(B48,[1]Taux!$A$1:$F$58,2,) ->  | E48: =IF(VLOOKUP(C48,[1]Taux!$B$2:$F$58,2,)=98.25,$H$25*0.9825,VLOOKUP(C48,[1]Taux!$B$2:$F$58,2,)) -> 0.00 | F48: =IF(E48=" ","",IF(B48="CSG2",$H$25*0.9825,IF(B48="CSG3",$H$25*0.9825,IF(E48="totalite",$H$25,IF(E48<PSS,E48,IF($H$25<=PSS,$H$25,IF(AND($H$25>PSS,E48=_PSS4),$H$25-PSS,PSS))))))) -> 0.00 | G48: =VLOOKUP(B48,[1]Taux!$A$1:$F$58,5,) ->  | J48: =VLOOKUP(B48,[1]Taux!$A$1:$F$58,6,) -> 
B49: =IF(AND($B$39=_NC2,$H$25>PSS)," ",IF(AND($B$39=_CAD2,$H$25>PSS),_CSG3,IF($B$39=_CAD2," "," "))) ->  | C49: =VLOOKUP(B49,[1]Taux!$A$1:$F$59,2,) ->  | E49: =IF(VLOOKUP(C49,[1]Taux!$B$2:$F$58,2,)=98.25,$H$25*0.9825,VLOOKUP(C49,[1]Taux!$B$2:$F$58,2,)) -> 0.00 | F49: =IF(E49=" "," ",IF(B49="CSG2",$H$25*0.9825,IF(B49="CSG3",$H$25*0.9825,IF(E49="totalite",$H$25,IF(E49<PSS,E49,IF($H$25<=PSS,$H$25,IF(AND($H$25>PSS,E49=_PSS4),$H$25-PSS,PSS))))))) -> 0.00 | G49: =VLOOKUP(B49,[1]Taux!$A$1:$F$59,5,) ->  | J49: =VLOOKUP(B49,[1]Taux!$A$1:$F$59,6,) -> 
C50: Total cotisations | I50: =SUM(I27:I49) -> 627.49 | K50: =SUM(K27:K49) -> 1,027.53
J53: =IF([1]Taux!B59<>"",[1]Taux!E59,"") -> 
K54: Pour vous aider à faire valoir vos droits , conservez ce bulletin de paie sans limitation de durée.
C55: Net imposable | D55: =VLOOKUP("csg1",B27:I49,8,)+K55 -> 2,062.93 | I55: Net à payer | K55: =$H$25-$I$50 -> 2,000.95
C56: Cumul année | D56: =Salaire!D35 -> 6,188.80 | I56: Cumul année | K56: =Salaire!D33 -> 6,002.86

Sheet avr
A2: =Ident!B2 -> calindoudou | J2: ="BULLETIN DE PAIE " -> BULLETIN DE PAIE
A3: =Ident!B3 -> 0 | G3: =EOMONTH(mar!G3,0)+1 -> 2015-03-01 | J3: =EOMONTH(G3,0) -> 2015-03-31
A4: =Ident!B4 -> 00000
A5: =Ident!B5 &" " & Ident!B6 ->  | G5: =+"SIRET: " &Ident!B10 & " APE : " &Ident!B11 -> SIRET: APE :
G6: ="URSSAF :" & Ident!B12 -> URSSAF :
A8: Numéro S.S : | C8: =Ident!F8 -> 0 | G8: =CONCATENATE(Ident!F2," ",Ident!F3) -> 
A9: Emploi : | C9: =Ident!F13 -> Resp Administratif & Fin | G9: =Ident!F4 -> 0
A10: Anc : | C10: =(J3-Ident!F17)/360 -> 2 an(s).6 mois | G10: =Ident!F5 -> 0
A11: Cat : | C11: =Ident!F14 -> non cadre | G11: =CONCATENATE(Ident!F6," ",(Ident!F7)) -> 
A12: Qualité : | C12: =Ident!F9 -> 0
A13: Coef : | C13: =Ident!F10 -> 0 | G13: ="Congés " & Salaire!A1-1 & "-" & Salaire!A1 -> Congés 2014-2015 | I13: CP A-1 | J13: ="Rtt " & Salaire!A1 -> Rtt 2015
A14: Echelon : | C14: =Ident!F11 -> 0 | G14: Pris | H14: =HLOOKUP($G$3,Salaire!$B$9:$M$26,6,) -> 0.00 jr(s) | J14: Pris | K14: =HLOOKUP($G$3,Salaire!$B$9:$M$26,9,) -> 0.00
A15: =CONCATENATE(Ident!A13," ",Ident!B14) -> Convention Collective Ventes à distance sur catalogue spécialisé de produits par internet | G15: Restant | H15: =HLOOKUP($G$3,Salaire!$B$9:$M$26,17,) -> 17.25 jr(s) | I15: =HLOOKUP($G$3,Salaire!$B$9:$M$26,15,) -> 0.00 jr(s) | J15: Restant | K15: =HLOOKUP($G$3,Salaire!$B$9:$M$26,18,) -> 3.00
G16: Acquis | H16: =HLOOKUP($G$3,Salaire!$B$9:$M$26,16,) -> 2.08 jr(s) | J16: Acquis | K16: =HLOOKUP($G$3,Salaire!$B$9:$M$26,14,) -> 1.00
B18: Rub. | C18: Intitulé | D18: Nombre | F18: Base | G18: Part Salariale | J18: Part Patronale
G19: Taux | H19: Gain | I19: Retenue | J19: Taux | K19: Retenue
C20: Salaire Brut | F20: =Ident!G16 -> 151.67 | G20: =Salaire!E5 -> 17.33 | H20: =G20*F20 -> 2,628.44
C21: =IF(ISBLANK(Salaire!E13)=TRUE,"",Salaire!A13) ->  | D21: =IF(ISNA(VLOOKUP($C21,Salaire!$A$13:$M$19,5,FALSE))=TRUE,"",VLOOKUP($C21,Salaire!$A$13:$M$19,5,FALSE)) ->  | H21: =IF(D21>0,D21," ") -> 
C22: =IF(ISBLANK(Salaire!E14)=TRUE,"",Salaire!A14) ->  | D22: =IF(ISNA(VLOOKUP($C22,Salaire!$A$13:$M$19,5,FALSE))=TRUE,"",VLOOKUP($C22,Salaire!$A$13:$M$19,5,FALSE)) -> 
C23: =IF(ISBLANK(Salaire!E15)=TRUE,"",Salaire!A15) ->  | D23: =IF(ISNA(VLOOKUP($C23,Salaire!$A$13:$M$19,5,FALSE))=TRUE,"",VLOOKUP($C23,Salaire!$A$13:$M$19,5,FALSE)) ->  | G23: =IF(D23=""," ",(G20+G20*Salaire!A15/100)) ->  | H23: =IF(ISNA(VLOOKUP($C23,Salaire!$A$13:$M$19,5,FALSE))=TRUE,"",IF(OR($C23="Abs/Ind congés payés",$C23="Abs/Ind Maladie 100%")=TRUE,,IF($C23="Primes, avantages",D23,(D23*E23)+((D23*G23))))) -> 
C24: =IF(ISBLANK(Salaire!E16)=TRUE,"",Salaire!A16) ->  | D24: =IF(ISNA(VLOOKUP($C24,Salaire!$A$13:$M$19,5,FALSE))=TRUE,"",VLOOKUP($C24,Salaire!$A$13:$M$19,5,FALSE)) ->  | G24: =IF(D24=""," ",G20*Salaire!E4) ->  | I24: =IF(ISNA(VLOOKUP($C24,Salaire!$A$13:$M$19,5,FALSE))=TRUE,"",IF(OR($C24="Abs/Ind congés payés",$C24="Abs/Ind Maladie 100%")=FALSE,,IF($C24="Primes, avantages",D24,D24*G24))) -> 
C25: Total brut Mensuel | H25: =SUM(H20:H24)-SUM(I21:I24) -> 2,628.44
B27: SS1 | C27: =VLOOKUP(B27,[1]Taux!$A$1:$F$58,2,) -> Maladie, Maternité , Veuvage | E27: =IF(VLOOKUP(C27,[1]Taux!$B$2:$F$58,2,)=98.25,$H$25*0.9825,VLOOKUP(C27,[1]Taux!$B$2:$F$58,2,)) -> totalite | F27: =IF(E27=" ","",IF(E27="totalite",$H$25,IF(E27<PSS,E27,IF($H$25<=PSS,$H$25,IF(AND($H$25>PSS,E27=_PSS4),$H$25-PSS,PSS))))) -> 2,628.44 | G27: =VLOOKUP(B27,[1]Taux!$A$1:$F$58,5,) -> 0.750% | I27: =IF(G27=" "," ",F27*G27) -> 19.71 | J27: =VLOOKUP(B27,[1]Taux!$A$1:$F$58,6,) -> 12.800% | K27: =IF(J27=" "," ",F27*J27) -> 336.44
B28: ss4 | C28: =VLOOKUP(B28,[1]Taux!$A$1:$F$58,2,) -> Allocations Familiales | E28: =IF(VLOOKUP(C28,[1]Taux!$B$2:$F$58,2,)=98.25,$H$25*0.9825,VLOOKUP(C28,[1]Taux!$B$2:$F$58,2,)) -> totalite | F28: 2,628.44 | G28: =VLOOKUP(B28,[1]Taux!$A$1:$F$58,5,) ->  | I28: =IF(G28=" "," ",F28*G28) ->  | J28: =VLOOKUP(B28,[1]Taux!$A$1:$F$58,6,) -> 5.250% | K28: 137.99
B29: SS2 | C29: =VLOOKUP(B29,[1]Taux!$A$1:$F$58,2,) -> Vieillesse Déplafonnée | E29: =IF(VLOOKUP(C29,[1]Taux!$B$2:$F$58,2,)=98.25,$H$25*0.9825,VLOOKUP(C29,[1]Taux!$B$2:$F$58,2,)) -> totalite | F29: 2,628.44 | G29: =VLOOKUP(B29,[1]Taux!$A$1:$F$58,5,) -> 0.300% | I29: 7.89 | J29: =VLOOKUP(B29,[1]Taux!$A$1:$F$58,6,) -> 1.800% | K29: 47.31
B30: SS3 | C30: =VLOOKUP(B30,[1]Taux!$A$1:$F$58,2,) -> Vieillesse Plafonnée | E30: =IF(VLOOKUP(C30,[1]Taux!$B$2:$F$58,2,)=98.25,$H$25*0.9825,VLOOKUP(C30,[1]Taux!$B$2:$F$58,2,)) -> 3,170.00 | F30: 2,628.44 | G30: =VLOOKUP(B30,[1]Taux!$A$1:$F$58,5,) -> 6.850% | I30: 180.05 | J30: =VLOOKUP(B30,[1]Taux!$A$1:$F$58,6,) -> 8.500% | K30: 223.42
B31: SS5 | C31: =VLOOKUP(B31,[1]Taux!$A$1:$F$58,2,) -> FNAL (tous employeurs) | E31: =IF(VLOOKUP(C31,[1]Taux!$B$2:$F$58,2,)=98.25,$H$25*0.9825,VLOOKUP(C31,[1]Taux!$B$2:$F$58,2,)) -> 3,170.00 | F31: 2,628.44 | G31: =VLOOKUP(B31,[1]Taux!$A$1:$F$58,5,) ->  | J31: =VLOOKUP(B31,[1]Taux!$A$1:$F$58,6,) -> 0.100% | K31: 2.63
B32: SS6 | C32: =VLOOKUP(B32,[1]Taux!$A$1:$F$58,2,) -> FNAL supplémentaire TA | E32: =IF(VLOOKUP(C32,[1]Taux!$B$2:$F$58,2,)=98.25,$H$25*0.9825,VLOOKUP(C32,[1]Taux!$B$2:$F$58,2,)) -> 3,170.00 | F32: 2,628.44 | G32: =VLOOKUP(B32,[1]Taux!$A$1:$F$58,5,) ->  | J32: =VLOOKUP(B32,[1]Taux!$A$1:$F$58,6,) -> 0.400% | K32: 10.51
B33: SS8 | C33: =VLOOKUP(B33,[1]Taux!$A$1:$F$58,2,) -> Contribution solidarité | E33: =IF(VLOOKUP(C33,[1]Taux!$B$2:$F$58,2,)=98.25,$H$25*0.9825,VLOOKUP(C33,[1]Taux!$B$2:$F$58,2,)) -> totalite | F33: 2,628.44 | G33: =VLOOKUP(B33,[1]Taux!$A$1:$F$58,5,) ->  | J33: =VLOOKUP(B33,[1]Taux!$A$1:$F$58,6,) -> 0.300% | K33: 7.89
B34: ss11 | C34: =VLOOKUP(B34,[1]Taux!$A$1:$F$58,2,) -> Accidents du Travail | E34: =IF(VLOOKUP(C34,[1]Taux!$B$2:$F$58,2,)=98.25,$H$25*0.9825,VLOOKUP(C34,[1]Taux!$B$2:$F$58,2,)) -> totalite | F34: 2,628.44 | G34: =VLOOKUP(B34,[1]Taux!$A$1:$F$58,5,) ->  | J34: =VLOOKUP(B34,[1]Taux!$A$1:$F$58,6,) -> 1.880% | K34: 49.41
B35: LF1 | C35: =VLOOKUP(B35,[1]Taux!$A$1:$F$58,2,) -> Loi Fillon | E35: =IF(VLOOKUP(C35,[1]Taux!$B$2:$F$58,2,)=98.25,$H$25*0.9825,VLOOKUP(C35,[1]Taux!$B$2:$F$58,2,)) -> totalite | F35: 2,628.44 | G35: =VLOOKUP(B35,[1]Taux!$A$1:$F$58,5,) ->  | J35: =VLOOKUP(B35,[1]Taux!$A$1:$F$58,6,) -> -5.250% | K35: -138.00
B36: pe1 | C36: =VLOOKUP(B36,[1]Taux!$A$1:$F$58,2,) -> Assurance chômage TA + TB | E36: =IF(VLOOKUP(C36,[1]Taux!$B$2:$F$58,2,)=98.25,$H$25*0.9825,VLOOKUP(C36,[1]Taux!$B$2:$F$58,2,)) -> totalite | F36: 2,628.44 | G36: =VLOOKUP(B36,[1]Taux!$A$1:$F$58,5,) -> 2.400% | I36: 63.08 | J36: =VLOOKUP(B36,[1]Taux!$A$1:$F$58,6,) -> 4.000% | K36: 105.14
B37: pe2 | C37: =VLOOKUP(B37,[1]Taux!$A$1:$F$58,2,) -> AGS (FNGS) | E37: =IF(VLOOKUP(C37,[1]Taux!$B$2:$F$58,2,)=98.25,$H$25*0.9825,VLOOKUP(C37,[1]Taux!$B$2:$F$58,2,)) -> totalite | F37: 2,628.44 | G37: =VLOOKUP(B37,[1]Taux!$A$1:$F$58,5,) ->  | J37: =VLOOKUP(B37,[1]Taux!$A$1:$F$58,6,) -> 0.300% | K37: 7.89
B38: =IF($C$11="non cadre",[1]Taux!A28,[1]Taux!A35) -> NC1 | C38: =VLOOKUP(B38,[1]Taux!$A$1:$F$58,2,) -> ARRCO Tranche 1 (Non Cadre) | E38: =IF(VLOOKUP(C38,[1]Taux!$B$2:$F$58,2,)=98.25,$H$25*0.9825,VLOOKUP(C38,[1]Taux!$B$2:$F$58,2,)) -> 3,170.00 | F38: 2,628.44 | G38: =VLOOKUP(B38,[1]Taux!$A$1:$F$58,5,) -> 3.100% | I38: 81.48 | J38: =VLOOKUP(B38,[1]Taux!$A$1:$F$58,6,) -> 4.650% | K38: 122.22 | L38: Bulletin de paie établi avec GestionVB_Paie v8.06
B39: =IF($C$11="non cadre",[1]Taux!A29,[1]Taux!A36) -> NC2 | C39: =VLOOKUP(B39,[1]Taux!$A$1:$F$58,2,) -> AGFF Tranche 1 (Non Cadre) | E39: =IF(VLOOKUP(C39,[1]Taux!$B$2:$F$58,2,)=98.25,$H$25*0.9825,VLOOKUP(C39,[1]Taux!$B$2:$F$58,2,)) -> 3,170.00 | F39: 2,628.44 | G39: =VLOOKUP(B39,[1]Taux!$A$1:$F$58,5,) -> 0.800% | I39: 21.03 | J39: =VLOOKUP(B39,[1]Taux!$A$1:$F$58,6,) -> 1.200% | K39: 31.54
B40: =IF(AND($B$39=_NC2,$H$25>PSS),_NC3,IF(AND($B$39=_CAD2,$H$25>PSS),_CAD3,IF($B$39=_CAD2,_CAD5,_PR1))) -> PR1 | C40: =VLOOKUP(B40,[1]Taux!$A$1:$F$58,2,) -> Mutuelle non cadre | E40: =IF(VLOOKUP(C40,[1]Taux!$B$2:$F$58,2,)=98.25,$H$25*0.9825,VLOOKUP(C40,[1]Taux!$B$2:$F$58,2,)) -> x | F40: 2,628.44 | G40: =VLOOKUP(B40,[1]Taux!$A$1:$F$58,5,) -> 1.813% | I40: 47.65 | J40: =VLOOKUP(B40,[1]Taux!$A$1:$F$58,6,) -> 1.483% | K40: 38.98
B41: =IF(AND($B$39=_NC2,$H$25>PSS),_NC4,IF(AND($B$39=_CAD2,$H$25>PSS),_CAD4,IF($B$39=_CAD2,_CAD6,_TA1))) -> TA1 | C41: =VLOOKUP(B41,[1]Taux!$A$1:$F$58,2,) -> Taxe d’apprentissage (hors Al-Mo) | E41: =IF(VLOOKUP(C41,[1]Taux!$B$2:$F$58,2,)=98.25,$H$25*0.9825,VLOOKUP(C41,[1]Taux!$B$2:$F$58,2,)) -> totalite | F41: 2,628.44 | G41: =VLOOKUP(B41,[1]Taux!$A$1:$F$58,5,) ->  | J41: =VLOOKUP(B41,[1]Taux!$A$1:$F$58,6,) -> 0.680% | K41: 17.87
B42: =IF(AND($B$39=_NC2,$H$25>PSS),_TA1,IF(AND($B$39=_CAD2,$H$25>PSS),_CAD6,IF($B$39=_CAD2,_CAD7,_PF1))) -> PF1 | C42: =VLOOKUP(B42,[1]Taux!$A$1:$F$58,2,) -> Participation formation (10 sal.) | E42: =IF(VLOOKUP(C42,[1]Taux!$B$2:$F$58,2,)=98.25,$H$25*0.9825,VLOOKUP(C42,[1]Taux!$B$2:$F$58,2,)) -> totalite | F42: 2,628.44 | G42: =VLOOKUP(B42,[1]Taux!$A$1:$F$58,5,) ->  | J42: =VLOOKUP(B42,[1]Taux!$A$1:$F$58,6,) -> 1.000% | K42: 26.28
B43: =IF(AND($B$39=_NC2,$H$25>PSS),_PF1,IF(AND($B$39=_CAD2,$H$25>PSS),_CAD7,IF($B$39=_CAD2,_PR2,_csg1))) -> CSG1 | C43: =VLOOKUP(B43,[1]Taux!$A$1:$F$58,2,) -> CSG non déductible | E43: =IF(VLOOKUP(C43,[1]Taux!$B$2:$F$58,2,)=98.25,$H$25*0.9825,VLOOKUP(C43,[1]Taux!$B$2:$F$58,2,)) -> 2,582.44 | F43: 2,582.44 | G43: =VLOOKUP(B43,[1]Taux!$A$1:$F$58,5,) -> 2.400% | I43: 61.98 | J43: =VLOOKUP(B43,[1]Taux!$A$1:$F$58,6,) -> 
B44: =IF(AND($B$39=_NC2,$H$25>PSS),_csg1,IF(AND($B$39=_CAD2,$H$25>PSS),_PR2,IF($B$39=_CAD2,_TA1,_CSG2))) -> CSG2 | C44: =VLOOKUP(B44,[1]Taux!$A$1:$F$58,2,) -> CSG déductible | E44: =IF(VLOOKUP(C44,[1]Taux!$B$2:$F$58,2,)=98.25,$H$25*0.9825,VLOOKUP(C44,[1]Taux!$B$2:$F$58,2,)) -> 2,582.44 | F44: 2,582.44 | G44: =VLOOKUP(B44,[1]Taux!$A$1:$F$58,5,) -> 5.100% | I44: 131.70 | J44: =VLOOKUP(B44,[1]Taux!$A$1:$F$58,6,) -> 
B45: =IF(AND($B$39=_NC2,$H$25>PSS),_CSG2,IF(AND($B$39=_CAD2,$H$25>PSS),_TA1,IF($B$39=_CAD2,_PF1,_CSG3))) -> CSG3 | C45: =VLOOKUP(B45,[1]Taux!$A$1:$F$58,2,) -> CRDS | E45: =IF(VLOOKUP(C45,[1]Taux!$B$2:$F$58,2,)=98.25,$H$25*0.9825,VLOOKUP(C45,[1]Taux!$B$2:$F$58,2,)) -> 2,582.44 | F45: 2,582.44 | G45: =VLOOKUP(B45,[1]Taux!$A$1:$F$58,5,) -> 0.500% | I45: 12.91 | J45: =VLOOKUP(B45,[1]Taux!$A$1:$F$58,6,) -> 
B46: =IF(AND($B$39=_NC2,$H$25>PSS),_CSG3,IF(AND($B$39=_CAD2,$H$25>PSS),_PF1,IF($B$39=_CAD2,_csg1," "))) ->  | C46: =VLOOKUP(B46,[1]Taux!$A$1:$F$58,2,) ->  | E46: =IF(VLOOKUP(C46,[1]Taux!$B$2:$F$58,2,)=98.25,$H$25*0.9825,VLOOKUP(C46,[1]Taux!$B$2:$F$58,2,)) -> 0.00 | F46: =IF(E46=" ","",IF(B46="CSG1",$H$25*0.9825,IF(B46="CSG2",$H$25*0.9825,IF(E46="totalite",$H$25,IF(E46<PSS,E46,IF($H$25<=PSS,$H$25,IF(AND($H$25>PSS,E46=_PSS4),$H$25-PSS,PSS))))))) -> 0.00 | G46: =VLOOKUP(B46,[1]Taux!$A$1:$F$58,5,) ->  | J46: =VLOOKUP(B46,[1]Taux!$A$1:$F$58,6,) -> 
B47: =IF(AND($B$39=_NC2,$H$25>PSS)," ",IF(AND($B$39=_CAD2,$H$25>PSS),_csg1,IF($B$39=_CAD2,_CSG2," "))) ->  | C47: =VLOOKUP(B47,[1]Taux!$A$1:$F$58,2,) ->  | E47: =IF(VLOOKUP(C47,[1]Taux!$B$2:$F$58,2,)=98.25,$H$25*0.9825,VLOOKUP(C47,[1]Taux!$B$2:$F$58,2,)) -> 0.00 | F47: =IF(E47=" ","",IF(B47="CSG1",$H$25*0.9825,IF(B47="CSG2",$H$25*0.9825,IF(E47="totalite",$H$25,IF(E47<PSS,E47,IF($H$25<=PSS,$H$25,IF(AND($H$25>PSS,E47=_PSS4),$H$25-PSS,PSS))))))) -> 0.00 | G47: =VLOOKUP(B47,[1]Taux!$A$1:$F$58,5,) ->  | J47: =VLOOKUP(B47,[1]Taux!$A$1:$F$58,6,) -> 
B48: =IF(AND($B$39=_NC2,$H$25>PSS)," ",IF(AND($B$39=_CAD2,$H$25>PSS),_CSG2,IF($B$39=_CAD2,_CSG3," "))) ->  | C48: =VLOOKUP(B48,[1]Taux!$A$1:$F$58,2,) ->  | E48: =IF(VLOOKUP(C48,[1]Taux!$B$2:$F$58,2,)=98.25,$H$25*0.9825,VLOOKUP(C48,[1]Taux!$B$2:$F$58,2,)) -> 0.00 | F48: =IF(E48=" ","",IF(B48="CSG2",$H$25*0.9825,IF(B48="CSG3",$H$25*0.9825,IF(E48="totalite",$H$25,IF(E48<PSS,E48,IF($H$25<=PSS,$H$25,IF(AND($H$25>PSS,E48=_PSS4),$H$25-PSS,PSS))))))) -> 0.00 | G48: =VLOOKUP(B48,[1]Taux!$A$1:$F$58,5,) ->  | J48: =VLOOKUP(B48,[1]Taux!$A$1:$F$58,6,) -> 
B49: =IF(AND($B$39=_NC2,$H$25>PSS)," ",IF(AND($B$39=_CAD2,$H$25>PSS),_CSG3,IF($B$39=_CAD2," "," "))) ->  | C49: =VLOOKUP(B49,[1]Taux!$A$1:$F$59,2,) ->  | E49: =IF(VLOOKUP(C49,[1]Taux!$B$2:$F$58,2,)=98.25,$H$25*0.9825,VLOOKUP(C49,[1]Taux!$B$2:$F$58,2,)) -> 0.00 | F49: =IF(E49=" "," ",IF(B49="CSG2",$H$25*0.9825,IF(B49="CSG3",$H$25*0.9825,IF(E49="totalite",$H$25,IF(E49<PSS,E49,IF($H$25<=PSS,$H$25,IF(AND($H$25>PSS,E49=_PSS4),$H$25-PSS,PSS))))))) -> 0.00 | G49: =VLOOKUP(B49,[1]Taux!$A$1:$F$59,5,) ->  | J49: =VLOOKUP(B49,[1]Taux!$A$1:$F$59,6,) -> 
C50: Total cotisations | I50: =SUM(I27:I49) -> 627.49 | K50: =SUM(K27:K49) -> 1,027.53
J53: =IF([1]Taux!B59<>"",[1]Taux!E59,"") -> 
K54: Pour vous aider à faire valoir vos droits , conservez ce bulletin de paie sans limitation de durée.
C55: Net imposable | D55: =VLOOKUP("csg1",B27:I49,8,)+K55 -> 2,062.93 | I55: Net à payer | K55: =$H$25-$I$50 -> 2,000.95
C56: Cumul année | D56: =Salaire!E35 -> 8,251.73 | I56: Cumul année | K56: =Salaire!E33 -> 8,003.81

Sheet mai
A2: =Ident!B2 -> calindoudou | J2: ="BULLETIN DE PAIE " -> BULLETIN DE PAIE
A3: =Ident!B3 -> 0 | G3: =EOMONTH(avr!G3,0)+1 -> 2015-04-01 | J3: =EOMONTH(G3,0) -> 2015-04-30
A4: =Ident!B4 -> 00000
A5: =Ident!B5 &" " & Ident!B6 ->  | G5: =+"SIRET: " &Ident!B10 & " APE : " &Ident!B11 -> SIRET: APE :
G6: ="URSSAF :" & Ident!B12 -> URSSAF :
A8: Numéro S.S : | C8: =Ident!F8 -> 0 | G8: =CONCATENATE(Ident!F2," ",Ident!F3) -> 
A9: Emploi : | C9: =Ident!F13 -> Resp Administratif & Fin | G9: =Ident!F4 -> 0
A10: Anc : | C10: =(J3-Ident!F17)/360 -> 2 an(s).7 mois | G10: =Ident!F5 -> 0
A11: Cat : | C11: =Ident!F14 -> non cadre | G11: =CONCATENATE(Ident!F6," ",(Ident!F7)) -> 
A12: Qualité : | C12: =Ident!F9 -> 0
A13: Coef : | C13: =Ident!F10 -> 0 | G13: ="Congés " & Salaire!A1-1 & "-" & Salaire!A1 -> Congés 2014-2015 | I13: CP A-1 | J13: ="Rtt " & Salaire!A1 -> Rtt 2015
A14: Echelon : | C14: =Ident!F11 -> 0 | G14: Pris | H14: =HLOOKUP($G$3,Salaire!$B$9:$M$26,6,) -> 0.00 jr(s) | J14: Pris | K14: =HLOOKUP($G$3,Salaire!$B$9:$M$26,9,) -> 0.00
A15: =CONCATENATE(Ident!A13," ",Ident!B14) -> Convention Collective Ventes à distance sur catalogue spécialisé de produits par internet | G15: Restant | H15: =HLOOKUP($G$3,Salaire!$B$9:$M$26,17,) -> 19.33 jr(s) | I15: =HLOOKUP($G$3,Salaire!$B$9:$M$26,15,) -> 0.00 jr(s) | J15: Restant | K15: =HLOOKUP($G$3,Salaire!$B$9:$M$26,18,) -> 4.00
G16: Acquis | H16: =HLOOKUP($G$3,Salaire!$B$9:$M$26,16,) -> 2.08 jr(s) | J16: Acquis | K16: =HLOOKUP($G$3,Salaire!$B$9:$M$26,14,) -> 1.00
B18: Rub. | C18: Intitulé | D18: Nombre | F18: Base | G18: Part Salariale | J18: Part Patronale
G19: Taux | H19: Gain | I19: Retenue | J19: Taux | K19: Retenue
C20: Salaire Brut | F20: =Ident!G16 -> 151.67 | G20: =Salaire!F5 -> 17.33 | H20: =G20*F20 -> 2,628.44
C21: =IF(ISBLANK(Salaire!F13)=TRUE,"",Salaire!A13) ->  | D21: =IF(ISNA(VLOOKUP($C21,Salaire!$A$13:$M$19,6,FALSE))=TRUE,"",VLOOKUP($C21,Salaire!$A$13:$M$19,6,FALSE)) ->  | H21: =IF(D21>0,D21," ") -> 
C22: =IF(ISBLANK(Salaire!F14)=TRUE,"",Salaire!A14) ->  | D22: =IF(ISNA(VLOOKUP($C22,Salaire!$A$13:$M$19,6,FALSE))=TRUE,"",VLOOKUP($C22,Salaire!$A$13:$M$19,6,FALSE)) -> 
C23: =IF(ISBLANK(Salaire!F15)=TRUE,"",Salaire!A15) ->  | D23: =IF(ISNA(VLOOKUP($C23,Salaire!$A$13:$M$19,6,FALSE))=TRUE,"",VLOOKUP($C23,Salaire!$A$13:$M$19,6,FALSE)) ->  | G23: =IF(D23=""," ",(G20+G20*Salaire!A15/100)) ->  | H23: =IF(ISNA(VLOOKUP($C23,Salaire!$A$13:$M$19,6,FALSE))=TRUE,"",IF(OR($C23="Abs/Ind congés payés",$C23="Abs/Ind Maladie 100%")=TRUE,,IF($C23="Primes, avantages",D23,(D23*E23)+((D23*G23))))) -> 
C24: =IF(ISBLANK(Salaire!F16)=TRUE,"",Salaire!A16) ->  | D24: =IF(ISNA(VLOOKUP($C24,Salaire!$A$13:$M$19,6,FALSE))=TRUE,"",VLOOKUP($C24,Salaire!$A$13:$M$19,6,FALSE)) ->  | G24: =IF(D24=""," ",G20*Salaire!F4) ->  | I24: =IF(ISNA(VLOOKUP($C24,Salaire!$A$13:$M$19,6,FALSE))=TRUE,"",IF(OR($C24="Abs/Ind congés payés",$C24="Abs/Ind Maladie 100%")=FALSE,,IF($C24="Primes, avantages",D24,D24*G24))) -> 
C25: Total brut Mensuel | H25: =SUM(H20:H24)-SUM(I21:I24) -> 2,628.44
B27: SS1 | C27: =VLOOKUP(B27,[1]Taux!$A$1:$F$58,2,) -> Maladie, Maternité , Veuvage | E27: =IF(VLOOKUP(C27,[1]Taux!$B$2:$F$58,2,)=98.25,$H$25*0.9825,VLOOKUP(C27,[1]Taux!$B$2:$F$58,2,)) -> totalite | F27: =IF(E27=" ","",IF(E27="totalite",$H$25,IF(E27<PSS,E27,IF($H$25<=PSS,$H$25,IF(AND($H$25>PSS,E27=_PSS4),$H$25-PSS,PSS))))) -> 2,628.44 | G27: =VLOOKUP(B27,[1]Taux!$A$1:$F$58,5,) -> 0.750% | I27: =IF(G27=" "," ",F27*G27) -> 19.71 | J27: =VLOOKUP(B27,[1]Taux!$A$1:$F$58,6,) -> 12.800% | K27: =IF(J27=" "," ",F27*J27) -> 336.44
B28: ss4 | C28: =VLOOKUP(B28,[1]Taux!$A$1:$F$58,2,) -> Allocations Familiales | E28: =IF(VLOOKUP(C28,[1]Taux!$B$2:$F$58,2,)=98.25,$H$25*0.9825,VLOOKUP(C28,[1]Taux!$B$2:$F$58,2,)) -> totalite | F28: 2,628.44 | G28: =VLOOKUP(B28,[1]Taux!$A$1:$F$58,5,) ->  | I28: =IF(G28=" "," ",F28*G28) ->  | J28: =VLOOKUP(B28,[1]Taux!$A$1:$F$58,6,) -> 5.250% | K28: 137.99
B29: SS2 | C29: =VLOOKUP(B29,[1]Taux!$A$1:$F$58,2,) -> Vieillesse Déplafonnée | E29: =IF(VLOOKUP(C29,[1]Taux!$B$2:$F$58,2,)=98.25,$H$25*0.9825,VLOOKUP(C29,[1]Taux!$B$2:$F$58,2,)) -> totalite | F29: 2,628.44 | G29: =VLOOKUP(B29,[1]Taux!$A$1:$F$58,5,) -> 0.300% | I29: 7.89 | J29: =VLOOKUP(B29,[1]Taux!$A$1:$F$58,6,) -> 1.800% | K29: 47.31
B30: SS3 | C30: =VLOOKUP(B30,[1]Taux!$A$1:$F$58,2,) -> Vieillesse Plafonnée | E30: =IF(VLOOKUP(C30,[1]Taux!$B$2:$F$58,2,)=98.25,$H$25*0.9825,VLOOKUP(C30,[1]Taux!$B$2:$F$58,2,)) -> 3,170.00 | F30: 2,628.44 | G30: =VLOOKUP(B30,[1]Taux!$A$1:$F$58,5,) -> 6.850% | I30: 180.05 | J30: =VLOOKUP(B30,[1]Taux!$A$1:$F$58,6,) -> 8.500% | K30: 223.42
B31: SS5 | C31: =VLOOKUP(B31,[1]Taux!$A$1:$F$58,2,) -> FNAL (tous employeurs) | E31: =IF(VLOOKUP(C31,[1]Taux!$B$2:$F$58,2,)=98.25,$H$25*0.9825,VLOOKUP(C31,[1]Taux!$B$2:$F$58,2,)) -> 3,170.00 | F31: 2,628.44 | G31: =VLOOKUP(B31,[1]Taux!$A$1:$F$58,5,) ->  | J31: =VLOOKUP(B31,[1]Taux!$A$1:$F$58,6,) -> 0.100% | K31: 2.63
B32: SS6 | C32: =VLOOKUP(B32,[1]Taux!$A$1:$F$58,2,) -> FNAL supplémentaire TA | E32: =IF(VLOOKUP(C32,[1]Taux!$B$2:$F$58,2,)=98.25,$H$25*0.9825,VLOOKUP(C32,[1]Taux!$B$2:$F$58,2,)) -> 3,170.00 | F32: 2,628.44 | G32: =VLOOKUP(B32,[1]Taux!$A$1:$F$58,5,) ->  | J32: =VLOOKUP(B32,[1]Taux!$A$1:$F$58,6,) -> 0.400% | K32: 10.51
B33: SS8 | C33: =VLOOKUP(B33,[1]Taux!$A$1:$F$58,2,) -> Contribution solidarité | E33: =IF(VLOOKUP(C33,[1]Taux!$B$2:$F$58,2,)=98.25,$H$25*0.9825,VLOOKUP(C33,[1]Taux!$B$2:$F$58,2,)) -> totalite | F33: 2,628.44 | G33: =VLOOKUP(B33,[1]Taux!$A$1:$F$58,5,) ->  | J33: =VLOOKUP(B33,[1]Taux!$A$1:$F$58,6,) -> 0.300% | K33: 7.89
B34: ss11 | C34: =VLOOKUP(B34,[1]Taux!$A$1:$F$58,2,) -> Accidents du Travail | E34: =IF(VLOOKUP(C34,[1]Taux!$B$2:$F$58,2,)=98.25,$H$25*0.9825,VLOOKUP(C34,[1]Taux!$B$2:$F$58,2,)) -> totalite | F34: 2,628.44 | G34: =VLOOKUP(B34,[1]Taux!$A$1:$F$58,5,) ->  | J34: =VLOOKUP(B34,[1]Taux!$A$1:$F$58,6,) -> 1.880% | K34: 49.41
B35: LF1 | C35: =VLOOKUP(B35,[1]Taux!$A$1:$F$58,2,) -> Loi Fillon | E35: =IF(VLOOKUP(C35,[1]Taux!$B$2:$F$58,2,)=98.25,$H$25*0.9825,VLOOKUP(C35,[1]Taux!$B$2:$F$58,2,)) -> totalite | F35: 2,628.44 | G35: =VLOOKUP(B35,[1]Taux!$A$1:$F$58,5,) ->  | J35: =VLOOKUP(B35,[1]Taux!$A$1:$F$58,6,) -> -5.250% | K35: -138.00
B36: pe1 | C36: =VLOOKUP(B36,[1]Taux!$A$1:$F$58,2,) -> Assurance chômage TA + TB | E36: =IF(VLOOKUP(C36,[1]Taux!$B$2:$F$58,2,)=98.25,$H$25*0.9825,VLOOKUP(C36,[1]Taux!$B$2:$F$58,2,)) -> totalite | F36: 2,628.44 | G36: =VLOOKUP(B36,[1]Taux!$A$1:$F$58,5,) -> 2.400% | I36: 63.08 | J36: =VLOOKUP(B36,[1]Taux!$A$1:$F$58,6,) -> 4.000% | K36: 105.14
B37: pe2 | C37: =VLOOKUP(B37,[1]Taux!$A$1:$F$58,2,) -> AGS (FNGS) | E37: =IF(VLOOKUP(C37,[1]Taux!$B$2:$F$58,2,)=98.25,$H$25*0.9825,VLOOKUP(C37,[1]Taux!$B$2:$F$58,2,)) -> totalite | F37: 2,628.44 | G37: =VLOOKUP(B37,[1]Taux!$A$1:$F$58,5,) ->  | J37: =VLOOKUP(B37,[1]Taux!$A$1:$F$58,6,) -> 0.300% | K37: 7.89
B38: =IF($C$11="non cadre",[1]Taux!A28,[1]Taux!A35) -> NC1 | C38: =VLOOKUP(B38,[1]Taux!$A$1:$F$58,2,) -> ARRCO Tranche 1 (Non Cadre) | E38: =IF(VLOOKUP(C38,[1]Taux!$B$2:$F$58,2,)=98.25,$H$25*0.9825,VLOOKUP(C38,[1]Taux!$B$2:$F$58,2,)) -> 3,170.00 | F38: 2,628.44 | G38: =VLOOKUP(B38,[1]Taux!$A$1:$F$58,5,) -> 3.100% | I38: 81.48 | J38: =VLOOKUP(B38,[1]Taux!$A$1:$F$58,6,) -> 4.650% | K38: 122.22 | L38: Bulletin de paie établi avec GestionVB_Paie v8.06
B39: =IF($C$11="non cadre",[1]Taux!A29,[1]Taux!A36) -> NC2 | C39: =VLOOKUP(B39,[1]Taux!$A$1:$F$58,2,) -> AGFF Tranche 1 (Non Cadre) | E39: =IF(VLOOKUP(C39,[1]Taux!$B$2:$F$58,2,)=98.25,$H$25*0.9825,VLOOKUP(C39,[1]Taux!$B$2:$F$58,2,)) -> 3,170.00 | F39: 2,628.44 | G39: =VLOOKUP(B39,[1]Taux!$A$1:$F$58,5,) -> 0.800% | I39: 21.03 | J39: =VLOOKUP(B39,[1]Taux!$A$1:$F$58,6,) -> 1.200% | K39: 31.54
B40: =IF(AND($B$39=_NC2,$H$25>PSS),_NC3,IF(AND($B$39=_CAD2,$H$25>PSS),_CAD3,IF($B$39=_CAD2,_CAD5,_PR1))) -> PR1 | C40: =VLOOKUP(B40,[1]Taux!$A$1:$F$58,2,) -> Mutuelle non cadre | E40: =IF(VLOOKUP(C40,[1]Taux!$B$2:$F$58,2,)=98.25,$H$25*0.9825,VLOOKUP(C40,[1]Taux!$B$2:$F$58,2,)) -> x | F40: 2,628.44 | G40: =VLOOKUP(B40,[1]Taux!$A$1:$F$58,5,) -> 1.813% | I40: 47.65 | J40: =VLOOKUP(B40,[1]Taux!$A$1:$F$58,6,) -> 1.483% | K40: 38.98
B41: =IF(AND($B$39=_NC2,$H$25>PSS),_NC4,IF(AND($B$39=_CAD2,$H$25>PSS),_CAD4,IF($B$39=_CAD2,_CAD6,_TA1))) -> TA1 | C41: =VLOOKUP(B41,[1]Taux!$A$1:$F$58,2,) -> Taxe d’apprentissage (hors Al-Mo) | E41: =IF(VLOOKUP(C41,[1]Taux!$B$2:$F$58,2,)=98.25,$H$25*0.9825,VLOOKUP(C41,[1]Taux!$B$2:$F$58,2,)) -> totalite | F41: 2,628.44 | G41: =VLOOKUP(B41,[1]Taux!$A$1:$F$58,5,) ->  | J41: =VLOOKUP(B41,[1]Taux!$A$1:$F$58,6,) -> 0.680% | K41: 17.87
B42: =IF(AND($B$39=_NC2,$H$25>PSS),_TA1,IF(AND($B$39=_CAD2,$H$25>PSS),_CAD6,IF($B$39=_CAD2,_CAD7,_PF1))) -> PF1 | C42: =VLOOKUP(B42,[1]Taux!$A$1:$F$58,2,) -> Participation formation (10 sal.) | E42: =IF(VLOOKUP(C42,[1]Taux!$B$2:$F$58,2,)=98.25,$H$25*0.9825,VLOOKUP(C42,[1]Taux!$B$2:$F$58,2,)) -> totalite | F42: 2,628.44 | G42: =VLOOKUP(B42,[1]Taux!$A$1:$F$58,5,) ->  | J42: =VLOOKUP(B42,[1]Taux!$A$1:$F$58,6,) -> 1.000% | K42: 26.28
B43: =IF(AND($B$39=_NC2,$H$25>PSS),_PF1,IF(AND($B$39=_CAD2,$H$25>PSS),_CAD7,IF($B$39=_CAD2,_PR2,_csg1))) -> CSG1 | C43: =VLOOKUP(B43,[1]Taux!$A$1:$F$58,2,) -> CSG non déductible | E43: =IF(VLOOKUP(C43,[1]Taux!$B$2:$F$58,2,)=98.25,$H$25*0.9825,VLOOKUP(C43,[1]Taux!$B$2:$F$58,2,)) -> 2,582.44 | F43: 2,582.44 | G43: =VLOOKUP(B43,[1]Taux!$A$1:$F$58,5,) -> 2.400% | I43: 61.98 | J43: =VLOOKUP(B43,[1]Taux!$A$1:$F$58,6,) -> 
B44: =IF(AND($B$39=_NC2,$H$25>PSS),_csg1,IF(AND($B$39=_CAD2,$H$25>PSS),_PR2,IF($B$39=_CAD2,_TA1,_CSG2))) -> CSG2 | C44: =VLOOKUP(B44,[1]Taux!$A$1:$F$58,2,) -> CSG déductible | E44: =IF(VLOOKUP(C44,[1]Taux!$B$2:$F$58,2,)=98.25,$H$25*0.9825,VLOOKUP(C44,[1]Taux!$B$2:$F$58,2,)) -> 2,582.44 | F44: 2,582.44 | G44: =VLOOKUP(B44,[1]Taux!$A$1:$F$58,5,) -> 5.100% | I44: 131.70 | J44: =VLOOKUP(B44,[1]Taux!$A$1:$F$58,6,) -> 
B45: =IF(AND($B$39=_NC2,$H$25>PSS),_CSG2,IF(AND($B$39=_CAD2,$H$25>PSS),_TA1,IF($B$39=_CAD2,_PF1,_CSG3))) -> CSG3 | C45: =VLOOKUP(B45,[1]Taux!$A$1:$F$58,2,) -> CRDS | E45: =IF(VLOOKUP(C45,[1]Taux!$B$2:$F$58,2,)=98.25,$H$25*0.9825,VLOOKUP(C45,[1]Taux!$B$2:$F$58,2,)) -> 2,582.44 | F45: 2,582.44 | G45: =VLOOKUP(B45,[1]Taux!$A$1:$F$58,5,) -> 0.500% | I45: 12.91 | J45: =VLOOKUP(B45,[1]Taux!$A$1:$F$58,6,) -> 
B46: =IF(AND($B$39=_NC2,$H$25>PSS),_CSG3,IF(AND($B$39=_CAD2,$H$25>PSS),_PF1,IF($B$39=_CAD2,_csg1," "))) ->  | C46: =VLOOKUP(B46,[1]Taux!$A$1:$F$58,2,) ->  | E46: =IF(VLOOKUP(C46,[1]Taux!$B$2:$F$58,2,)=98.25,$H$25*0.9825,VLOOKUP(C46,[1]Taux!$B$2:$F$58,2,)) -> 0.00 | F46: =IF(E46=" ","",IF(B46="CSG1",$H$25*0.9825,IF(B46="CSG2",$H$25*0.9825,IF(E46="totalite",$H$25,IF(E46<PSS,E46,IF($H$25<=PSS,$H$25,IF(AND($H$25>PSS,E46=_PSS4),$H$25-PSS,PSS))))))) -> 0.00 | G46: =VLOOKUP(B46,[1]Taux!$A$1:$F$58,5,) ->  | J46: =VLOOKUP(B46,[1]Taux!$A$1:$F$58,6,) -> 
B47: =IF(AND($B$39=_NC2,$H$25>PSS)," ",IF(AND($B$39=_CAD2,$H$25>PSS),_csg1,IF($B$39=_CAD2,_CSG2," "))) ->  | C47: =VLOOKUP(B47,[1]Taux!$A$1:$F$58,2,) ->  | E47: =IF(VLOOKUP(C47,[1]Taux!$B$2:$F$58,2,)=98.25,$H$25*0.9825,VLOOKUP(C47,[1]Taux!$B$2:$F$58,2,)) -> 0.00 | F47: =IF(E47=" ","",IF(B47="CSG1",$H$25*0.9825,IF(B47="CSG2",$H$25*0.9825,IF(E47="totalite",$H$25,IF(E47<PSS,E47,IF($H$25<=PSS,$H$25,IF(AND($H$25>PSS,E47=_PSS4),$H$25-PSS,PSS))))))) -> 0.00 | G47: =VLOOKUP(B47,[1]Taux!$A$1:$F$58,5,) ->  | J47: =VLOOKUP(B47,[1]Taux!$A$1:$F$58,6,) -> 
B48: =IF(AND($B$39=_NC2,$H$25>PSS)," ",IF(AND($B$39=_CAD2,$H$25>PSS),_CSG2,IF($B$39=_CAD2,_CSG3," "))) ->  | C48: =VLOOKUP(B48,[1]Taux!$A$1:$F$58,2,) ->  | E48: =IF(VLOOKUP(C48,[1]Taux!$B$2:$F$58,2,)=98.25,$H$25*0.9825,VLOOKUP(C48,[1]Taux!$B$2:$F$58,2,)) -> 0.00 | F48: =IF(E48=" ","",IF(B48="CSG2",$H$25*0.9825,IF(B48="CSG3",$H$25*0.9825,IF(E48="totalite",$H$25,IF(E48<PSS,E48,IF($H$25<=PSS,$H$25,IF(AND($H$25>PSS,E48=_PSS4),$H$25-PSS,PSS))))))) -> 0.00 | G48: =VLOOKUP(B48,[1]Taux!$A$1:$F$58,5,) ->  | J48: =VLOOKUP(B48,[1]Taux!$A$1:$F$58,6,) -> 
B49: =IF(AND($B$39=_NC2,$H$25>PSS)," ",IF(AND($B$39=_CAD2,$H$25>PSS),_CSG3,IF($B$39=_CAD2," "," "))) ->  | C49: =VLOOKUP(B49,[1]Taux!$A$1:$F$59,2,) ->  | E49: =IF(VLOOKUP(C49,[1]Taux!$B$2:$F$58,2,)=98.25,$H$25*0.9825,VLOOKUP(C49,[1]Taux!$B$2:$F$58,2,)) -> 0.00 | F49: =IF(E49=" "," ",IF(B49="CSG2",$H$25*0.9825,IF(B49="CSG3",$H$25*0.9825,IF(E49="totalite",$H$25,IF(E49<PSS,E49,IF($H$25<=PSS,$H$25,IF(AND($H$25>PSS,E49=_PSS4),$H$25-PSS,PSS))))))) -> 0.00 | G49: =VLOOKUP(B49,[1]Taux!$A$1:$F$59,5,) ->  | J49: =VLOOKUP(B49,[1]Taux!$A$1:$F$59,6,) -> 
C50: Total cotisations | I50: =SUM(I27:I49) -> 627.49 | K50: =SUM(K27:K49) -> 1,027.53
J53: =IF([1]Taux!B59<>"",[1]Taux!E59,"") -> 
K54: Pour vous aider à faire valoir vos droits , conservez ce bulletin de paie sans limitation de durée.
C55: Net imposable | D55: =VLOOKUP("csg1",B27:I49,8,)+K55 -> 2,062.93 | I55: Net à payer | K55: =$H$25-$I$50 -> 2,000.95
C56: Cumul année | D56: =Salaire!F35 -> 10,314.66 | I56: Cumul année | K56: =Salaire!F33 -> 10,004.77

Sheet jun
A2: =Ident!B2 -> calindoudou | J2: ="BULLETIN DE PAIE " -> BULLETIN DE PAIE
A3: =Ident!B3 -> 0 | G3: =EOMONTH(mai!G3,0)+1 -> 2015-05-01 | J3: =EOMONTH(G3,0) -> 2015-05-31
A4: =Ident!B4 -> 00000
A5: =Ident!B5 &" " & Ident!B6 ->  | G5: =+"SIRET: " &Ident!B10 & " APE : " &Ident!B11 -> SIRET: APE :
G6: ="URSSAF :" & Ident!B12 -> URSSAF :
A8: Numéro S.S : | C8: =Ident!F8 -> 0 | G8: =CONCATENATE(Ident!F2," ",Ident!F3) -> 
A9: Emploi : | C9: =Ident!F13 -> Resp Administratif & Fin | G9: =Ident!F4 -> 0
A10: Anc : | C10: =(J3-Ident!F17)/360 -> 2 an(s).8 mois | G10: =Ident!F5 -> 0
A11: Cat : | C11: =Ident!F14 -> non cadre | G11: =CONCATENATE(Ident!F6," ",(Ident!F7)) -> 
A12: Qualité : | C12: =Ident!F9 -> 0
A13: Coef : | C13: =Ident!F10 -> 0 | G13: ="Congés " & Salaire!A1 & "-" & Salaire!A1+1 -> Congés 2015-2016 | I13: CP A-1 | J13: ="Rtt " & Salaire!A1 -> Rtt 2015
A14: Echelon : | C14: =Ident!F11 -> 0 | G14: Pris | H14: =HLOOKUP($G$3,Salaire!$B$9:$M$26,6,) -> 0.00 jr(s) | J14: Pris | K14: =HLOOKUP($G$3,Salaire!$B$9:$M$26,9,) -> 0.00
A15: =CONCATENATE(Ident!A13," ",Ident!B14) -> Convention Collective Ventes à distance sur catalogue spécialisé de produits par internet | G15: Restant | H15: =HLOOKUP($G$3,Salaire!$B$9:$M$26,17,) -> 21.42 jr(s) | I15: =HLOOKUP($G$3,Salaire!$B$9:$M$26,15,) -> 0.00 jr(s) | J15: Restant | K15: =HLOOKUP($G$3,Salaire!$B$9:$M$26,18,) -> 5.00
G16: Acquis | H16: =HLOOKUP($G$3,Salaire!$B$9:$M$26,16,) -> 2.08 jr(s) | J16: Acquis | K16: =HLOOKUP($G$3,Salaire!$B$9:$M$26,14,) -> 1.00
B18: Rub. | C18: Intitulé | D18: Nombre | F18: Base | G18: Part Salariale | J18: Part Patronale
G19: Taux | H19: Gain | I19: Retenue | J19: Taux | K19: Retenue
C20: Salaire Brut | F20: =Ident!G16 -> 151.67 | G20: =Salaire!G5 -> 17.33 | H20: =G20*F20 -> 2,628.44
C21: =IF(ISBLANK(Salaire!G13)=TRUE,"",Salaire!A13) ->  | D21: =IF(ISNA(VLOOKUP($C21,Salaire!$A$13:$M$19,7,FALSE))=TRUE,"",VLOOKUP($C21,Salaire!$A$13:$M$19,7,FALSE)) ->  | H21: =IF(D21>0,D21," ") -> 
C22: =IF(ISBLANK(Salaire!G14)=TRUE,"",Salaire!A14) ->  | D22: =IF(ISNA(VLOOKUP($C22,Salaire!$A$13:$M$19,7,FALSE))=TRUE,"",VLOOKUP($C22,Salaire!$A$13:$M$19,7,FALSE)) -> 
C23: =IF(ISBLANK(Salaire!G15)=TRUE,"",Salaire!A15) ->  | D23: =IF(ISNA(VLOOKUP($C23,Salaire!$A$13:$M$19,7,FALSE))=TRUE,"",VLOOKUP($C23,Salaire!$A$13:$M$19,7,FALSE)) ->  | G23: =IF(D23=""," ",(G20+G20*Salaire!A15/100)) ->  | H23: =IF(ISNA(VLOOKUP($C23,Salaire!$A$13:$M$19,7,FALSE))=TRUE,"",IF(OR($C23="Abs/Ind congés payés",$C23="Abs/Ind Maladie 100%")=TRUE,,IF($C23="Primes, avantages",D23,(D23*E23)+((D23*G23))))) -> 
C24: =IF(ISBLANK(Salaire!G16)=TRUE,"",Salaire!A16) ->  | D24: =IF(ISNA(VLOOKUP($C24,Salaire!$A$13:$M$19,7,FALSE))=TRUE,"",VLOOKUP($C24,Salaire!$A$13:$M$19,7,FALSE)) ->  | G24: =IF(D24=""," ",G20*Salaire!G4) ->  | I24: =IF(ISNA(VLOOKUP($C24,Salaire!$A$13:$M$19,7,FALSE))=TRUE,"",IF(OR($C24="Abs/Ind congés payés",$C24="Abs/Ind Maladie 100%")=FALSE,,IF($C24="Primes, avantages",D24,D24*G24))) -> 
C25: Total brut Mensuel | H25: =SUM(H20:H24)-SUM(I21:I24) -> 2,628.44
B27: SS1 | C27: =VLOOKUP(B27,[1]Taux!$A$1:$F$58,2,) -> Maladie, Maternité , Veuvage | E27: =IF(VLOOKUP(C27,[1]Taux!$B$2:$F$58,2,)=98.25,$H$25*0.9825,VLOOKUP(C27,[1]Taux!$B$2:$F$58,2,)) -> totalite | F27: =IF(E27=" ","",IF(E27="totalite",$H$25,IF(E27<PSS,E27,IF($H$25<=PSS,$H$25,IF(AND($H$25>PSS,E27=_PSS4),$H$25-PSS,PSS))))) -> 2,628.44 | G27: =VLOOKUP(B27,[1]Taux!$A$1:$F$58,5,) -> 0.750% | I27: =IF(G27=" "," ",F27*G27) -> 19.71 | J27: =VLOOKUP(B27,[1]Taux!$A$1:$F$58,6,) -> 12.800% | K27: =IF(J27=" "," ",F27*J27) -> 336.44
B28: ss4 | C28: =VLOOKUP(B28,[1]Taux!$A$1:$F$58,2,) -> Allocations Familiales | E28: =IF(VLOOKUP(C28,[1]Taux!$B$2:$F$58,2,)=98.25,$H$25*0.9825,VLOOKUP(C28,[1]Taux!$B$2:$F$58,2,)) -> totalite | F28: 2,628.44 | G28: =VLOOKUP(B28,[1]Taux!$A$1:$F$58,5,) ->  | I28: =IF(G28=" "," ",F28*G28) ->  | J28: =VLOOKUP(B28,[1]Taux!$A$1:$F$58,6,) -> 5.250% | K28: 137.99
B29: SS2 | C29: =VLOOKUP(B29,[1]Taux!$A$1:$F$58,2,) -> Vieillesse Déplafonnée | E29: =IF(VLOOKUP(C29,[1]Taux!$B$2:$F$58,2,)=98.25,$H$25*0.9825,VLOOKUP(C29,[1]Taux!$B$2:$F$58,2,)) -> totalite | F29: 2,628.44 | G29: =VLOOKUP(B29,[1]Taux!$A$1:$F$58,5,) -> 0.300% | I29: 7.89 | J29: =VLOOKUP(B29,[1]Taux!$A$1:$F$58,6,) -> 1.800% | K29: 47.31
B30: SS3 | C30: =VLOOKUP(B30,[1]Taux!$A$1:$F$58,2,) -> Vieillesse Plafonnée | E30: =IF(VLOOKUP(C30,[1]Taux!$B$2:$F$58,2,)=98.25,$H$25*0.9825,VLOOKUP(C30,[1]Taux!$B$2:$F$58,2,)) -> 3,170.00 | F30: 2,628.44 | G30: =VLOOKUP(B30,[1]Taux!$A$1:$F$58,5,) -> 6.850% | I30: 180.05 | J30: =VLOOKUP(B30,[1]Taux!$A$1:$F$58,6,) -> 8.500% | K30: 223.42
B31: SS5 | C31: =VLOOKUP(B31,[1]Taux!$A$1:$F$58,2,) -> FNAL (tous employeurs) | E31: =IF(VLOOKUP(C31,[1]Taux!$B$2:$F$58,2,)=98.25,$H$25*0.9825,VLOOKUP(C31,[1]Taux!$B$2:$F$58,2,)) -> 3,170.00 | F31: 2,628.44 | G31: =VLOOKUP(B31,[1]Taux!$A$1:$F$58,5,) ->  | J31: =VLOOKUP(B31,[1]Taux!$A$1:$F$58,6,) -> 0.100% | K31: 2.63
B32: SS6 | C32: =VLOOKUP(B32,[1]Taux!$A$1:$F$58,2,) -> FNAL supplémentaire TA | E32: =IF(VLOOKUP(C32,[1]Taux!$B$2:$F$58,2,)=98.25,$H$25*0.9825,VLOOKUP(C32,[1]Taux!$B$2:$F$58,2,)) -> 3,170.00 | F32: 2,628.44 | G32: =VLOOKUP(B32,[1]Taux!$A$1:$F$58,5,) ->  | J32: =VLOOKUP(B32,[1]Taux!$A$1:$F$58,6,) -> 0.400% | K32: 10.51
B33: SS8 | C33: =VLOOKUP(B33,[1]Taux!$A$1:$F$58,2,) -> Contribution solidarité | E33: =IF(VLOOKUP(C33,[1]Taux!$B$2:$F$58,2,)=98.25,$H$25*0.9825,VLOOKUP(C33,[1]Taux!$B$2:$F$58,2,)) -> totalite | F33: 2,628.44 | G33: =VLOOKUP(B33,[1]Taux!$A$1:$F$58,5,) ->  | J33: =VLOOKUP(B33,[1]Taux!$A$1:$F$58,6,) -> 0.300% | K33: 7.89
B34: ss11 | C34: =VLOOKUP(B34,[1]Taux!$A$1:$F$58,2,) -> Accidents du Travail | E34: =IF(VLOOKUP(C34,[1]Taux!$B$2:$F$58,2,)=98.25,$H$25*0.9825,VLOOKUP(C34,[1]Taux!$B$2:$F$58,2,)) -> totalite | F34: 2,628.44 | G34: =VLOOKUP(B34,[1]Taux!$A$1:$F$58,5,) ->  | J34: =VLOOKUP(B34,[1]Taux!$A$1:$F$58,6,) -> 1.880% | K34: 49.41
B35: LF1 | C35: =VLOOKUP(B35,[1]Taux!$A$1:$F$58,2,) -> Loi Fillon | E35: =IF(VLOOKUP(C35,[1]Taux!$B$2:$F$58,2,)=98.25,$H$25*0.9825,VLOOKUP(C35,[1]Taux!$B$2:$F$58,2,)) -> totalite | F35: 2,628.44 | G35: =VLOOKUP(B35,[1]Taux!$A$1:$F$58,5,) ->  | J35: =VLOOKUP(B35,[1]Taux!$A$1:$F$58,6,) -> -5.250% | K35: -138.00
B36: pe1 | C36: =VLOOKUP(B36,[1]Taux!$A$1:$F$58,2,) -> Assurance chômage TA + TB | E36: =IF(VLOOKUP(C36,[1]Taux!$B$2:$F$58,2,)=98.25,$H$25*0.9825,VLOOKUP(C36,[1]Taux!$B$2:$F$58,2,)) -> totalite | F36: 2,628.44 | G36: =VLOOKUP(B36,[1]Taux!$A$1:$F$58,5,) -> 2.400% | I36: 63.08 | J36: =VLOOKUP(B36,[1]Taux!$A$1:$F$58,6,) -> 4.000% | K36: 105.14
B37: pe2 | C37: =VLOOKUP(B37,[1]Taux!$A$1:$F$58,2,) -> AGS (FNGS) | E37: =IF(VLOOKUP(C37,[1]Taux!$B$2:$F$58,2,)=98.25,$H$25*0.9825,VLOOKUP(C37,[1]Taux!$B$2:$F$58,2,)) -> totalite | F37: 2,628.44 | G37: =VLOOKUP(B37,[1]Taux!$A$1:$F$58,5,) ->  | J37: =VLOOKUP(B37,[1]Taux!$A$1:$F$58,6,) -> 0.300% | K37: 7.89
B38: =IF($C$11="non cadre",[1]Taux!A28,[1]Taux!A35) -> NC1 | C38: =VLOOKUP(B38,[1]Taux!$A$1:$F$58,2,) -> ARRCO Tranche 1 (Non Cadre) | E38: =IF(VLOOKUP(C38,[1]Taux!$B$2:$F$58,2,)=98.25,$H$25*0.9825,VLOOKUP(C38,[1]Taux!$B$2:$F$58,2,)) -> 3,170.00 | F38: 2,628.44 | G38: =VLOOKUP(B38,[1]Taux!$A$1:$F$58,5,) -> 3.100% | I38: 81.48 | J38: =VLOOKUP(B38,[1]Taux!$A$1:$F$58,6,) -> 4.650% | K38: 122.22 | L38: Bulletin de paie établi avec GestionVB_Paie v8.06
B39: =IF($C$11="non cadre",[1]Taux!A29,[1]Taux!A36) -> NC2 | C39: =VLOOKUP(B39,[1]Taux!$A$1:$F$58,2,) -> AGFF Tranche 1 (Non Cadre) | E39: =IF(VLOOKUP(C39,[1]Taux!$B$2:$F$58,2,)=98.25,$H$25*0.9825,VLOOKUP(C39,[1]Taux!$B$2:$F$58,2,)) -> 3,170.00 | F39: 2,628.44 | G39: =VLOOKUP(B39,[1]Taux!$A$1:$F$58,5,) -> 0.800% | I39: 21.03 | J39: =VLOOKUP(B39,[1]Taux!$A$1:$F$58,6,) -> 1.200% | K39: 31.54
B40: =IF(AND($B$39=_NC2,$H$25>PSS),_NC3,IF(AND($B$39=_CAD2,$H$25>PSS),_CAD3,IF($B$39=_CAD2,_CAD5,_PR1))) -> PR1 | C40: =VLOOKUP(B40,[1]Taux!$A$1:$F$58,2,) -> Mutuelle non cadre | E40: =IF(VLOOKUP(C40,[1]Taux!$B$2:$F$58,2,)=98.25,$H$25*0.9825,VLOOKUP(C40,[1]Taux!$B$2:$F$58,2,)) -> x | F40: 2,628.44 | G40: =VLOOKUP(B40,[1]Taux!$A$1:$F$58,5,) -> 1.813% | I40: 47.65 | J40: =VLOOKUP(B40,[1]Taux!$A$1:$F$58,6,) -> 1.483% | K40: 38.98
B41: =IF(AND($B$39=_NC2,$H$25>PSS),_NC4,IF(AND($B$39=_CAD2,$H$25>PSS),_CAD4,IF($B$39=_CAD2,_CAD6,_TA1))) -> TA1 | C41: =VLOOKUP(B41,[1]Taux!$A$1:$F$58,2,) -> Taxe d’apprentissage (hors Al-Mo) | E41: =IF(VLOOKUP(C41,[1]Taux!$B$2:$F$58,2,)=98.25,$H$25*0.9825,VLOOKUP(C41,[1]Taux!$B$2:$F$58,2,)) -> totalite | F41: 2,628.44 | G41: =VLOOKUP(B41,[1]Taux!$A$1:$F$58,5,) ->  | J41: =VLOOKUP(B41,[1]Taux!$A$1:$F$58,6,) -> 0.680% | K41: 17.87
B42: =IF(AND($B$39=_NC2,$H$25>PSS),_TA1,IF(AND($B$39=_CAD2,$H$25>PSS),_CAD6,IF($B$39=_CAD2,_CAD7,_PF1))) -> PF1 | C42: =VLOOKUP(B42,[1]Taux!$A$1:$F$58,2,) -> Participation formation (10 sal.) | E42: =IF(VLOOKUP(C42,[1]Taux!$B$2:$F$58,2,)=98.25,$H$25*0.9825,VLOOKUP(C42,[1]Taux!$B$2:$F$58,2,)) -> totalite | F42: 2,628.44 | G42: =VLOOKUP(B42,[1]Taux!$A$1:$F$58,5,) ->  | J42: =VLOOKUP(B42,[1]Taux!$A$1:$F$58,6,) -> 1.000% | K42: 26.28
B43: =IF(AND($B$39=_NC2,$H$25>PSS),_PF1,IF(AND($B$39=_CAD2,$H$25>PSS),_CAD7,IF($B$39=_CAD2,_PR2,_csg1))) -> CSG1 | C43: =VLOOKUP(B43,[1]Taux!$A$1:$F$58,2,) -> CSG non déductible | E43: =IF(VLOOKUP(C43,[1]Taux!$B$2:$F$58,2,)=98.25,$H$25*0.9825,VLOOKUP(C43,[1]Taux!$B$2:$F$58,2,)) -> 2,582.44 | F43: 2,582.44 | G43: =VLOOKUP(B43,[1]Taux!$A$1:$F$58,5,) -> 2.400% | I43: 61.98 | J43: =VLOOKUP(B43,[1]Taux!$A$1:$F$58,6,) -> 
B44: =IF(AND($B$39=_NC2,$H$25>PSS),_csg1,IF(AND($B$39=_CAD2,$H$25>PSS),_PR2,IF($B$39=_CAD2,_TA1,_CSG2))) -> CSG2 | C44: =VLOOKUP(B44,[1]Taux!$A$1:$F$58,2,) -> CSG déductible | E44: =IF(VLOOKUP(C44,[1]Taux!$B$2:$F$58,2,)=98.25,$H$25*0.9825,VLOOKUP(C44,[1]Taux!$B$2:$F$58,2,)) -> 2,582.44 | F44: 2,582.44 | G44: =VLOOKUP(B44,[1]Taux!$A$1:$F$58,5,) -> 5.100% | I44: 131.70 | J44: =VLOOKUP(B44,[1]Taux!$A$1:$F$58,6,) -> 
B45: =IF(AND($B$39=_NC2,$H$25>PSS),_CSG2,IF(AND($B$39=_CAD2,$H$25>PSS),_TA1,IF($B$39=_CAD2,_PF1,_CSG3))) -> CSG3 | C45: =VLOOKUP(B45,[1]Taux!$A$1:$F$58,2,) -> CRDS | E45: =IF(VLOOKUP(C45,[1]Taux!$B$2:$F$58,2,)=98.25,$H$25*0.9825,VLOOKUP(C45,[1]Taux!$B$2:$F$58,2,)) -> 2,582.44 | F45: 2,582.44 | G45: =VLOOKUP(B45,[1]Taux!$A$1:$F$58,5,) -> 0.500% | I45: 12.91 | J45: =VLOOKUP(B45,[1]Taux!$A$1:$F$58,6,) -> 
B46: =IF(AND($B$39=_NC2,$H$25>PSS),_CSG3,IF(AND($B$39=_CAD2,$H$25>PSS),_PF1,IF($B$39=_CAD2,_csg1," "))) ->  | C46: =VLOOKUP(B46,[1]Taux!$A$1:$F$58,2,) ->  | E46: =IF(VLOOKUP(C46,[1]Taux!$B$2:$F$58,2,)=98.25,$H$25*0.9825,VLOOKUP(C46,[1]Taux!$B$2:$F$58,2,)) -> 0.00 | F46: =IF(E46=" ","",IF(B46="CSG1",$H$25*0.9825,IF(B46="CSG2",$H$25*0.9825,IF(E46="totalite",$H$25,IF(E46<PSS,E46,IF($H$25<=PSS,$H$25,IF(AND($H$25>PSS,E46=_PSS4),$H$25-PSS,PSS))))))) -> 0.00 | G46: =VLOOKUP(B46,[1]Taux!$A$1:$F$58,5,) ->  | J46: =VLOOKUP(B46,[1]Taux!$A$1:$F$58,6,) -> 
B47: =IF(AND($B$39=_NC2,$H$25>PSS)," ",IF(AND($B$39=_CAD2,$H$25>PSS),_csg1,IF($B$39=_CAD2,_CSG2," "))) ->  | C47: =VLOOKUP(B47,[1]Taux!$A$1:$F$58,2,) ->  | E47: =IF(VLOOKUP(C47,[1]Taux!$B$2:$F$58,2,)=98.25,$H$25*0.9825,VLOOKUP(C47,[1]Taux!$B$2:$F$58,2,)) -> 0.00 | F47: =IF(E47=" ","",IF(B47="CSG1",$H$25*0.9825,IF(B47="CSG2",$H$25*0.9825,IF(E47="totalite",$H$25,IF(E47<PSS,E47,IF($H$25<=PSS,$H$25,IF(AND($H$25>PSS,E47=_PSS4),$H$25-PSS,PSS))))))) -> 0.00 | G47: =VLOOKUP(B47,[1]Taux!$A$1:$F$58,5,) ->  | J47: =VLOOKUP(B47,[1]Taux!$A$1:$F$58,6,) -> 
B48: =IF(AND($B$39=_NC2,$H$25>PSS)," ",IF(AND($B$39=_CAD2,$H$25>PSS),_CSG2,IF($B$39=_CAD2,_CSG3," "))) ->  | C48: =VLOOKUP(B48,[1]Taux!$A$1:$F$58,2,) ->  | E48: =IF(VLOOKUP(C48,[1]Taux!$B$2:$F$58,2,)=98.25,$H$25*0.9825,VLOOKUP(C48,[1]Taux!$B$2:$F$58,2,)) -> 0.00 | F48: =IF(E48=" ","",IF(B48="CSG2",$H$25*0.9825,IF(B48="CSG3",$H$25*0.9825,IF(E48="totalite",$H$25,IF(E48<PSS,E48,IF($H$25<=PSS,$H$25,IF(AND($H$25>PSS,E48=_PSS4),$H$25-PSS,PSS))))))) -> 0.00 | G48: =VLOOKUP(B48,[1]Taux!$A$1:$F$58,5,) ->  | J48: =VLOOKUP(B48,[1]Taux!$A$1:$F$58,6,) -> 
B49: =IF(AND($B$39=_NC2,$H$25>PSS)," ",IF(AND($B$39=_CAD2,$H$25>PSS),_CSG3,IF($B$39=_CAD2," "," "))) ->  | C49: =VLOOKUP(B49,[1]Taux!$A$1:$F$59,2,) ->  | E49: =IF(VLOOKUP(C49,[1]Taux!$B$2:$F$58,2,)=98.25,$H$25*0.9825,VLOOKUP(C49,[1]Taux!$B$2:$F$58,2,)) -> 0.00 | F49: =IF(E49=" "," ",IF(B49="CSG2",$H$25*0.9825,IF(B49="CSG3",$H$25*0.9825,IF(E49="totalite",$H$25,IF(E49<PSS,E49,IF($H$25<=PSS,$H$25,IF(AND($H$25>PSS,E49=_PSS4),$H$25-PSS,PSS))))))) -> 0.00 | G49: =VLOOKUP(B49,[1]Taux!$A$1:$F$59,5,) ->  | J49: =VLOOKUP(B49,[1]Taux!$A$1:$F$59,6,) -> 
C50: Total cotisations | I50: =SUM(I27:I49) -> 627.49 | K50: =SUM(K27:K49) -> 1,027.53
J53: =IF([1]Taux!B59<>"",[1]Taux!E59,"") -> 
K54: Pour vous aider à faire valoir vos droits , conservez ce bulletin de paie sans limitation de durée.
C55: Net imposable | D55: =VLOOKUP("csg1",B27:I49,8,)+K55 -> 2,062.93 | I55: Net à payer | K55: =$H$25-$I$50 -> 2,000.95
C56: Cumul année | D56: =Salaire!G35 -> 12,377.59 | I56: Cumul année | K56: =Salaire!G33 -> 12,005.72

Sheet jui
A2: =Ident!B2 -> calindoudou | J2: ="BULLETIN DE PAIE " -> BULLETIN DE PAIE
A3: =Ident!B3 -> 0 | G3: =EOMONTH(jun!G3,0)+1 -> 2015-06-01 | J3: =EOMONTH(G3,0) -> 2015-06-30
A4: =Ident!B4 -> 00000
A5: =Ident!B5 &" " & Ident!B6 ->  | G5: =+"SIRET: " &Ident!B10 & " APE : " &Ident!B11 -> SIRET: APE :
G6: ="URSSAF :" & Ident!B12 -> URSSAF :
A8: Numéro S.S : | C8: =Ident!F8 -> 0 | G8: =CONCATENATE(Ident!F2," ",Ident!F3) -> 
A9: Emploi : | C9: =Ident!F13 -> Resp Administratif & Fin | G9: =Ident!F4 -> 0
A10: Anc : | C10: =(J3-Ident!F17)/360 -> 2 an(s).9 mois | G10: =Ident!F5 -> 0
A11: Cat : | C11: =Ident!F14 -> non cadre | G11: =CONCATENATE(Ident!F6," ",(Ident!F7)) -> 
A12: Qualité : | C12: =Ident!F9 -> 0
A13: Coef : | C13: =Ident!F10 -> 0 | G13: ="Congés " & Salaire!A1 & "-" & Salaire!A1+1 -> Congés 2015-2016 | I13: CP A-1 | J13: ="Rtt " & Salaire!A1 -> Rtt 2015
A14: Echelon : | C14: =Ident!F11 -> 0 | G14: Pris | H14: =HLOOKUP($G$3,Salaire!$B$9:$M$26,6,) -> 0.00 jr(s) | J14: Pris | K14: =HLOOKUP($G$3,Salaire!$B$9:$M$26,9,) -> 0.00
A15: =CONCATENATE(Ident!A13," ",Ident!B14) -> Convention Collective Ventes à distance sur catalogue spécialisé de produits par internet | G15: Restant | H15: =HLOOKUP($G$3,Salaire!$B$9:$M$26,17,) -> 23.50 jr(s) | I15: =HLOOKUP($G$3,Salaire!$B$9:$M$26,15,) -> 21.42 jr(s) | J15: Restant | K15: =HLOOKUP($G$3,Salaire!$B$9:$M$26,18,) -> 6.00
G16: Acquis | H16: =HLOOKUP($G$3,Salaire!$B$9:$M$26,16,) -> 2.08 jr(s) | J16: Acquis | K16: =HLOOKUP($G$3,Salaire!$B$9:$M$26,14,) -> 1.00
B18: Rub. | C18: Intitulé | D18: Nombre | F18: Base | G18: Part Salariale | J18: Part Patronale
G19: Taux | H19: Gain | I19: Retenue | J19: Taux | K19: Retenue
C20: Salaire Brut | F20: =Ident!G16 -> 151.67 | G20: =Salaire!H5 -> 17.33 | H20: =G20*F20 -> 2,628.44
C21: =IF(ISBLANK(Salaire!H13)=TRUE,"",Salaire!A13) ->  | D21: =IF(ISNA(VLOOKUP($C21,Salaire!$A$13:$M$19,8,FALSE))=TRUE,"",VLOOKUP($C21,Salaire!$A$13:$M$19,8,FALSE)) ->  | H21: =IF(D21>0,D21," ") -> 
C22: =IF(ISBLANK(Salaire!H14)=TRUE,"",Salaire!A14) ->  | D22: =IF(ISNA(VLOOKUP($C22,Salaire!$A$13:$M$19,8,FALSE))=TRUE,"",VLOOKUP($C22,Salaire!$A$13:$M$19,8,FALSE)) -> 
C23: =IF(ISBLANK(Salaire!H15)=TRUE,"",Salaire!A15) ->  | D23: =IF(ISNA(VLOOKUP($C23,Salaire!$A$13:$M$19,8,FALSE))=TRUE,"",VLOOKUP($C23,Salaire!$A$13:$M$19,8,FALSE)) ->  | G23: =IF(D23=""," ",(G20+G20*Salaire!A15/100)) ->  | H23: =IF(ISNA(VLOOKUP($C23,Salaire!$A$13:$M$19,8,FALSE))=TRUE,"",IF(OR($C23="Abs/Ind congés payés",$C23="Abs/Ind Maladie 100%")=TRUE,,IF($C23="Primes, avantages",D23,(D23*E23)+((D23*G23))))) -> 
C24: =IF(ISBLANK(Salaire!H16)=TRUE,"",Salaire!A16) ->  | D24: =IF(ISNA(VLOOKUP($C24,Salaire!$A$13:$M$19,8,FALSE))=TRUE,"",VLOOKUP($C24,Salaire!$A$13:$M$19,8,FALSE)) ->  | G24: =IF(D24=""," ",G20*Salaire!H4) ->  | I24: =IF(ISNA(VLOOKUP($C24,Salaire!$A$13:$M$19,8,FALSE))=TRUE,"",IF(OR($C24="Abs/Ind congés payés",$C24="Abs/Ind Maladie 100%")=FALSE,,IF($C24="Primes, avantages",D24,D24*G24))) -> 
C25: Total brut Mensuel | H25: =SUM(H20:H24)-SUM(I21:I24) -> 2,628.44
B27: SS1 | C27: =VLOOKUP(B27,[1]Taux!$A$1:$F$58,2,) -> Maladie, Maternité , Veuvage | E27: =IF(VLOOKUP(C27,[1]Taux!$B$2:$F$58,2,)=98.25,$H$25*0.9825,VLOOKUP(C27,[1]Taux!$B$2:$F$58,2,)) -> totalite | F27: =IF(E27=" ","",IF(E27="totalite",$H$25,IF(E27<PSS,E27,IF($H$25<=PSS,$H$25,IF(AND($H$25>PSS,E27=_PSS4),$H$25-PSS,PSS))))) -> 2,628.44 | G27: =VLOOKUP(B27,[1]Taux!$A$1:$F$58,5,) -> 0.750% | I27: =IF(G27=" "," ",F27*G27) -> 19.71 | J27: =VLOOKUP(B27,[1]Taux!$A$1:$F$58,6,) -> 12.800% | K27: =IF(J27=" "," ",F27*J27) -> 336.44
B28: ss4 | C28: =VLOOKUP(B28,[1]Taux!$A$1:$F$58,2,) -> Allocations Familiales | E28: =IF(VLOOKUP(C28,[1]Taux!$B$2:$F$58,2,)=98.25,$H$25*0.9825,VLOOKUP(C28,[1]Taux!$B$2:$F$58,2,)) -> totalite | F28: 2,628.44 | G28: =VLOOKUP(B28,[1]Taux!$A$1:$F$58,5,) ->  | I28: =IF(G28=" "," ",F28*G28) ->  | J28: =VLOOKUP(B28,[1]Taux!$A$1:$F$58,6,) -> 5.250% | K28: 137.99
B29: SS2 | C29: =VLOOKUP(B29,[1]Taux!$A$1:$F$58,2,) -> Vieillesse Déplafonnée | E29: =IF(VLOOKUP(C29,[1]Taux!$B$2:$F$58,2,)=98.25,$H$25*0.9825,VLOOKUP(C29,[1]Taux!$B$2:$F$58,2,)) -> totalite | F29: 2,628.44 | G29: =VLOOKUP(B29,[1]Taux!$A$1:$F$58,5,) -> 0.300% | I29: 7.89 | J29: =VLOOKUP(B29,[1]Taux!$A$1:$F$58,6,) -> 1.800% | K29: 47.31
B30: SS3 | C30: =VLOOKUP(B30,[1]Taux!$A$1:$F$58,2,) -> Vieillesse Plafonnée | E30: =IF(VLOOKUP(C30,[1]Taux!$B$2:$F$58,2,)=98.25,$H$25*0.9825,VLOOKUP(C30,[1]Taux!$B$2:$F$58,2,)) -> 3,170.00 | F30: 2,628.44 | G30: =VLOOKUP(B30,[1]Taux!$A$1:$F$58,5,) -> 6.850% | I30: 180.05 | J30: =VLOOKUP(B30,[1]Taux!$A$1:$F$58,6,) -> 8.500% | K30: 223.42
B31: SS5 | C31: =VLOOKUP(B31,[1]Taux!$A$1:$F$58,2,) -> FNAL (tous employeurs) | E31: =IF(VLOOKUP(C31,[1]Taux!$B$2:$F$58,2,)=98.25,$H$25*0.9825,VLOOKUP(C31,[1]Taux!$B$2:$F$58,2,)) -> 3,170.00 | F31: 2,628.44 | G31: =VLOOKUP(B31,[1]Taux!$A$1:$F$58,5,) ->  | J31: =VLOOKUP(B31,[1]Taux!$A$1:$F$58,6,) -> 0.100% | K31: 2.63
B32: SS6 | C32: =VLOOKUP(B32,[1]Taux!$A$1:$F$58,2,) -> FNAL supplémentaire TA | E32: =IF(VLOOKUP(C32,[1]Taux!$B$2:$F$58,2,)=98.25,$H$25*0.9825,VLOOKUP(C32,[1]Taux!$B$2:$F$58,2,)) -> 3,170.00 | F32: 2,628.44 | G32: =VLOOKUP(B32,[1]Taux!$A$1:$F$58,5,) ->  | J32: =VLOOKUP(B32,[1]Taux!$A$1:$F$58,6,) -> 0.400% | K32: 10.51
B33: SS8 | C33: =VLOOKUP(B33,[1]Taux!$A$1:$F$58,2,) -> Contribution solidarité | E33: =IF(VLOOKUP(C33,[1]Taux!$B$2:$F$58,2,)=98.25,$H$25*0.9825,VLOOKUP(C33,[1]Taux!$B$2:$F$58,2,)) -> totalite | F33: 2,628.44 | G33: =VLOOKUP(B33,[1]Taux!$A$1:$F$58,5,) ->  | J33: =VLOOKUP(B33,[1]Taux!$A$1:$F$58,6,) -> 0.300% | K33: 7.89
B34: ss11 | C34: =VLOOKUP(B34,[1]Taux!$A$1:$F$58,2,) -> Accidents du Travail | E34: =IF(VLOOKUP(C34,[1]Taux!$B$2:$F$58,2,)=98.25,$H$25*0.9825,VLOOKUP(C34,[1]Taux!$B$2:$F$58,2,)) -> totalite | F34: 2,628.44 | G34: =VLOOKUP(B34,[1]Taux!$A$1:$F$58,5,) ->  | J34: =VLOOKUP(B34,[1]Taux!$A$1:$F$58,6,) -> 1.880% | K34: 49.41
B35: LF1 | C35: =VLOOKUP(B35,[1]Taux!$A$1:$F$58,2,) -> Loi Fillon | E35: =IF(VLOOKUP(C35,[1]Taux!$B$2:$F$58,2,)=98.25,$H$25*0.9825,VLOOKUP(C35,[1]Taux!$B$2:$F$58,2,)) -> totalite | F35: 2,628.44 | G35: =VLOOKUP(B35,[1]Taux!$A$1:$F$58,5,) ->  | J35: =VLOOKUP(B35,[1]Taux!$A$1:$F$58,6,) -> -5.250% | K35: -138.00
B36: pe1 | C36: =VLOOKUP(B36,[1]Taux!$A$1:$F$58,2,) -> Assurance chômage TA + TB | E36: =IF(VLOOKUP(C36,[1]Taux!$B$2:$F$58,2,)=98.25,$H$25*0.9825,VLOOKUP(C36,[1]Taux!$B$2:$F$58,2,)) -> totalite | F36: 2,628.44 | G36: =VLOOKUP(B36,[1]Taux!$A$1:$F$58,5,) -> 2.400% | I36: 63.08 | J36: =VLOOKUP(B36,[1]Taux!$A$1:$F$58,6,) -> 4.000% | K36: 105.14
B37: pe2 | C37: =VLOOKUP(B37,[1]Taux!$A$1:$F$58,2,) -> AGS (FNGS) | E37: =IF(VLOOKUP(C37,[1]Taux!$B$2:$F$58,2,)=98.25,$H$25*0.9825,VLOOKUP(C37,[1]Taux!$B$2:$F$58,2,)) -> totalite | F37: 2,628.44 | G37: =VLOOKUP(B37,[1]Taux!$A$1:$F$58,5,) ->  | J37: =VLOOKUP(B37,[1]Taux!$A$1:$F$58,6,) -> 0.300% | K37: 7.89
B38: =IF($C$11="non cadre",[1]Taux!A28,[1]Taux!A35) -> NC1 | C38: =VLOOKUP(B38,[1]Taux!$A$1:$F$58,2,) -> ARRCO Tranche 1 (Non Cadre) | E38: =IF(VLOOKUP(C38,[1]Taux!$B$2:$F$58,2,)=98.25,$H$25*0.9825,VLOOKUP(C38,[1]Taux!$B$2:$F$58,2,)) -> 3,170.00 | F38: 2,628.44 | G38: =VLOOKUP(B38,[1]Taux!$A$1:$F$58,5,) -> 3.100% | I38: 81.48 | J38: =VLOOKUP(B38,[1]Taux!$A$1:$F$58,6,) -> 4.650% | K38: 122.22 | L38: Bulletin de paie établi avec GestionVB_Paie v8.06
B39: =IF($C$11="non cadre",[1]Taux!A29,[1]Taux!A36) -> NC2 | C39: =VLOOKUP(B39,[1]Taux!$A$1:$F$58,2,) -> AGFF Tranche 1 (Non Cadre) | E39: =IF(VLOOKUP(C39,[1]Taux!$B$2:$F$58,2,)=98.25,$H$25*0.9825,VLOOKUP(C39,[1]Taux!$B$2:$F$58,2,)) -> 3,170.00 | F39: 2,628.44 | G39: =VLOOKUP(B39,[1]Taux!$A$1:$F$58,5,) -> 0.800% | I39: 21.03 | J39: =VLOOKUP(B39,[1]Taux!$A$1:$F$58,6,) -> 1.200% | K39: 31.54
B40: =IF(AND($B$39=_NC2,$H$25>PSS),_NC3,IF(AND($B$39=_CAD2,$H$25>PSS),_CAD3,IF($B$39=_CAD2,_CAD5,_PR1))) -> PR1 | C40: =VLOOKUP(B40,[1]Taux!$A$1:$F$58,2,) -> Mutuelle non cadre | E40: =IF(VLOOKUP(C40,[1]Taux!$B$2:$F$58,2,)=98.25,$H$25*0.9825,VLOOKUP(C40,[1]Taux!$B$2:$F$58,2,)) -> x | F40: 2,628.44 | G40: =VLOOKUP(B40,[1]Taux!$A$1:$F$58,5,) -> 1.813% | I40: 47.65 | J40: =VLOOKUP(B40,[1]Taux!$A$1:$F$58,6,) -> 1.483% | K40: 38.98
B41: =IF(AND($B$39=_NC2,$H$25>PSS),_NC4,IF(AND($B$39=_CAD2,$H$25>PSS),_CAD4,IF($B$39=_CAD2,_CAD6,_TA1))) -> TA1 | C41: =VLOOKUP(B41,[1]Taux!$A$1:$F$58,2,) -> Taxe d’apprentissage (hors Al-Mo) | E41: =IF(VLOOKUP(C41,[1]Taux!$B$2:$F$58,2,)=98.25,$H$25*0.9825,VLOOKUP(C41,[1]Taux!$B$2:$F$58,2,)) -> totalite | F41: 2,628.44 | G41: =VLOOKUP(B41,[1]Taux!$A$1:$F$58,5,) ->  | J41: =VLOOKUP(B41,[1]Taux!$A$1:$F$58,6,) -> 0.680% | K41: 17.87
B42: =IF(AND($B$39=_NC2,$H$25>PSS),_TA1,IF(AND($B$39=_CAD2,$H$25>PSS),_CAD6,IF($B$39=_CAD2,_CAD7,_PF1))) -> PF1 | C42: =VLOOKUP(B42,[1]Taux!$A$1:$F$58,2,) -> Participation formation (10 sal.) | E42: =IF(VLOOKUP(C42,[1]Taux!$B$2:$F$58,2,)=98.25,$H$25*0.9825,VLOOKUP(C42,[1]Taux!$B$2:$F$58,2,)) -> totalite | F42: 2,628.44 | G42: =VLOOKUP(B42,[1]Taux!$A$1:$F$58,5,) ->  | J42: =VLOOKUP(B42,[1]Taux!$A$1:$F$58,6,) -> 1.000% | K42: 26.28
B43: =IF(AND($B$39=_NC2,$H$25>PSS),_PF1,IF(AND($B$39=_CAD2,$H$25>PSS),_CAD7,IF($B$39=_CAD2,_PR2,_csg1))) -> CSG1 | C43: =VLOOKUP(B43,[1]Taux!$A$1:$F$58,2,) -> CSG non déductible | E43: =IF(VLOOKUP(C43,[1]Taux!$B$2:$F$58,2,)=98.25,$H$25*0.9825,VLOOKUP(C43,[1]Taux!$B$2:$F$58,2,)) -> 2,582.44 | F43: 2,582.44 | G43: =VLOOKUP(B43,[1]Taux!$A$1:$F$58,5,) -> 2.400% | I43: 61.98 | J43: =VLOOKUP(B43,[1]Taux!$A$1:$F$58,6,) -> 
B44: =IF(AND($B$39=_NC2,$H$25>PSS),_csg1,IF(AND($B$39=_CAD2,$H$25>PSS),_PR2,IF($B$39=_CAD2,_TA1,_CSG2))) -> CSG2 | C44: =VLOOKUP(B44,[1]Taux!$A$1:$F$58,2,) -> CSG déductible | E44: =IF(VLOOKUP(C44,[1]Taux!$B$2:$F$58,2,)=98.25,$H$25*0.9825,VLOOKUP(C44,[1]Taux!$B$2:$F$58,2,)) -> 2,582.44 | F44: 2,582.44 | G44: =VLOOKUP(B44,[1]Taux!$A$1:$F$58,5,) -> 5.100% | I44: 131.70 | J44: =VLOOKUP(B44,[1]Taux!$A$1:$F$58,6,) -> 
B45: =IF(AND($B$39=_NC2,$H$25>PSS),_CSG2,IF(AND($B$39=_CAD2,$H$25>PSS),_TA1,IF($B$39=_CAD2,_PF1,_CSG3))) -> CSG3 | C45: =VLOOKUP(B45,[1]Taux!$A$1:$F$58,2,) -> CRDS | E45: =IF(VLOOKUP(C45,[1]Taux!$B$2:$F$58,2,)=98.25,$H$25*0.9825,VLOOKUP(C45,[1]Taux!$B$2:$F$58,2,)) -> 2,582.44 | F45: 2,582.44 | G45: =VLOOKUP(B45,[1]Taux!$A$1:$F$58,5,) -> 0.500% | I45: 12.91 | J45: =VLOOKUP(B45,[1]Taux!$A$1:$F$58,6,) -> 
B46: =IF(AND($B$39=_NC2,$H$25>PSS),_CSG3,IF(AND($B$39=_CAD2,$H$25>PSS),_PF1,IF($B$39=_CAD2,_csg1," "))) ->  | C46: =VLOOKUP(B46,[1]Taux!$A$1:$F$58,2,) ->  | E46: =IF(VLOOKUP(C46,[1]Taux!$B$2:$F$58,2,)=98.25,$H$25*0.9825,VLOOKUP(C46,[1]Taux!$B$2:$F$58,2,)) -> 0.00 | F46: =IF(E46=" ","",IF(B46="CSG1",$H$25*0.9825,IF(B46="CSG2",$H$25*0.9825,IF(E46="totalite",$H$25,IF(E46<PSS,E46,IF($H$25<=PSS,$H$25,IF(AND($H$25>PSS,E46=_PSS4),$H$25-PSS,PSS))))))) -> 0.00 | G46: =VLOOKUP(B46,[1]Taux!$A$1:$F$58,5,) ->  | J46: =VLOOKUP(B46,[1]Taux!$A$1:$F$58,6,) -> 
B47: =IF(AND($B$39=_NC2,$H$25>PSS)," ",IF(AND($B$39=_CAD2,$H$25>PSS),_csg1,IF($B$39=_CAD2,_CSG2," "))) ->  | C47: =VLOOKUP(B47,[1]Taux!$A$1:$F$58,2,) ->  | E47: =IF(VLOOKUP(C47,[1]Taux!$B$2:$F$58,2,)=98.25,$H$25*0.9825,VLOOKUP(C47,[1]Taux!$B$2:$F$58,2,)) -> 0.00 | F47: =IF(E47=" ","",IF(B47="CSG1",$H$25*0.9825,IF(B47="CSG2",$H$25*0.9825,IF(E47="totalite",$H$25,IF(E47<PSS,E47,IF($H$25<=PSS,$H$25,IF(AND($H$25>PSS,E47=_PSS4),$H$25-PSS,PSS))))))) -> 0.00 | G47: =VLOOKUP(B47,[1]Taux!$A$1:$F$58,5,) ->  | J47: =VLOOKUP(B47,[1]Taux!$A$1:$F$58,6,) -> 
B48: =IF(AND($B$39=_NC2,$H$25>PSS)," ",IF(AND($B$39=_CAD2,$H$25>PSS),_CSG2,IF($B$39=_CAD2,_CSG3," "))) ->  | C48: =VLOOKUP(B48,[1]Taux!$A$1:$F$58,2,) ->  | E48: =IF(VLOOKUP(C48,[1]Taux!$B$2:$F$58,2,)=98.25,$H$25*0.9825,VLOOKUP(C48,[1]Taux!$B$2:$F$58,2,)) -> 0.00 | F48: =IF(E48=" ","",IF(B48="CSG2",$H$25*0.9825,IF(B48="CSG3",$H$25*0.9825,IF(E48="totalite",$H$25,IF(E48<PSS,E48,IF($H$25<=PSS,$H$25,IF(AND($H$25>PSS,E48=_PSS4),$H$25-PSS,PSS))))))) -> 0.00 | G48: =VLOOKUP(B48,[1]Taux!$A$1:$F$58,5,) ->  | J48: =VLOOKUP(B48,[1]Taux!$A$1:$F$58,6,) -> 
B49: =IF(AND($B$39=_NC2,$H$25>PSS)," ",IF(AND($B$39=_CAD2,$H$25>PSS),_CSG3,IF($B$39=_CAD2," "," "))) ->  | C49: =VLOOKUP(B49,[1]Taux!$A$1:$F$59,2,) ->  | E49: =IF(VLOOKUP(C49,[1]Taux!$B$2:$F$58,2,)=98.25,$H$25*0.9825,VLOOKUP(C49,[1]Taux!$B$2:$F$58,2,)) -> 0.00 | F49: =IF(E49=" "," ",IF(B49="CSG2",$H$25*0.9825,IF(B49="CSG3",$H$25*0.9825,IF(E49="totalite",$H$25,IF(E49<PSS,E49,IF($H$25<=PSS,$H$25,IF(AND($H$25>PSS,E49=_PSS4),$H$25-PSS,PSS))))))) -> 0.00 | G49: =VLOOKUP(B49,[1]Taux!$A$1:$F$59,5,) ->  | J49: =VLOOKUP(B49,[1]Taux!$A$1:$F$59,6,) -> 
C50: Total cotisations | I50: =SUM(I27:I49) -> 627.49 | K50: =SUM(K27:K49) -> 1,027.53
J53: =IF([1]Taux!B59<>"",[1]Taux!E59,"") -> 
K54: Pour vous aider à faire valoir vos droits , conservez ce bulletin de paie sans limitation de durée.
C55: Net imposable | D55: =VLOOKUP("csg1",B27:I49,8,)+K55 -> 2,062.93 | I55: Net à payer | K55: =$H$25-$I$50 -> 2,000.95
C56: Cumul année | D56: =Salaire!H35 -> 14,440.52 | I56: Cumul année | K56: =Salaire!H33 -> 14,006.67

Sheet aoû
A2: =Ident!B2 -> calindoudou | J2: ="BULLETIN DE PAIE " -> BULLETIN DE PAIE
A3: =Ident!B3 -> 0 | G3: =EOMONTH(jui!G3,0)+1 -> 2015-07-01 | J3: =EOMONTH(G3,0) -> 2015-07-31
A4: =Ident!B4 -> 00000
A5: =Ident!B5 &" " & Ident!B6 ->  | G5: =+"SIRET: " &Ident!B10 & " APE : " &Ident!B11 -> SIRET: APE :
G6: ="URSSAF :" & Ident!B12 -> URSSAF :
A8: Numéro S.S : | C8: =Ident!F8 -> 0 | G8: =CONCATENATE(Ident!F2," ",Ident!F3) -> 
A9: Emploi : | C9: =Ident!F13 -> Resp Administratif & Fin | G9: =Ident!F4 -> 0
A10: Anc : | C10: =(J3-Ident!F17)/360 -> 3 an(s).0 mois | G10: =Ident!F5 -> 0
A11: Cat : | C11: =Ident!F14 -> non cadre | G11: =CONCATENATE(Ident!F6," ",(Ident!F7)) -> 
A12: Qualité : | C12: =Ident!F9 -> 0
A13: Coef : | C13: =Ident!F10 -> 0 | G13: ="Congés " & Salaire!A1 & "-" & Salaire!A1+1 -> Congés 2015-2016 | I13: CP A-1 | J13: ="Rtt " & Salaire!A1 -> Rtt 2015
A14: Echelon : | C14: =Ident!F11 -> 0 | G14: Pris | H14: =HLOOKUP($G$3,Salaire!$B$9:$M$26,6,) -> 0.00 jr(s) | J14: Pris | K14: =HLOOKUP($G$3,Salaire!$B$9:$M$26,9,) -> 0.00
A15: =CONCATENATE(Ident!A13," ",Ident!B14) -> Convention Collective Ventes à distance sur catalogue spécialisé de produits par internet | G15: Restant | H15: =HLOOKUP($G$3,Salaire!$B$9:$M$26,17,) -> 25.58 jr(s) | I15: =HLOOKUP($G$3,Salaire!$B$9:$M$26,15,) -> 0.00 jr(s) | J15: Restant | K15: =HLOOKUP($G$3,Salaire!$B$9:$M$26,18,) -> 7.00
G16: Acquis | H16: =HLOOKUP($G$3,Salaire!$B$9:$M$26,16,) -> 2.08 jr(s) | J16: Acquis | K16: =HLOOKUP($G$3,Salaire!$B$9:$M$26,14,) -> 1.00
B18: Rub. | C18: Intitulé | D18: Nombre | F18: Base | G18: Part Salariale | J18: Part Patronale
G19: Taux | H19: Gain | I19: Retenue | J19: Taux | K19: Retenue
C20: Salaire Brut | F20: =Ident!G16 -> 151.67 | G20: =Salaire!I5 -> 17.33 | H20: =G20*F20 -> 2,628.44
C21: =IF(ISBLANK(Salaire!I13)=TRUE,"",Salaire!A13) ->  | D21: =IF(ISNA(VLOOKUP($C21,Salaire!$A$13:$M$19,9,FALSE))=TRUE,"",VLOOKUP($C21,Salaire!$A$13:$M$19,9,FALSE)) ->  | H21: =IF(D21>0,D21," ") -> 
C22: =IF(ISBLANK(Salaire!I14)=TRUE,"",Salaire!A14) ->  | D22: =IF(ISNA(VLOOKUP($C22,Salaire!$A$13:$M$19,9,FALSE))=TRUE,"",VLOOKUP($C22,Salaire!$A$13:$M$19,9,FALSE)) -> 
C23: =IF(ISBLANK(Salaire!I15)=TRUE,"",Salaire!A15) ->  | D23: =IF(ISNA(VLOOKUP($C23,Salaire!$A$13:$M$19,9,FALSE))=TRUE,"",VLOOKUP($C23,Salaire!$A$13:$M$19,9,FALSE)) ->  | G23: =IF(D23=""," ",(G20+G20*Salaire!A15/100)) ->  | H23: =IF(ISNA(VLOOKUP($C23,Salaire!$A$13:$M$19,9,FALSE))=TRUE,"",IF(OR($C23="Abs/Ind congés payés",$C23="Abs/Ind Maladie 100%")=TRUE,,IF($C23="Primes, avantages",D23,(D23*E23)+((D23*G23))))) -> 
C24: =IF(ISBLANK(Salaire!I16)=TRUE,"",Salaire!A16) ->  | D24: =IF(ISNA(VLOOKUP($C24,Salaire!$A$13:$M$19,9,FALSE))=TRUE,"",VLOOKUP($C24,Salaire!$A$13:$M$19,9,FALSE)) ->  | G24: =IF(D24=""," ",G20*Salaire!I4) ->  | I24: =IF(ISNA(VLOOKUP($C24,Salaire!$A$13:$M$19,9,FALSE))=TRUE,"",IF(OR($C24="Abs/Ind congés payés",$C24="Abs/Ind Maladie 100%")=FALSE,,IF($C24="Primes, avantages",D24,D24*G24))) -> 
C25: Total brut Mensuel | H25: =SUM(H20:H24)-SUM(I21:I24) -> 2,628.44
B27: SS1 | C27: =VLOOKUP(B27,[1]Taux!$A$1:$F$58,2,) -> Maladie, Maternité , Veuvage | E27: =IF(VLOOKUP(C27,[1]Taux!$B$2:$F$58,2,)=98.25,$H$25*0.9825,VLOOKUP(C27,[1]Taux!$B$2:$F$58,2,)) -> totalite | F27: =IF(E27=" ","",IF(E27="totalite",$H$25,IF(E27<PSS,E27,IF($H$25<=PSS,$H$25,IF(AND($H$25>PSS,E27=_PSS4),$H$25-PSS,PSS))))) -> 2,628.44 | G27: =VLOOKUP(B27,[1]Taux!$A$1:$F$58,5,) -> 0.750% | I27: =IF(G27=" "," ",F27*G27) -> 19.71 | J27: =VLOOKUP(B27,[1]Taux!$A$1:$F$58,6,) -> 12.800% | K27: =IF(J27=" "," ",F27*J27) -> 336.44
B28: ss4 | C28: =VLOOKUP(B28,[1]Taux!$A$1:$F$58,2,) -> Allocations Familiales | E28: =IF(VLOOKUP(C28,[1]Taux!$B$2:$F$58,2,)=98.25,$H$25*0.9825,VLOOKUP(C28,[1]Taux!$B$2:$F$58,2,)) -> totalite | F28: 2,628.44 | G28: =VLOOKUP(B28,[1]Taux!$A$1:$F$58,5,) ->  | I28: =IF(G28=" "," ",F28*G28) ->  | J28: =VLOOKUP(B28,[1]Taux!$A$1:$F$58,6,) -> 5.250% | K28: 137.99
B29: SS2 | C29: =VLOOKUP(B29,[1]Taux!$A$1:$F$58,2,) -> Vieillesse Déplafonnée | E29: =IF(VLOOKUP(C29,[1]Taux!$B$2:$F$58,2,)=98.25,$H$25*0.9825,VLOOKUP(C29,[1]Taux!$B$2:$F$58,2,)) -> totalite | F29: 2,628.44 | G29: =VLOOKUP(B29,[1]Taux!$A$1:$F$58,5,) -> 0.300% | I29: 7.89 | J29: =VLOOKUP(B29,[1]Taux!$A$1:$F$58,6,) -> 1.800% | K29: 47.31
B30: SS3 | C30: =VLOOKUP(B30,[1]Taux!$A$1:$F$58,2,) -> Vieillesse Plafonnée | E30: =IF(VLOOKUP(C30,[1]Taux!$B$2:$F$58,2,)=98.25,$H$25*0.9825,VLOOKUP(C30,[1]Taux!$B$2:$F$58,2,)) -> 3,170.00 | F30: 2,628.44 | G30: =VLOOKUP(B30,[1]Taux!$A$1:$F$58,5,) -> 6.850% | I30: 180.05 | J30: =VLOOKUP(B30,[1]Taux!$A$1:$F$58,6,) -> 8.500% | K30: 223.42
B31: SS5 | C31: =VLOOKUP(B31,[1]Taux!$A$1:$F$58,2,) -> FNAL (tous employeurs) | E31: =IF(VLOOKUP(C31,[1]Taux!$B$2:$F$58,2,)=98.25,$H$25*0.9825,VLOOKUP(C31,[1]Taux!$B$2:$F$58,2,)) -> 3,170.00 | F31: 2,628.44 | G31: =VLOOKUP(B31,[1]Taux!$A$1:$F$58,5,) ->  | J31: =VLOOKUP(B31,[1]Taux!$A$1:$F$58,6,) -> 0.100% | K31: 2.63
B32: SS6 | C32: =VLOOKUP(B32,[1]Taux!$A$1:$F$58,2,) -> FNAL supplémentaire TA | E32: =IF(VLOOKUP(C32,[1]Taux!$B$2:$F$58,2,)=98.25,$H$25*0.9825,VLOOKUP(C32,[1]Taux!$B$2:$F$58,2,)) -> 3,170.00 | F32: 2,628.44 | G32: =VLOOKUP(B32,[1]Taux!$A$1:$F$58,5,) ->  | J32: =VLOOKUP(B32,[1]Taux!$A$1:$F$58,6,) -> 0.400% | K32: 10.51
B33: SS8 | C33: =VLOOKUP(B33,[1]Taux!$A$1:$F$58,2,) -> Contribution solidarité | E33: =IF(VLOOKUP(C33,[1]Taux!$B$2:$F$58,2,)=98.25,$H$25*0.9825,VLOOKUP(C33,[1]Taux!$B$2:$F$58,2,)) -> totalite | F33: 2,628.44 | G33: =VLOOKUP(B33,[1]Taux!$A$1:$F$58,5,) ->  | J33: =VLOOKUP(B33,[1]Taux!$A$1:$F$58,6,) -> 0.300% | K33: 7.89
B34: ss11 | C34: =VLOOKUP(B34,[1]Taux!$A$1:$F$58,2,) -> Accidents du Travail | E34: =IF(VLOOKUP(C34,[1]Taux!$B$2:$F$58,2,)=98.25,$H$25*0.9825,VLOOKUP(C34,[1]Taux!$B$2:$F$58,2,)) -> totalite | F34: 2,628.44 | G34: =VLOOKUP(B34,[1]Taux!$A$1:$F$58,5,) ->  | J34: =VLOOKUP(B34,[1]Taux!$A$1:$F$58,6,) -> 1.880% | K34: 49.41
B35: LF1 | C35: =VLOOKUP(B35,[1]Taux!$A$1:$F$58,2,) -> Loi Fillon | E35: =IF(VLOOKUP(C35,[1]Taux!$B$2:$F$58,2,)=98.25,$H$25*0.9825,VLOOKUP(C35,[1]Taux!$B$2:$F$58,2,)) -> totalite | F35: 2,628.44 | G35: =VLOOKUP(B35,[1]Taux!$A$1:$F$58,5,) ->  | J35: =VLOOKUP(B35,[1]Taux!$A$1:$F$58,6,) -> -5.250% | K35: -138.00
B36: pe1 | C36: =VLOOKUP(B36,[1]Taux!$A$1:$F$58,2,) -> Assurance chômage TA + TB | E36: =IF(VLOOKUP(C36,[1]Taux!$B$2:$F$58,2,)=98.25,$H$25*0.9825,VLOOKUP(C36,[1]Taux!$B$2:$F$58,2,)) -> totalite | F36: 2,628.44 | G36: =VLOOKUP(B36,[1]Taux!$A$1:$F$58,5,) -> 2.400% | I36: 63.08 | J36: =VLOOKUP(B36,[1]Taux!$A$1:$F$58,6,) -> 4.000% | K36: 105.14
B37: pe2 | C37: =VLOOKUP(B37,[1]Taux!$A$1:$F$58,2,) -> AGS (FNGS) | E37: =IF(VLOOKUP(C37,[1]Taux!$B$2:$F$58,2,)=98.25,$H$25*0.9825,VLOOKUP(C37,[1]Taux!$B$2:$F$58,2,)) -> totalite | F37: 2,628.44 | G37: =VLOOKUP(B37,[1]Taux!$A$1:$F$58,5,) ->  | J37: =VLOOKUP(B37,[1]Taux!$A$1:$F$58,6,) -> 0.300% | K37: 7.89
B38: =IF($C$11="non cadre",[1]Taux!A28,[1]Taux!A35) -> NC1 | C38: =VLOOKUP(B38,[1]Taux!$A$1:$F$58,2,) -> ARRCO Tranche 1 (Non Cadre) | E38: =IF(VLOOKUP(C38,[1]Taux!$B$2:$F$58,2,)=98.25,$H$25*0.9825,VLOOKUP(C38,[1]Taux!$B$2:$F$58,2,)) -> 3,170.00 | F38: 2,628.44 | G38: =VLOOKUP(B38,[1]Taux!$A$1:$F$58,5,) -> 3.100% | I38: 81.48 | J38: =VLOOKUP(B38,[1]Taux!$A$1:$F$58,6,) -> 4.650% | K38: 122.22 | L38: Bulletin de paie établi avec GestionVB_Paie v8.06
B39: =IF($C$11="non cadre",[1]Taux!A29,[1]Taux!A36) -> NC2 | C39: =VLOOKUP(B39,[1]Taux!$A$1:$F$58,2,) -> AGFF Tranche 1 (Non Cadre) | E39: =IF(VLOOKUP(C39,[1]Taux!$B$2:$F$58,2,)=98.25,$H$25*0.9825,VLOOKUP(C39,[1]Taux!$B$2:$F$58,2,)) -> 3,170.00 | F39: 2,628.44 | G39: =VLOOKUP(B39,[1]Taux!$A$1:$F$58,5,) -> 0.800% | I39: 21.03 | J39: =VLOOKUP(B39,[1]Taux!$A$1:$F$58,6,) -> 1.200% | K39: 31.54
B40: =IF(AND($B$39=_NC2,$H$25>PSS),_NC3,IF(AND($B$39=_CAD2,$H$25>PSS),_CAD3,IF($B$39=_CAD2,_CAD5,_PR1))) -> PR1 | C40: =VLOOKUP(B40,[1]Taux!$A$1:$F$58,2,) -> Mutuelle non cadre | E40: =IF(VLOOKUP(C40,[1]Taux!$B$2:$F$58,2,)=98.25,$H$25*0.9825,VLOOKUP(C40,[1]Taux!$B$2:$F$58,2,)) -> x | F40: 2,628.44 | G40: =VLOOKUP(B40,[1]Taux!$A$1:$F$58,5,) -> 1.813% | I40: 47.65 | J40: =VLOOKUP(B40,[1]Taux!$A$1:$F$58,6,) -> 1.483% | K40: 38.98
B41: =IF(AND($B$39=_NC2,$H$25>PSS),_NC4,IF(AND($B$39=_CAD2,$H$25>PSS),_CAD4,IF($B$39=_CAD2,_CAD6,_TA1))) -> TA1 | C41: =VLOOKUP(B41,[1]Taux!$A$1:$F$58,2,) -> Taxe d’apprentissage (hors Al-Mo) | E41: =IF(VLOOKUP(C41,[1]Taux!$B$2:$F$58,2,)=98.25,$H$25*0.9825,VLOOKUP(C41,[1]Taux!$B$2:$F$58,2,)) -> totalite | F41: 2,628.44 | G41: =VLOOKUP(B41,[1]Taux!$A$1:$F$58,5,) ->  | J41: =VLOOKUP(B41,[1]Taux!$A$1:$F$58,6,) -> 0.680% | K41: 17.87
B42: =IF(AND($B$39=_NC2,$H$25>PSS),_TA1,IF(AND($B$39=_CAD2,$H$25>PSS),_CAD6,IF($B$39=_CAD2,_CAD7,_PF1))) -> PF1 | C42: =VLOOKUP(B42,[1]Taux!$A$1:$F$58,2,) -> Participation formation (10 sal.) | E42: =IF(VLOOKUP(C42,[1]Taux!$B$2:$F$58,2,)=98.25,$H$25*0.9825,VLOOKUP(C42,[1]Taux!$B$2:$F$58,2,)) -> totalite | F42: 2,628.44 | G42: =VLOOKUP(B42,[1]Taux!$A$1:$F$58,5,) ->  | J42: =VLOOKUP(B42,[1]Taux!$A$1:$F$58,6,) -> 1.000% | K42: 26.28
B43: =IF(AND($B$39=_NC2,$H$25>PSS),_PF1,IF(AND($B$39=_CAD2,$H$25>PSS),_CAD7,IF($B$39=_CAD2,_PR2,_csg1))) -> CSG1 | C43: =VLOOKUP(B43,[1]Taux!$A$1:$F$58,2,) -> CSG non déductible | E43: =IF(VLOOKUP(C43,[1]Taux!$B$2:$F$58,2,)=98.25,$H$25*0.9825,VLOOKUP(C43,[1]Taux!$B$2:$F$58,2,)) -> 2,582.44 | F43: 2,582.44 | G43: =VLOOKUP(B43,[1]Taux!$A$1:$F$58,5,) -> 2.400% | I43: 61.98 | J43: =VLOOKUP(B43,[1]Taux!$A$1:$F$58,6,) -> 
B44: =IF(AND($B$39=_NC2,$H$25>PSS),_csg1,IF(AND($B$39=_CAD2,$H$25>PSS),_PR2,IF($B$39=_CAD2,_TA1,_CSG2))) -> CSG2 | C44: =VLOOKUP(B44,[1]Taux!$A$1:$F$58,2,) -> CSG déductible | E44: =IF(VLOOKUP(C44,[1]Taux!$B$2:$F$58,2,)=98.25,$H$25*0.9825,VLOOKUP(C44,[1]Taux!$B$2:$F$58,2,)) -> 2,582.44 | F44: 2,582.44 | G44: =VLOOKUP(B44,[1]Taux!$A$1:$F$58,5,) -> 5.100% | I44: 131.70 | J44: =VLOOKUP(B44,[1]Taux!$A$1:$F$58,6,) -> 
B45: =IF(AND($B$39=_NC2,$H$25>PSS),_CSG2,IF(AND($B$39=_CAD2,$H$25>PSS),_TA1,IF($B$39=_CAD2,_PF1,_CSG3))) -> CSG3 | C45: =VLOOKUP(B45,[1]Taux!$A$1:$F$58,2,) -> CRDS | E45: =IF(VLOOKUP(C45,[1]Taux!$B$2:$F$58,2,)=98.25,$H$25*0.9825,VLOOKUP(C45,[1]Taux!$B$2:$F$58,2,)) -> 2,582.44 | F45: 2,582.44 | G45: =VLOOKUP(B45,[1]Taux!$A$1:$F$58,5,) -> 0.500% | I45: 12.91 | J45: =VLOOKUP(B45,[1]Taux!$A$1:$F$58,6,) -> 
B46: =IF(AND($B$39=_NC2,$H$25>PSS),_CSG3,IF(AND($B$39=_CAD2,$H$25>PSS),_PF1,IF($B$39=_CAD2,_csg1," "))) ->  | C46: =VLOOKUP(B46,[1]Taux!$A$1:$F$58,2,) ->  | E46: =IF(VLOOKUP(C46,[1]Taux!$B$2:$F$58,2,)=98.25,$H$25*0.9825,VLOOKUP(C46,[1]Taux!$B$2:$F$58,2,)) -> 0.00 | F46: =IF(E46=" ","",IF(B46="CSG1",$H$25*0.9825,IF(B46="CSG2",$H$25*0.9825,IF(E46="totalite",$H$25,IF(E46<PSS,E46,IF($H$25<=PSS,$H$25,IF(AND($H$25>PSS,E46=_PSS4),$H$25-PSS,PSS))))))) -> 0.00 | G46: =VLOOKUP(B46,[1]Taux!$A$1:$F$58,5,) ->  | J46: =VLOOKUP(B46,[1]Taux!$A$1:$F$58,6,) -> 
B47: =IF(AND($B$39=_NC2,$H$25>PSS)," ",IF(AND($B$39=_CAD2,$H$25>PSS),_csg1,IF($B$39=_CAD2,_CSG2," "))) ->  | C47: =VLOOKUP(B47,[1]Taux!$A$1:$F$58,2,) ->  | E47: =IF(VLOOKUP(C47,[1]Taux!$B$2:$F$58,2,)=98.25,$H$25*0.9825,VLOOKUP(C47,[1]Taux!$B$2:$F$58,2,)) -> 0.00 | F47: =IF(E47=" ","",IF(B47="CSG1",$H$25*0.9825,IF(B47="CSG2",$H$25*0.9825,IF(E47="totalite",$H$25,IF(E47<PSS,E47,IF($H$25<=PSS,$H$25,IF(AND($H$25>PSS,E47=_PSS4),$H$25-PSS,PSS))))))) -> 0.00 | G47: =VLOOKUP(B47,[1]Taux!$A$1:$F$58,5,) ->  | J47: =VLOOKUP(B47,[1]Taux!$A$1:$F$58,6,) -> 
B48: =IF(AND($B$39=_NC2,$H$25>PSS)," ",IF(AND($B$39=_CAD2,$H$25>PSS),_CSG2,IF($B$39=_CAD2,_CSG3," "))) ->  | C48: =VLOOKUP(B48,[1]Taux!$A$1:$F$58,2,) ->  | E48: =IF(VLOOKUP(C48,[1]Taux!$B$2:$F$58,2,)=98.25,$H$25*0.9825,VLOOKUP(C48,[1]Taux!$B$2:$F$58,2,)) -> 0.00 | F48: =IF(E48=" ","",IF(B48="CSG2",$H$25*0.9825,IF(B48="CSG3",$H$25*0.9825,IF(E48="totalite",$H$25,IF(E48<PSS,E48,IF($H$25<=PSS,$H$25,IF(AND($H$25>PSS,E48=_PSS4),$H$25-PSS,PSS))))))) -> 0.00 | G48: =VLOOKUP(B48,[1]Taux!$A$1:$F$58,5,) ->  | J48: =VLOOKUP(B48,[1]Taux!$A$1:$F$58,6,) -> 
B49: =IF(AND($B$39=_NC2,$H$25>PSS)," ",IF(AND($B$39=_CAD2,$H$25>PSS),_CSG3,IF($B$39=_CAD2," "," "))) ->  | C49: =VLOOKUP(B49,[1]Taux!$A$1:$F$59,2,) ->  | E49: =IF(VLOOKUP(C49,[1]Taux!$B$2:$F$58,2,)=98.25,$H$25*0.9825,VLOOKUP(C49,[1]Taux!$B$2:$F$58,2,)) -> 0.00 | F49: =IF(E49=" "," ",IF(B49="CSG2",$H$25*0.9825,IF(B49="CSG3",$H$25*0.9825,IF(E49="totalite",$H$25,IF(E49<PSS,E49,IF($H$25<=PSS,$H$25,IF(AND($H$25>PSS,E49=_PSS4),$H$25-PSS,PSS))))))) -> 0.00 | G49: =VLOOKUP(B49,[1]Taux!$A$1:$F$59,5,) ->  | J49: =VLOOKUP(B49,[1]Taux!$A$1:$F$59,6,) -> 
C50: Total cotisations | I50: =SUM(I27:I49) -> 627.49 | K50: =SUM(K27:K49) -> 1,027.53
J53: =IF([1]Taux!B59<>"",[1]Taux!E59,"") -> 
K54: Pour vous aider à faire valoir vos droits , conservez ce bulletin de paie sans limitation de durée.
C55: Net imposable | D55: =VLOOKUP("csg1",B27:I49,8,)+K55 -> 2,062.93 | I55: Net à payer | K55: =$H$25-$I$50 -> 2,000.95
C56: Cumul année | D56: =Salaire!I35 -> 16,503.46 | I56: Cumul année | K56: =Salaire!I33 -> 16,007.63

Sheet sep
A2: =Ident!B2 -> calindoudou | J2: ="BULLETIN DE PAIE " -> BULLETIN DE PAIE
A3: =Ident!B3 -> 0 | G3: =EOMONTH(aoû!G3,0)+1 -> 2015-08-01 | J3: =EOMONTH(G3,0) -> 2015-08-31
A4: =Ident!B4 -> 00000
A5: =Ident!B5 &" " & Ident!B6 ->  | G5: =+"SIRET: " &Ident!B10 & " APE : " &Ident!B11 -> SIRET: APE :
G6: ="URSSAF :" & Ident!B12 -> URSSAF :
A8: Numéro S.S : | C8: =Ident!F8 -> 0 | G8: =CONCATENATE(Ident!F2," ",Ident!F3) -> 
A9: Emploi : | C9: =Ident!F13 -> Resp Administratif & Fin | G9: =Ident!F4 -> 0
A10: Anc : | C10: =(J3-Ident!F17)/360 -> 3 an(s).0 mois | G10: =Ident!F5 -> 0
A11: Cat : | C11: =Ident!F14 -> non cadre | G11: =CONCATENATE(Ident!F6," ",(Ident!F7)) -> 
A12: Qualité : | C12: =Ident!F9 -> 0
A13: Coef : | C13: =Ident!F10 -> 0 | G13: ="Congés " & Salaire!A1 & "-" & Salaire!A1+1 -> Congés 2015-2016 | I13: CP A-1 | J13: ="Rtt " & Salaire!A1 -> Rtt 2015
A14: Echelon : | C14: =Ident!F11 -> 0 | G14: Pris | H14: =HLOOKUP($G$3,Salaire!$B$9:$M$26,6,) -> 0.00 jr(s) | J14: Pris | K14: =HLOOKUP($G$3,Salaire!$B$9:$M$26,9,) -> 0.00
A15: =CONCATENATE(Ident!A13," ",Ident!B14) -> Convention Collective Ventes à distance sur catalogue spécialisé de produits par internet | G15: Restant | H15: =HLOOKUP($G$3,Salaire!$B$9:$M$26,17,) -> 27.67 jr(s) | I15: =HLOOKUP($G$3,Salaire!$B$9:$M$26,15,) -> 0.00 jr(s) | J15: Restant | K15: =HLOOKUP($G$3,Salaire!$B$9:$M$26,18,) -> 8.00
G16: Acquis | H16: =HLOOKUP($G$3,Salaire!$B$9:$M$26,16,) -> 2.08 jr(s) | J16: Acquis | K16: =HLOOKUP($G$3,Salaire!$B$9:$M$26,14,) -> 1.00
B18: Rub. | C18: Intitulé | D18: Nombre | F18: Base | G18: Part Salariale | J18: Part Patronale
G19: Taux | H19: Gain | I19: Retenue | J19: Taux | K19: Retenue
C20: Salaire Brut | F20: =Ident!G16 -> 151.67 | G20: =Salaire!J5 -> 17.33 | H20: =G20*F20 -> 2,628.44
C21: =IF(ISBLANK(Salaire!J13)=TRUE,"",Salaire!A13) ->  | D21: =IF(ISNA(VLOOKUP($C21,Salaire!$A$13:$M$19,10,FALSE))=TRUE,"",VLOOKUP($C21,Salaire!$A$13:$M$19,10,FALSE)) ->  | H21: =IF(D21>0,D21," ") -> 
C22: =IF(ISBLANK(Salaire!J14)=TRUE,"",Salaire!A14) ->  | D22: =IF(ISNA(VLOOKUP($C22,Salaire!$A$13:$M$19,10,FALSE))=TRUE,"",VLOOKUP($C22,Salaire!$A$13:$M$19,10,FALSE)) -> 
C23: =IF(ISBLANK(Salaire!J15)=TRUE,"",Salaire!A15) ->  | D23: =IF(ISNA(VLOOKUP($C23,Salaire!$A$13:$M$19,10,FALSE))=TRUE,"",VLOOKUP($C23,Salaire!$A$13:$M$19,10,FALSE)) ->  | G23: =IF(D23=""," ",(G20+G20*Salaire!A15/100)) ->  | H23: =IF(ISNA(VLOOKUP($C23,Salaire!$A$13:$M$19,10,FALSE))=TRUE,"",IF(OR($C23="Abs/Ind congés payés",$C23="Abs/Ind Maladie 100%")=TRUE,,IF($C23="Primes, avantages",D23,(D23*E23)+((D23*G23))))) -> 
C24: =IF(ISBLANK(Salaire!J16)=TRUE,"",Salaire!A16) ->  | D24: =IF(ISNA(VLOOKUP($C24,Salaire!$A$13:$M$19,10,FALSE))=TRUE,"",VLOOKUP($C24,Salaire!$A$13:$M$19,10,FALSE)) ->  | G24: =IF(D24=""," ",G20*Salaire!J4) ->  | I24: =IF(ISNA(VLOOKUP($C24,Salaire!$A$13:$M$19,10,FALSE))=TRUE,"",IF(OR($C24="Abs/Ind congés payés",$C24="Abs/Ind Maladie 100%")=FALSE,,IF($C24="Primes, avantages",D24,D24*G24))) -> 
C25: Total brut Mensuel | H25: =SUM(H20:H24)-SUM(I21:I24) -> 2,628.44
B27: SS1 | C27: =VLOOKUP(B27,[1]Taux!$A$1:$F$58,2,) -> Maladie, Maternité , Veuvage | E27: =IF(VLOOKUP(C27,[1]Taux!$B$2:$F$58,2,)=98.25,$H$25*0.9825,VLOOKUP(C27,[1]Taux!$B$2:$F$58,2,)) -> totalite | F27: =IF(E27=" ","",IF(E27="totalite",$H$25,IF(E27<PSS,E27,IF($H$25<=PSS,$H$25,IF(AND($H$25>PSS,E27=_PSS4),$H$25-PSS,PSS))))) -> 2,628.44 | G27: =VLOOKUP(B27,[1]Taux!$A$1:$F$58,5,) -> 0.750% | I27: =IF(G27=" "," ",F27*G27) -> 19.71 | J27: =VLOOKUP(B27,[1]Taux!$A$1:$F$58,6,) -> 12.800% | K27: =IF(J27=" "," ",F27*J27) -> 336.44
B28: ss4 | C28: =VLOOKUP(B28,[1]Taux!$A$1:$F$58,2,) -> Allocations Familiales | E28: =IF(VLOOKUP(C28,[1]Taux!$B$2:$F$58,2,)=98.25,$H$25*0.9825,VLOOKUP(C28,[1]Taux!$B$2:$F$58,2,)) -> totalite | F28: 2,628.44 | G28: =VLOOKUP(B28,[1]Taux!$A$1:$F$58,5,) ->  | I28: =IF(G28=" "," ",F28*G28) ->  | J28: =VLOOKUP(B28,[1]Taux!$A$1:$F$58,6,) -> 5.250% | K28: 137.99
B29: SS2 | C29: =VLOOKUP(B29,[1]Taux!$A$1:$F$58,2,) -> Vieillesse Déplafonnée | E29: =IF(VLOOKUP(C29,[1]Taux!$B$2:$F$58,2,)=98.25,$H$25*0.9825,VLOOKUP(C29,[1]Taux!$B$2:$F$58,2,)) -> totalite | F29: 2,628.44 | G29: =VLOOKUP(B29,[1]Taux!$A$1:$F$58,5,) -> 0.300% | I29: 7.89 | J29: =VLOOKUP(B29,[1]Taux!$A$1:$F$58,6,) -> 1.800% | K29: 47.31
B30: SS3 | C30: =VLOOKUP(B30,[1]Taux!$A$1:$F$58,2,) -> Vieillesse Plafonnée | E30: =IF(VLOOKUP(C30,[1]Taux!$B$2:$F$58,2,)=98.25,$H$25*0.9825,VLOOKUP(C30,[1]Taux!$B$2:$F$58,2,)) -> 3,170.00 | F30: 2,628.44 | G30: =VLOOKUP(B30,[1]Taux!$A$1:$F$58,5,) -> 6.850% | I30: 180.05 | J30: =VLOOKUP(B30,[1]Taux!$A$1:$F$58,6,) -> 8.500% | K30: 223.42
B31: SS5 | C31: =VLOOKUP(B31,[1]Taux!$A$1:$F$58,2,) -> FNAL (tous employeurs) | E31: =IF(VLOOKUP(C31,[1]Taux!$B$2:$F$58,2,)=98.25,$H$25*0.9825,VLOOKUP(C31,[1]Taux!$B$2:$F$58,2,)) -> 3,170.00 | F31: 2,628.44 | G31: =VLOOKUP(B31,[1]Taux!$A$1:$F$58,5,) ->  | J31: =VLOOKUP(B31,[1]Taux!$A$1:$F$58,6,) -> 0.100% | K31: 2.63
B32: SS6 | C32: =VLOOKUP(B32,[1]Taux!$A$1:$F$58,2,) -> FNAL supplémentaire TA | E32: =IF(VLOOKUP(C32,[1]Taux!$B$2:$F$58,2,)=98.25,$H$25*0.9825,VLOOKUP(C32,[1]Taux!$B$2:$F$58,2,)) -> 3,170.00 | F32: 2,628.44 | G32: =VLOOKUP(B32,[1]Taux!$A$1:$F$58,5,) ->  | J32: =VLOOKUP(B32,[1]Taux!$A$1:$F$58,6,) -> 0.400% | K32: 10.51
B33: SS8 | C33: =VLOOKUP(B33,[1]Taux!$A$1:$F$58,2,) -> Contribution solidarité | E33: =IF(VLOOKUP(C33,[1]Taux!$B$2:$F$58,2,)=98.25,$H$25*0.9825,VLOOKUP(C33,[1]Taux!$B$2:$F$58,2,)) -> totalite | F33: 2,628.44 | G33: =VLOOKUP(B33,[1]Taux!$A$1:$F$58,5,) ->  | J33: =VLOOKUP(B33,[1]Taux!$A$1:$F$58,6,) -> 0.300% | K33: 7.89
B34: ss11 | C34: =VLOOKUP(B34,[1]Taux!$A$1:$F$58,2,) -> Accidents du Travail | E34: =IF(VLOOKUP(C34,[1]Taux!$B$2:$F$58,2,)=98.25,$H$25*0.9825,VLOOKUP(C34,[1]Taux!$B$2:$F$58,2,)) -> totalite | F34: 2,628.44 | G34: =VLOOKUP(B34,[1]Taux!$A$1:$F$58,5,) ->  | J34: =VLOOKUP(B34,[1]Taux!$A$1:$F$58,6,) -> 1.880% | K34: 49.41
B35: LF1 | C35: =VLOOKUP(B35,[1]Taux!$A$1:$F$58,2,) -> Loi Fillon | E35: =IF(VLOOKUP(C35,[1]Taux!$B$2:$F$58,2,)=98.25,$H$25*0.9825,VLOOKUP(C35,[1]Taux!$B$2:$F$58,2,)) -> totalite | F35: 2,628.44 | G35: =VLOOKUP(B35,[1]Taux!$A$1:$F$58,5,) ->  | J35: =VLOOKUP(B35,[1]Taux!$A$1:$F$58,6,) -> -5.250% | K35: -138.00
B36: pe1 | C36: =VLOOKUP(B36,[1]Taux!$A$1:$F$58,2,) -> Assurance chômage TA + TB | E36: =IF(VLOOKUP(C36,[1]Taux!$B$2:$F$58,2,)=98.25,$H$25*0.9825,VLOOKUP(C36,[1]Taux!$B$2:$F$58,2,)) -> totalite | F36: 2,628.44 | G36: =VLOOKUP(B36,[1]Taux!$A$1:$F$58,5,) -> 2.400% | I36: 63.08 | J36: =VLOOKUP(B36,[1]Taux!$A$1:$F$58,6,) -> 4.000% | K36: 105.14
B37: pe2 | C37: =VLOOKUP(B37,[1]Taux!$A$1:$F$58,2,) -> AGS (FNGS) | E37: =IF(VLOOKUP(C37,[1]Taux!$B$2:$F$58,2,)=98.25,$H$25*0.9825,VLOOKUP(C37,[1]Taux!$B$2:$F$58,2,)) -> totalite | F37: 2,628.44 | G37: =VLOOKUP(B37,[1]Taux!$A$1:$F$58,5,) ->  | J37: =VLOOKUP(B37,[1]Taux!$A$1:$F$58,6,) -> 0.300% | K37: 7.89
B38: =IF($C$11="non cadre",[1]Taux!A28,[1]Taux!A35) -> NC1 | C38: =VLOOKUP(B38,[1]Taux!$A$1:$F$58,2,) -> ARRCO Tranche 1 (Non Cadre) | E38: =IF(VLOOKUP(C38,[1]Taux!$B$2:$F$58,2,)=98.25,$H$25*0.9825,VLOOKUP(C38,[1]Taux!$B$2:$F$58,2,)) -> 3,170.00 | F38: 2,628.44 | G38: =VLOOKUP(B38,[1]Taux!$A$1:$F$58,5,) -> 3.100% | I38: 81.48 | J38: =VLOOKUP(B38,[1]Taux!$A$1:$F$58,6,) -> 4.650% | K38: 122.22 | L38: Bulletin de paie établi avec GestionVB_Paie v8.06
B39: =IF($C$11="non cadre",[1]Taux!A29,[1]Taux!A36) -> NC2 | C39: =VLOOKUP(B39,[1]Taux!$A$1:$F$58,2,) -> AGFF Tranche 1 (Non Cadre) | E39: =IF(VLOOKUP(C39,[1]Taux!$B$2:$F$58,2,)=98.25,$H$25*0.9825,VLOOKUP(C39,[1]Taux!$B$2:$F$58,2,)) -> 3,170.00 | F39: 2,628.44 | G39: =VLOOKUP(B39,[1]Taux!$A$1:$F$58,5,) -> 0.800% | I39: 21.03 | J39: =VLOOKUP(B39,[1]Taux!$A$1:$F$58,6,) -> 1.200% | K39: 31.54
B40: =IF(AND($B$39=_NC2,$H$25>PSS),_NC3,IF(AND($B$39=_CAD2,$H$25>PSS),_CAD3,IF($B$39=_CAD2,_CAD5,_PR1))) -> PR1 | C40: =VLOOKUP(B40,[1]Taux!$A$1:$F$58,2,) -> Mutuelle non cadre | E40: =IF(VLOOKUP(C40,[1]Taux!$B$2:$F$58,2,)=98.25,$H$25*0.9825,VLOOKUP(C40,[1]Taux!$B$2:$F$58,2,)) -> x | F40: 2,628.44 | G40: =VLOOKUP(B40,[1]Taux!$A$1:$F$58,5,) -> 1.813% | I40: 47.65 | J40: =VLOOKUP(B40,[1]Taux!$A$1:$F$58,6,) -> 1.483% | K40: 38.98
B41: =IF(AND($B$39=_NC2,$H$25>PSS),_NC4,IF(AND($B$39=_CAD2,$H$25>PSS),_CAD4,IF($B$39=_CAD2,_CAD6,_TA1))) -> TA1 | C41: =VLOOKUP(B41,[1]Taux!$A$1:$F$58,2,) -> Taxe d’apprentissage (hors Al-Mo) | E41: =IF(VLOOKUP(C41,[1]Taux!$B$2:$F$58,2,)=98.25,$H$25*0.9825,VLOOKUP(C41,[1]Taux!$B$2:$F$58,2,)) -> totalite | F41: 2,628.44 | G41: =VLOOKUP(B41,[1]Taux!$A$1:$F$58,5,) ->  | J41: =VLOOKUP(B41,[1]Taux!$A$1:$F$58,6,) -> 0.680% | K41: 17.87
B42: =IF(AND($B$39=_NC2,$H$25>PSS),_TA1,IF(AND($B$39=_CAD2,$H$25>PSS),_CAD6,IF($B$39=_CAD2,_CAD7,_PF1))) -> PF1 | C42: =VLOOKUP(B42,[1]Taux!$A$1:$F$58,2,) -> Participation formation (10 sal.) | E42: =IF(VLOOKUP(C42,[1]Taux!$B$2:$F$58,2,)=98.25,$H$25*0.9825,VLOOKUP(C42,[1]Taux!$B$2:$F$58,2,)) -> totalite | F42: 2,628.44 | G42: =VLOOKUP(B42,[1]Taux!$A$1:$F$58,5,) ->  | J42: =VLOOKUP(B42,[1]Taux!$A$1:$F$58,6,) -> 1.000% | K42: 26.28
B43: =IF(AND($B$39=_NC2,$H$25>PSS),_PF1,IF(AND($B$39=_CAD2,$H$25>PSS),_CAD7,IF($B$39=_CAD2,_PR2,_csg1))) -> CSG1 | C43: =VLOOKUP(B43,[1]Taux!$A$1:$F$58,2,) -> CSG non déductible | E43: =IF(VLOOKUP(C43,[1]Taux!$B$2:$F$58,2,)=98.25,$H$25*0.9825,VLOOKUP(C43,[1]Taux!$B$2:$F$58,2,)) -> 2,582.44 | F43: 2,582.44 | G43: =VLOOKUP(B43,[1]Taux!$A$1:$F$58,5,) -> 2.400% | I43: 61.98 | J43: =VLOOKUP(B43,[1]Taux!$A$1:$F$58,6,) -> 
B44: =IF(AND($B$39=_NC2,$H$25>PSS),_csg1,IF(AND($B$39=_CAD2,$H$25>PSS),_PR2,IF($B$39=_CAD2,_TA1,_CSG2))) -> CSG2 | C44: =VLOOKUP(B44,[1]Taux!$A$1:$F$58,2,) -> CSG déductible | E44: =IF(VLOOKUP(C44,[1]Taux!$B$2:$F$58,2,)=98.25,$H$25*0.9825,VLOOKUP(C44,[1]Taux!$B$2:$F$58,2,)) -> 2,582.44 | F44: 2,582.44 | G44: =VLOOKUP(B44,[1]Taux!$A$1:$F$58,5,) -> 5.100% | I44: 131.70 | J44: =VLOOKUP(B44,[1]Taux!$A$1:$F$58,6,) -> 
B45: =IF(AND($B$39=_NC2,$H$25>PSS),_CSG2,IF(AND($B$39=_CAD2,$H$25>PSS),_TA1,IF($B$39=_CAD2,_PF1,_CSG3))) -> CSG3 | C45: =VLOOKUP(B45,[1]Taux!$A$1:$F$58,2,) -> CRDS | E45: =IF(VLOOKUP(C45,[1]Taux!$B$2:$F$58,2,)=98.25,$H$25*0.9825,VLOOKUP(C45,[1]Taux!$B$2:$F$58,2,)) -> 2,582.44 | F45: 2,582.44 | G45: =VLOOKUP(B45,[1]Taux!$A$1:$F$58,5,) -> 0.500% | I45: 12.91 | J45: =VLOOKUP(B45,[1]Taux!$A$1:$F$58,6,) -> 
B46: =IF(AND($B$39=_NC2,$H$25>PSS),_CSG3,IF(AND($B$39=_CAD2,$H$25>PSS),_PF1,IF($B$39=_CAD2,_csg1," "))) ->  | C46: =VLOOKUP(B46,[1]Taux!$A$1:$F$58,2,) ->  | E46: =IF(VLOOKUP(C46,[1]Taux!$B$2:$F$58,2,)=98.25,$H$25*0.9825,VLOOKUP(C46,[1]Taux!$B$2:$F$58,2,)) -> 0.00 | F46: =IF(E46=" ","",IF(B46="CSG1",$H$25*0.9825,IF(B46="CSG2",$H$25*0.9825,IF(E46="totalite",$H$25,IF(E46<PSS,E46,IF($H$25<=PSS,$H$25,IF(AND($H$25>PSS,E46=_PSS4),$H$25-PSS,PSS))))))) -> 0.00 | G46: =VLOOKUP(B46,[1]Taux!$A$1:$F$58,5,) ->  | J46: =VLOOKUP(B46,[1]Taux!$A$1:$F$58,6,) -> 
B47: =IF(AND($B$39=_NC2,$H$25>PSS)," ",IF(AND($B$39=_CAD2,$H$25>PSS),_csg1,IF($B$39=_CAD2,_CSG2," "))) ->  | C47: =VLOOKUP(B47,[1]Taux!$A$1:$F$58,2,) ->  | E47: =IF(VLOOKUP(C47,[1]Taux!$B$2:$F$58,2,)=98.25,$H$25*0.9825,VLOOKUP(C47,[1]Taux!$B$2:$F$58,2,)) -> 0.00 | F47: =IF(E47=" ","",IF(B47="CSG1",$H$25*0.9825,IF(B47="CSG2",$H$25*0.9825,IF(E47="totalite",$H$25,IF(E47<PSS,E47,IF($H$25<=PSS,$H$25,IF(AND($H$25>PSS,E47=_PSS4),$H$25-PSS,PSS))))))) -> 0.00 | G47: =VLOOKUP(B47,[1]Taux!$A$1:$F$58,5,) ->  | J47: =VLOOKUP(B47,[1]Taux!$A$1:$F$58,6,) -> 
B48: =IF(AND($B$39=_NC2,$H$25>PSS)," ",IF(AND($B$39=_CAD2,$H$25>PSS),_CSG2,IF($B$39=_CAD2,_CSG3," "))) ->  | C48: =VLOOKUP(B48,[1]Taux!$A$1:$F$58,2,) ->  | E48: =IF(VLOOKUP(C48,[1]Taux!$B$2:$F$58,2,)=98.25,$H$25*0.9825,VLOOKUP(C48,[1]Taux!$B$2:$F$58,2,)) -> 0.00 | F48: =IF(E48=" ","",IF(B48="CSG2",$H$25*0.9825,IF(B48="CSG3",$H$25*0.9825,IF(E48="totalite",$H$25,IF(E48<PSS,E48,IF($H$25<=PSS,$H$25,IF(AND($H$25>PSS,E48=_PSS4),$H$25-PSS,PSS))))))) -> 0.00 | G48: =VLOOKUP(B48,[1]Taux!$A$1:$F$58,5,) ->  | J48: =VLOOKUP(B48,[1]Taux!$A$1:$F$58,6,) -> 
B49: =IF(AND($B$39=_NC2,$H$25>PSS)," ",IF(AND($B$39=_CAD2,$H$25>PSS),_CSG3,IF($B$39=_CAD2," "," "))) ->  | C49: =VLOOKUP(B49,[1]Taux!$A$1:$F$59,2,) ->  | E49: =IF(VLOOKUP(C49,[1]Taux!$B$2:$F$58,2,)=98.25,$H$25*0.9825,VLOOKUP(C49,[1]Taux!$B$2:$F$58,2,)) -> 0.00 | F49: =IF(E49=" "," ",IF(B49="CSG2",$H$25*0.9825,IF(B49="CSG3",$H$25*0.9825,IF(E49="totalite",$H$25,IF(E49<PSS,E49,IF($H$25<=PSS,$H$25,IF(AND($H$25>PSS,E49=_PSS4),$H$25-PSS,PSS))))))) -> 0.00 | G49: =VLOOKUP(B49,[1]Taux!$A$1:$F$59,5,) ->  | J49: =VLOOKUP(B49,[1]Taux!$A$1:$F$59,6,) -> 
C50: Total cotisations | I50: =SUM(I27:I49) -> 627.49 | K50: =SUM(K27:K49) -> 1,027.53
J53: =IF([1]Taux!B59<>"",[1]Taux!E59,"") -> 
K54: Pour vous aider à faire valoir vos droits , conservez ce bulletin de paie sans limitation de durée.
C55: Net imposable | D55: =VLOOKUP("csg1",B27:I49,8,)+K55 -> 2,062.93 | I55: Net à payer | K55: =$H$25-$I$50 -> 2,000.95
C56: Cumul année | D56: =Salaire!J35 -> 18,566.39 | I56: Cumul année | K56: =Salaire!J33 -> 18,008.58

Sheet oct
A2: =Ident!B2 -> calindoudou | J2: ="BULLETIN DE PAIE " -> BULLETIN DE PAIE
A3: =Ident!B3 -> 0 | G3: =EOMONTH(sep!G3,0)+1 -> 2015-09-01 | J3: =EOMONTH(G3,0) -> 2015-09-30
A4: =Ident!B4 -> 00000
A5: =Ident!B5 &" " & Ident!B6 ->  | G5: =+"SIRET: " &Ident!B10 & " APE : " &Ident!B11 -> SIRET: APE :
G6: ="URSSAF :" & Ident!B12 -> URSSAF :
A8: Numéro S.S : | C8: =Ident!F8 -> 0 | G8: =CONCATENATE(Ident!F2," ",Ident!F3) -> 
A9: Emploi : | C9: =Ident!F13 -> Resp Administratif & Fin | G9: =Ident!F4 -> 0
A10: Anc : | C10: =(J3-Ident!F17)/360 -> 3 an(s).1 mois | G10: =Ident!F5 -> 0
A11: Cat : | C11: =Ident!F14 -> non cadre | G11: =CONCATENATE(Ident!F6," ",(Ident!F7)) -> 
A12: Qualité : | C12: =Ident!F9 -> 0
A13: Coef : | C13: =Ident!F10 -> 0 | G13: ="Congés " & Salaire!A1 & "-" & Salaire!A1+1 -> Congés 2015-2016 | I13: CP A-1 | J13: ="Rtt " & Salaire!A1 -> Rtt 2015
A14: Echelon : | C14: =Ident!F11 -> 0 | G14: Pris | H14: =HLOOKUP($G$3,Salaire!$B$9:$M$26,6,) -> 0.00 jr(s) | J14: Pris | K14: =HLOOKUP($G$3,Salaire!$B$9:$M$26,9,) -> 0.00
A15: =CONCATENATE(Ident!A13," ",Ident!B14) -> Convention Collective Ventes à distance sur catalogue spécialisé de produits par internet | G15: Restant | H15: =HLOOKUP($G$3,Salaire!$B$9:$M$26,17,) -> 29.75 jr(s) | I15: =HLOOKUP($G$3,Salaire!$B$9:$M$26,15,) -> 0.00 jr(s) | J15: Restant | K15: =HLOOKUP($G$3,Salaire!$B$9:$M$26,18,) -> 9.00
G16: Acquis | H16: =HLOOKUP($G$3,Salaire!$B$9:$M$26,16,) -> 2.08 jr(s) | J16: Acquis | K16: =HLOOKUP($G$3,Salaire!$B$9:$M$26,14,) -> 1.00
B18: Rub. | C18: Intitulé | D18: Nombre | F18: Base | G18: Part Salariale | J18: Part Patronale
G19: Taux | H19: Gain | I19: Retenue | J19: Taux | K19: Retenue
C20: Salaire Brut | F20: =Ident!G16 -> 151.67 | G20: =Salaire!K5 -> 17.33 | H20: =G20*F20 -> 2,628.44
C21: =IF(ISBLANK(Salaire!K13)=TRUE,"",Salaire!A13) ->  | D21: =IF(ISNA(VLOOKUP($C21,Salaire!$A$13:$M$19,11,FALSE))=TRUE,"",VLOOKUP($C21,Salaire!$A$13:$M$19,11,FALSE)) ->  | H21: =IF(D21>0,D21," ") -> 
C22: =IF(ISBLANK(Salaire!K14)=TRUE,"",Salaire!A14) ->  | D22: =IF(ISNA(VLOOKUP($C22,Salaire!$A$13:$M$19,11,FALSE))=TRUE,"",VLOOKUP($C22,Salaire!$A$13:$M$19,11,FALSE)) -> 
C23: =IF(ISBLANK(Salaire!K15)=TRUE,"",Salaire!A15) ->  | D23: =IF(ISNA(VLOOKUP($C23,Salaire!$A$13:$M$19,11,FALSE))=TRUE,"",VLOOKUP($C23,Salaire!$A$13:$M$19,11,FALSE)) ->  | G23: =IF(D23=""," ",(G20+G20*Salaire!A15/100)) ->  | H23: =IF(ISNA(VLOOKUP($C23,Salaire!$A$13:$M$19,11,FALSE))=TRUE,"",IF(OR($C23="Abs/Ind congés payés",$C23="Abs/Ind Maladie 100%")=TRUE,,IF($C23="Primes, avantages",D23,(D23*E23)+((D23*G23))))) -> 
C24: =IF(ISBLANK(Salaire!K16)=TRUE,"",Salaire!A16) ->  | D24: =IF(ISNA(VLOOKUP($C24,Salaire!$A$13:$M$19,11,FALSE))=TRUE,"",VLOOKUP($C24,Salaire!$A$13:$M$19,11,FALSE)) ->  | G24: =IF(D24=""," ",G20*Salaire!K4) ->  | I24: =IF(ISNA(VLOOKUP($C24,Salaire!$A$13:$M$19,11,FALSE))=TRUE,"",IF(OR($C24="Abs/Ind congés payés",$C24="Abs/Ind Maladie 100%")=FALSE,,IF($C24="Primes, avantages",D24,D24*G24))) -> 
C25: Total brut Mensuel | H25: =SUM(H20:H24)-SUM(I21:I24) -> 2,628.44
B27: SS1 | C27: =VLOOKUP(B27,[1]Taux!$A$1:$F$58,2,) -> Maladie, Maternité , Veuvage | E27: =IF(VLOOKUP(C27,[1]Taux!$B$2:$F$58,2,)=98.25,$H$25*0.9825,VLOOKUP(C27,[1]Taux!$B$2:$F$58,2,)) -> totalite | F27: =IF(E27=" ","",IF(E27="totalite",$H$25,IF(E27<PSS,E27,IF($H$25<=PSS,$H$25,IF(AND($H$25>PSS,E27=_PSS4),$H$25-PSS,PSS))))) -> 2,628.44 | G27: =VLOOKUP(B27,[1]Taux!$A$1:$F$58,5,) -> 0.750% | I27: =IF(G27=" "," ",F27*G27) -> 19.71 | J27: =VLOOKUP(B27,[1]Taux!$A$1:$F$58,6,) -> 12.800% | K27: =IF(J27=" "," ",F27*J27) -> 336.44
B28: ss4 | C28: =VLOOKUP(B28,[1]Taux!$A$1:$F$58,2,) -> Allocations Familiales | E28: =IF(VLOOKUP(C28,[1]Taux!$B$2:$F$58,2,)=98.25,$H$25*0.9825,VLOOKUP(C28,[1]Taux!$B$2:$F$58,2,)) -> totalite | F28: 2,628.44 | G28: =VLOOKUP(B28,[1]Taux!$A$1:$F$58,5,) ->  | I28: =IF(G28=" "," ",F28*G28) ->  | J28: =VLOOKUP(B28,[1]Taux!$A$1:$F$58,6,) -> 5.250% | K28: 137.99
B29: SS2 | C29: =VLOOKUP(B29,[1]Taux!$A$1:$F$58,2,) -> Vieillesse Déplafonnée | E29: =IF(VLOOKUP(C29,[1]Taux!$B$2:$F$58,2,)=98.25,$H$25*0.9825,VLOOKUP(C29,[1]Taux!$B$2:$F$58,2,)) -> totalite | F29: 2,628.44 | G29: =VLOOKUP(B29,[1]Taux!$A$1:$F$58,5,) -> 0.300% | I29: 7.89 | J29: =VLOOKUP(B29,[1]Taux!$A$1:$F$58,6,) -> 1.800% | K29: 47.31
B30: SS3 | C30: =VLOOKUP(B30,[1]Taux!$A$1:$F$58,2,) -> Vieillesse Plafonnée | E30: =IF(VLOOKUP(C30,[1]Taux!$B$2:$F$58,2,)=98.25,$H$25*0.9825,VLOOKUP(C30,[1]Taux!$B$2:$F$58,2,)) -> 3,170.00 | F30: 2,628.44 | G30: =VLOOKUP(B30,[1]Taux!$A$1:$F$58,5,) -> 6.850% | I30: 180.05 | J30: =VLOOKUP(B30,[1]Taux!$A$1:$F$58,6,) -> 8.500% | K30: 223.42
B31: SS5 | C31: =VLOOKUP(B31,[1]Taux!$A$1:$F$58,2,) -> FNAL (tous employeurs) | E31: =IF(VLOOKUP(C31,[1]Taux!$B$2:$F$58,2,)=98.25,$H$25*0.9825,VLOOKUP(C31,[1]Taux!$B$2:$F$58,2,)) -> 3,170.00 | F31: 2,628.44 | G31: =VLOOKUP(B31,[1]Taux!$A$1:$F$58,5,) ->  | J31: =VLOOKUP(B31,[1]Taux!$A$1:$F$58,6,) -> 0.100% | K31: 2.63
B32: SS6 | C32: =VLOOKUP(B32,[1]Taux!$A$1:$F$58,2,) -> FNAL supplémentaire TA | E32: =IF(VLOOKUP(C32,[1]Taux!$B$2:$F$58,2,)=98.25,$H$25*0.9825,VLOOKUP(C32,[1]Taux!$B$2:$F$58,2,)) -> 3,170.00 | F32: 2,628.44 | G32: =VLOOKUP(B32,[1]Taux!$A$1:$F$58,5,) ->  | J32: =VLOOKUP(B32,[1]Taux!$A$1:$F$58,6,) -> 0.400% | K32: 10.51
B33: SS8 | C33: =VLOOKUP(B33,[1]Taux!$A$1:$F$58,2,) -> Contribution solidarité | E33: =IF(VLOOKUP(C33,[1]Taux!$B$2:$F$58,2,)=98.25,$H$25*0.9825,VLOOKUP(C33,[1]Taux!$B$2:$F$58,2,)) -> totalite | F33: 2,628.44 | G33: =VLOOKUP(B33,[1]Taux!$A$1:$F$58,5,) ->  | J33: =VLOOKUP(B33,[1]Taux!$A$1:$F$58,6,) -> 0.300% | K33: 7.89
B34: ss11 | C34: =VLOOKUP(B34,[1]Taux!$A$1:$F$58,2,) -> Accidents du Travail | E34: =IF(VLOOKUP(C34,[1]Taux!$B$2:$F$58,2,)=98.25,$H$25*0.9825,VLOOKUP(C34,[1]Taux!$B$2:$F$58,2,)) -> totalite | F34: 2,628.44 | G34: =VLOOKUP(B34,[1]Taux!$A$1:$F$58,5,) ->  | J34: =VLOOKUP(B34,[1]Taux!$A$1:$F$58,6,) -> 1.880% | K34: 49.41
B35: LF1 | C35: =VLOOKUP(B35,[1]Taux!$A$1:$F$58,2,) -> Loi Fillon | E35: =IF(VLOOKUP(C35,[1]Taux!$B$2:$F$58,2,)=98.25,$H$25*0.9825,VLOOKUP(C35,[1]Taux!$B$2:$F$58,2,)) -> totalite | F35: 2,628.44 | G35: =VLOOKUP(B35,[1]Taux!$A$1:$F$58,5,) ->  | J35: =VLOOKUP(B35,[1]Taux!$A$1:$F$58,6,) -> -5.250% | K35: -138.00
B36: pe1 | C36: =VLOOKUP(B36,[1]Taux!$A$1:$F$58,2,) -> Assurance chômage TA + TB | E36: =IF(VLOOKUP(C36,[1]Taux!$B$2:$F$58,2,)=98.25,$H$25*0.9825,VLOOKUP(C36,[1]Taux!$B$2:$F$58,2,)) -> totalite | F36: 2,628.44 | G36: =VLOOKUP(B36,[1]Taux!$A$1:$F$58,5,) -> 2.400% | I36: 63.08 | J36: =VLOOKUP(B36,[1]Taux!$A$1:$F$58,6,) -> 4.000% | K36: 105.14
B37: pe2 | C37: =VLOOKUP(B37,[1]Taux!$A$1:$F$58,2,) -> AGS (FNGS) | E37: =IF(VLOOKUP(C37,[1]Taux!$B$2:$F$58,2,)=98.25,$H$25*0.9825,VLOOKUP(C37,[1]Taux!$B$2:$F$58,2,)) -> totalite | F37: 2,628.44 | G37: =VLOOKUP(B37,[1]Taux!$A$1:$F$58,5,) ->  | J37: =VLOOKUP(B37,[1]Taux!$A$1:$F$58,6,) -> 0.300% | K37: 7.89
B38: =IF($C$11="non cadre",[1]Taux!A28,[1]Taux!A35) -> NC1 | C38: =VLOOKUP(B38,[1]Taux!$A$1:$F$58,2,) -> ARRCO Tranche 1 (Non Cadre) | E38: =IF(VLOOKUP(C38,[1]Taux!$B$2:$F$58,2,)=98.25,$H$25*0.9825,VLOOKUP(C38,[1]Taux!$B$2:$F$58,2,)) -> 3,170.00 | F38: 2,628.44 | G38: =VLOOKUP(B38,[1]Taux!$A$1:$F$58,5,) -> 3.100% | I38: 81.48 | J38: =VLOOKUP(B38,[1]Taux!$A$1:$F$58,6,) -> 4.650% | K38: 122.22 | L38: Bulletin de paie établi avec GestionVB_Paie v8.06
B39: =IF($C$11="non cadre",[1]Taux!A29,[1]Taux!A36) -> NC2 | C39: =VLOOKUP(B39,[1]Taux!$A$1:$F$58,2,) -> AGFF Tranche 1 (Non Cadre) | E39: =IF(VLOOKUP(C39,[1]Taux!$B$2:$F$58,2,)=98.25,$H$25*0.9825,VLOOKUP(C39,[1]Taux!$B$2:$F$58,2,)) -> 3,170.00 | F39: 2,628.44 | G39: =VLOOKUP(B39,[1]Taux!$A$1:$F$58,5,) -> 0.800% | I39: 21.03 | J39: =VLOOKUP(B39,[1]Taux!$A$1:$F$58,6,) -> 1.200% | K39: 31.54
B40: =IF(AND($B$39=_NC2,$H$25>PSS),_NC3,IF(AND($B$39=_CAD2,$H$25>PSS),_CAD3,IF($B$39=_CAD2,_CAD5,_PR1))) -> PR1 | C40: =VLOOKUP(B40,[1]Taux!$A$1:$F$58,2,) -> Mutuelle non cadre | E40: =IF(VLOOKUP(C40,[1]Taux!$B$2:$F$58,2,)=98.25,$H$25*0.9825,VLOOKUP(C40,[1]Taux!$B$2:$F$58,2,)) -> x | F40: 2,628.44 | G40: =VLOOKUP(B40,[1]Taux!$A$1:$F$58,5,) -> 1.813% | I40: 47.65 | J40: =VLOOKUP(B40,[1]Taux!$A$1:$F$58,6,) -> 1.483% | K40: 38.98
B41: =IF(AND($B$39=_NC2,$H$25>PSS),_NC4,IF(AND($B$39=_CAD2,$H$25>PSS),_CAD4,IF($B$39=_CAD2,_CAD6,_TA1))) -> TA1 | C41: =VLOOKUP(B41,[1]Taux!$A$1:$F$58,2,) -> Taxe d’apprentissage (hors Al-Mo) | E41: =IF(VLOOKUP(C41,[1]Taux!$B$2:$F$58,2,)=98.25,$H$25*0.9825,VLOOKUP(C41,[1]Taux!$B$2:$F$58,2,)) -> totalite | F41: 2,628.44 | G41: =VLOOKUP(B41,[1]Taux!$A$1:$F$58,5,) ->  | J41: =VLOOKUP(B41,[1]Taux!$A$1:$F$58,6,) -> 0.680% | K41: 17.87
B42: =IF(AND($B$39=_NC2,$H$25>PSS),_TA1,IF(AND($B$39=_CAD2,$H$25>PSS),_CAD6,IF($B$39=_CAD2,_CAD7,_PF1))) -> PF1 | C42: =VLOOKUP(B42,[1]Taux!$A$1:$F$58,2,) -> Participation formation (10 sal.) | E42: =IF(VLOOKUP(C42,[1]Taux!$B$2:$F$58,2,)=98.25,$H$25*0.9825,VLOOKUP(C42,[1]Taux!$B$2:$F$58,2,)) -> totalite | F42: 2,628.44 | G42: =VLOOKUP(B42,[1]Taux!$A$1:$F$58,5,) ->  | J42: =VLOOKUP(B42,[1]Taux!$A$1:$F$58,6,) -> 1.000% | K42: 26.28
B43: =IF(AND($B$39=_NC2,$H$25>PSS),_PF1,IF(AND($B$39=_CAD2,$H$25>PSS),_CAD7,IF($B$39=_CAD2,_PR2,_csg1))) -> CSG1 | C43: =VLOOKUP(B43,[1]Taux!$A$1:$F$58,2,) -> CSG non déductible | E43: =IF(VLOOKUP(C43,[1]Taux!$B$2:$F$58,2,)=98.25,$H$25*0.9825,VLOOKUP(C43,[1]Taux!$B$2:$F$58,2,)) -> 2,582.44 | F43: 2,582.44 | G43: =VLOOKUP(B43,[1]Taux!$A$1:$F$58,5,) -> 2.400% | I43: 61.98 | J43: =VLOOKUP(B43,[1]Taux!$A$1:$F$58,6,) -> 
B44: =IF(AND($B$39=_NC2,$H$25>PSS),_csg1,IF(AND($B$39=_CAD2,$H$25>PSS),_PR2,IF($B$39=_CAD2,_TA1,_CSG2))) -> CSG2 | C44: =VLOOKUP(B44,[1]Taux!$A$1:$F$58,2,) -> CSG déductible | E44: =IF(VLOOKUP(C44,[1]Taux!$B$2:$F$58,2,)=98.25,$H$25*0.9825,VLOOKUP(C44,[1]Taux!$B$2:$F$58,2,)) -> 2,582.44 | F44: 2,582.44 | G44: =VLOOKUP(B44,[1]Taux!$A$1:$F$58,5,) -> 5.100% | I44: 131.70 | J44: =VLOOKUP(B44,[1]Taux!$A$1:$F$58,6,) -> 
B45: =IF(AND($B$39=_NC2,$H$25>PSS),_CSG2,IF(AND($B$39=_CAD2,$H$25>PSS),_TA1,IF($B$39=_CAD2,_PF1,_CSG3))) -> CSG3 | C45: =VLOOKUP(B45,[1]Taux!$A$1:$F$58,2,) -> CRDS | E45: =IF(VLOOKUP(C45,[1]Taux!$B$2:$F$58,2,)=98.25,$H$25*0.9825,VLOOKUP(C45,[1]Taux!$B$2:$F$58,2,)) -> 2,582.44 | F45: 2,582.44 | G45: =VLOOKUP(B45,[1]Taux!$A$1:$F$58,5,) -> 0.500% | I45: 12.91 | J45: =VLOOKUP(B45,[1]Taux!$A$1:$F$58,6,) -> 
B46: =IF(AND($B$39=_NC2,$H$25>PSS),_CSG3,IF(AND($B$39=_CAD2,$H$25>PSS),_PF1,IF($B$39=_CAD2,_csg1," "))) ->  | C46: =VLOOKUP(B46,[1]Taux!$A$1:$F$58,2,) ->  | E46: =IF(VLOOKUP(C46,[1]Taux!$B$2:$F$58,2,)=98.25,$H$25*0.9825,VLOOKUP(C46,[1]Taux!$B$2:$F$58,2,)) -> 0.00 | F46: =IF(E46=" ","",IF(B46="CSG1",$H$25*0.9825,IF(B46="CSG2",$H$25*0.9825,IF(E46="totalite",$H$25,IF(E46<PSS,E46,IF($H$25<=PSS,$H$25,IF(AND($H$25>PSS,E46=_PSS4),$H$25-PSS,PSS))))))) -> 0.00 | G46: =VLOOKUP(B46,[1]Taux!$A$1:$F$58,5,) ->  | J46: =VLOOKUP(B46,[1]Taux!$A$1:$F$58,6,) -> 
B47: =IF(AND($B$39=_NC2,$H$25>PSS)," ",IF(AND($B$39=_CAD2,$H$25>PSS),_csg1,IF($B$39=_CAD2,_CSG2," "))) ->  | C47: =VLOOKUP(B47,[1]Taux!$A$1:$F$58,2,) ->  | E47: =IF(VLOOKUP(C47,[1]Taux!$B$2:$F$58,2,)=98.25,$H$25*0.9825,VLOOKUP(C47,[1]Taux!$B$2:$F$58,2,)) -> 0.00 | F47: =IF(E47=" ","",IF(B47="CSG1",$H$25*0.9825,IF(B47="CSG2",$H$25*0.9825,IF(E47="totalite",$H$25,IF(E47<PSS,E47,IF($H$25<=PSS,$H$25,IF(AND($H$25>PSS,E47=_PSS4),$H$25-PSS,PSS))))))) -> 0.00 | G47: =VLOOKUP(B47,[1]Taux!$A$1:$F$58,5,) ->  | J47: =VLOOKUP(B47,[1]Taux!$A$1:$F$58,6,) -> 
B48: =IF(AND($B$39=_NC2,$H$25>PSS)," ",IF(AND($B$39=_CAD2,$H$25>PSS),_CSG2,IF($B$39=_CAD2,_CSG3," "))) ->  | C48: =VLOOKUP(B48,[1]Taux!$A$1:$F$58,2,) ->  | E48: =IF(VLOOKUP(C48,[1]Taux!$B$2:$F$58,2,)=98.25,$H$25*0.9825,VLOOKUP(C48,[1]Taux!$B$2:$F$58,2,)) -> 0.00 | F48: =IF(E48=" ","",IF(B48="CSG2",$H$25*0.9825,IF(B48="CSG3",$H$25*0.9825,IF(E48="totalite",$H$25,IF(E48<PSS,E48,IF($H$25<=PSS,$H$25,IF(AND($H$25>PSS,E48=_PSS4),$H$25-PSS,PSS))))))) -> 0.00 | G48: =VLOOKUP(B48,[1]Taux!$A$1:$F$58,5,) ->  | J48: =VLOOKUP(B48,[1]Taux!$A$1:$F$58,6,) -> 
B49: =IF(AND($B$39=_NC2,$H$25>PSS)," ",IF(AND($B$39=_CAD2,$H$25>PSS),_CSG3,IF($B$39=_CAD2," "," "))) ->  | C49: =VLOOKUP(B49,[1]Taux!$A$1:$F$59,2,) ->  | E49: =IF(VLOOKUP(C49,[1]Taux!$B$2:$F$58,2,)=98.25,$H$25*0.9825,VLOOKUP(C49,[1]Taux!$B$2:$F$58,2,)) -> 0.00 | F49: =IF(E49=" "," ",IF(B49="CSG2",$H$25*0.9825,IF(B49="CSG3",$H$25*0.9825,IF(E49="totalite",$H$25,IF(E49<PSS,E49,IF($H$25<=PSS,$H$25,IF(AND($H$25>PSS,E49=_PSS4),$H$25-PSS,PSS))))))) -> 0.00 | G49: =VLOOKUP(B49,[1]Taux!$A$1:$F$59,5,) ->  | J49: =VLOOKUP(B49,[1]Taux!$A$1:$F$59,6,) -> 
C50: Total cotisations | I50: =SUM(I27:I49) -> 627.49 | K50: =SUM(K27:K49) -> 1,027.53
J53: =IF([1]Taux!B59<>"",[1]Taux!E59,"") -> 
K54: Pour vous aider à faire valoir vos droits , conservez ce bulletin de paie sans limitation de durée.
C55: Net imposable | D55: =VLOOKUP("csg1",B27:I49,8,)+K55 -> 2,062.93 | I55: Net à payer | K55: =$H$25-$I$50 -> 2,000.95
C56: Cumul année | D56: =Salaire!K35 -> 20,629.32 | I56: Cumul année | K56: =Salaire!K33 -> 20,009.53

Sheet nov
A2: =Ident!B2 -> calindoudou | J2: ="BULLETIN DE PAIE " -> BULLETIN DE PAIE
A3: =Ident!B3 -> 0 | G3: =EOMONTH(oct!G3,0)+1 -> 2015-10-01 | J3: =EOMONTH(G3,0) -> 2015-10-31
A4: =Ident!B4 -> 00000
A5: =Ident!B5 &" " & Ident!B6 ->  | G5: =+"SIRET: " &Ident!B10 & " APE : " &Ident!B11 -> SIRET: APE :
G6: ="URSSAF :" & Ident!B12 -> URSSAF :
A8: Numéro S.S : | C8: =Ident!F8 -> 0 | G8: =CONCATENATE(Ident!F2," ",Ident!F3) -> 
A9: Emploi : | C9: =Ident!F13 -> Resp Administratif & Fin | G9: =Ident!F4 -> 0
A10: Anc : | C10: =(J3-Ident!F17)/360 -> 3 an(s).2 mois | G10: =Ident!F5 -> 0
A11: Cat : | C11: =Ident!F14 -> non cadre | G11: =CONCATENATE(Ident!F6," ",(Ident!F7)) -> 
A12: Qualité : | C12: =Ident!F9 -> 0
A13: Coef : | C13: =Ident!F10 -> 0 | G13: ="Congés " & Salaire!A1 & "-" & Salaire!A1+1 -> Congés 2015-2016 | I13: CP A-1 | J13: ="Rtt " & Salaire!A1 -> Rtt 2015
A14: Echelon : | C14: =Ident!F11 -> 0 | G14: Pris | H14: =HLOOKUP($G$3,Salaire!$B$9:$M$26,6,) -> 0.00 jr(s) | J14: Pris | K14: =HLOOKUP($G$3,Salaire!$B$9:$M$26,9,) -> 0.00
A15: =CONCATENATE(Ident!A13," ",Ident!B14) -> Convention Collective Ventes à distance sur catalogue spécialisé de produits par internet | G15: Restant | H15: =HLOOKUP($G$3,Salaire!$B$9:$M$26,17,) -> 31.83 jr(s) | I15: =HLOOKUP($G$3,Salaire!$B$9:$M$26,15,) -> 0.00 jr(s) | J15: Restant | K15: =HLOOKUP($G$3,Salaire!$B$9:$M$26,18,) -> 10.00
G16: Acquis | H16: =HLOOKUP($G$3,Salaire!$B$9:$M$26,16,) -> 2.08 jr(s) | J16: Acquis | K16: =HLOOKUP($G$3,Salaire!$B$9:$M$26,14,) -> 1.00
B18: Rub. | C18: Intitulé | D18: Nombre | F18: Base | G18: Part Salariale | J18: Part Patronale
G19: Taux | H19: Gain | I19: Retenue | J19: Taux | K19: Retenue
C20: Salaire Brut | F20: =Ident!G16 -> 151.67 | G20: =Salaire!L5 -> 17.33 | H20: =G20*F20 -> 2,628.44
C21: =IF(ISBLANK(Salaire!L13)=TRUE,"",Salaire!A13) ->  | D21: =IF(ISNA(VLOOKUP($C21,Salaire!$A$13:$M$19,12,FALSE))=TRUE,"",VLOOKUP($C21,Salaire!$A$13:$M$19,12,FALSE)) ->  | H21: =IF(D21>0,D21," ") -> 
C22: =IF(ISBLANK(Salaire!L14)=TRUE,"",Salaire!A14) ->  | D22: =IF(ISNA(VLOOKUP($C22,Salaire!$A$13:$M$19,12,FALSE))=TRUE,"",VLOOKUP($C22,Salaire!$A$13:$M$19,12,FALSE)) -> 
C23: =IF(ISBLANK(Salaire!L15)=TRUE,"",Salaire!A15) ->  | D23: =IF(ISNA(VLOOKUP($C23,Salaire!$A$13:$M$19,12,FALSE))=TRUE,"",VLOOKUP($C23,Salaire!$A$13:$M$19,12,FALSE)) ->  | G23: =IF(D23=""," ",(G20+G20*Salaire!A15/100)) ->  | H23: =IF(ISNA(VLOOKUP($C23,Salaire!$A$13:$M$19,12,FALSE))=TRUE,"",IF(OR($C23="Abs/Ind congés payés",$C23="Abs/Ind Maladie 100%")=TRUE,,IF($C23="Primes, avantages",D23,(D23*E23)+((D23*G23))))) -> 
C24: =IF(ISBLANK(Salaire!L16)=TRUE,"",Salaire!A16) ->  | D24: =IF(ISNA(VLOOKUP($C24,Salaire!$A$13:$M$19,12,FALSE))=TRUE,"",VLOOKUP($C24,Salaire!$A$13:$M$19,12,FALSE)) ->  | G24: =IF(D24=""," ",G20*Salaire!L4) ->  | I24: =IF(ISNA(VLOOKUP($C24,Salaire!$A$13:$M$19,12,FALSE))=TRUE,"",IF(OR($C24="Abs/Ind congés payés",$C24="Abs/Ind Maladie 100%")=FALSE,,IF($C24="Primes, avantages",D24,D24*G24))) -> 
C25: Total brut Mensuel | H25: =SUM(H20:H24)-SUM(I21:I24) -> 2,628.44
B27: SS1 | C27: =VLOOKUP(B27,[1]Taux!$A$1:$F$58,2,) -> Maladie, Maternité , Veuvage | E27: =IF(VLOOKUP(C27,[1]Taux!$B$2:$F$58,2,)=98.25,$H$25*0.9825,VLOOKUP(C27,[1]Taux!$B$2:$F$58,2,)) -> totalite | F27: =IF(E27=" ","",IF(E27="totalite",$H$25,IF(E27<PSS,E27,IF($H$25<=PSS,$H$25,IF(AND($H$25>PSS,E27=_PSS4),$H$25-PSS,PSS))))) -> 2,628.44 | G27: =VLOOKUP(B27,[1]Taux!$A$1:$F$58,5,) -> 0.750% | I27: =IF(G27=" "," ",F27*G27) -> 19.71 | J27: =VLOOKUP(B27,[1]Taux!$A$1:$F$58,6,) -> 12.800% | K27: =IF(J27=" "," ",F27*J27) -> 336.44
B28: ss4 | C28: =VLOOKUP(B28,[1]Taux!$A$1:$F$58,2,) -> Allocations Familiales | E28: =IF(VLOOKUP(C28,[1]Taux!$B$2:$F$58,2,)=98.25,$H$25*0.9825,VLOOKUP(C28,[1]Taux!$B$2:$F$58,2,)) -> totalite | F28: 2,628.44 | G28: =VLOOKUP(B28,[1]Taux!$A$1:$F$58,5,) ->  | I28: =IF(G28=" "," ",F28*G28) ->  | J28: =VLOOKUP(B28,[1]Taux!$A$1:$F$58,6,) -> 5.250% | K28: 137.99
B29: SS2 | C29: =VLOOKUP(B29,[1]Taux!$A$1:$F$58,2,) -> Vieillesse Déplafonnée | E29: =IF(VLOOKUP(C29,[1]Taux!$B$2:$F$58,2,)=98.25,$H$25*0.9825,VLOOKUP(C29,[1]Taux!$B$2:$F$58,2,)) -> totalite | F29: 2,628.44 | G29: =VLOOKUP(B29,[1]Taux!$A$1:$F$58,5,) -> 0.300% | I29: 7.89 | J29: =VLOOKUP(B29,[1]Taux!$A$1:$F$58,6,) -> 1.800% | K29: 47.31
B30: SS3 | C30: =VLOOKUP(B30,[1]Taux!$A$1:$F$58,2,) -> Vieillesse Plafonnée | E30: =IF(VLOOKUP(C30,[1]Taux!$B$2:$F$58,2,)=98.25,$H$25*0.9825,VLOOKUP(C30,[1]Taux!$B$2:$F$58,2,)) -> 3,170.00 | F30: 2,628.44 | G30: =VLOOKUP(B30,[1]Taux!$A$1:$F$58,5,) -> 6.850% | I30: 180.05 | J30: =VLOOKUP(B30,[1]Taux!$A$1:$F$58,6,) -> 8.500% | K30: 223.42
B31: SS5 | C31: =VLOOKUP(B31,[1]Taux!$A$1:$F$58,2,) -> FNAL (tous employeurs) | E31: =IF(VLOOKUP(C31,[1]Taux!$B$2:$F$58,2,)=98.25,$H$25*0.9825,VLOOKUP(C31,[1]Taux!$B$2:$F$58,2,)) -> 3,170.00 | F31: 2,628.44 | G31: =VLOOKUP(B31,[1]Taux!$A$1:$F$58,5,) ->  | J31: =VLOOKUP(B31,[1]Taux!$A$1:$F$58,6,) -> 0.100% | K31: 2.63
B32: SS6 | C32: =VLOOKUP(B32,[1]Taux!$A$1:$F$58,2,) -> FNAL supplémentaire TA | E32: =IF(VLOOKUP(C32,[1]Taux!$B$2:$F$58,2,)=98.25,$H$25*0.9825,VLOOKUP(C32,[1]Taux!$B$2:$F$58,2,)) -> 3,170.00 | F32: 2,628.44 | G32: =VLOOKUP(B32,[1]Taux!$A$1:$F$58,5,) ->  | J32: =VLOOKUP(B32,[1]Taux!$A$1:$F$58,6,) -> 0.400% | K32: 10.51
B33: SS8 | C33: =VLOOKUP(B33,[1]Taux!$A$1:$F$58,2,) -> Contribution solidarité | E33: =IF(VLOOKUP(C33,[1]Taux!$B$2:$F$58,2,)=98.25,$H$25*0.9825,VLOOKUP(C33,[1]Taux!$B$2:$F$58,2,)) -> totalite | F33: 2,628.44 | G33: =VLOOKUP(B33,[1]Taux!$A$1:$F$58,5,) ->  | J33: =VLOOKUP(B33,[1]Taux!$A$1:$F$58,6,) -> 0.300% | K33: 7.89
B34: ss11 | C34: =VLOOKUP(B34,[1]Taux!$A$1:$F$58,2,) -> Accidents du Travail | E34: =IF(VLOOKUP(C34,[1]Taux!$B$2:$F$58,2,)=98.25,$H$25*0.9825,VLOOKUP(C34,[1]Taux!$B$2:$F$58,2,)) -> totalite | F34: 2,628.44 | G34: =VLOOKUP(B34,[1]Taux!$A$1:$F$58,5,) ->  | J34: =VLOOKUP(B34,[1]Taux!$A$1:$F$58,6,) -> 1.880% | K34: 49.41
B35: LF1 | C35: =VLOOKUP(B35,[1]Taux!$A$1:$F$58,2,) -> Loi Fillon | E35: =IF(VLOOKUP(C35,[1]Taux!$B$2:$F$58,2,)=98.25,$H$25*0.9825,VLOOKUP(C35,[1]Taux!$B$2:$F$58,2,)) -> totalite | F35: 2,628.44 | G35: =VLOOKUP(B35,[1]Taux!$A$1:$F$58,5,) ->  | J35: =VLOOKUP(B35,[1]Taux!$A$1:$F$58,6,) -> -5.250% | K35: -138.00
B36: pe1 | C36: =VLOOKUP(B36,[1]Taux!$A$1:$F$58,2,) -> Assurance chômage TA + TB | E36: =IF(VLOOKUP(C36,[1]Taux!$B$2:$F$58,2,)=98.25,$H$25*0.9825,VLOOKUP(C36,[1]Taux!$B$2:$F$58,2,)) -> totalite | F36: 2,628.44 | G36: =VLOOKUP(B36,[1]Taux!$A$1:$F$58,5,) -> 2.400% | I36: 63.08 | J36: =VLOOKUP(B36,[1]Taux!$A$1:$F$58,6,) -> 4.000% | K36: 105.14
B37: pe2 | C37: =VLOOKUP(B37,[1]Taux!$A$1:$F$58,2,) -> AGS (FNGS) | E37: =IF(VLOOKUP(C37,[1]Taux!$B$2:$F$58,2,)=98.25,$H$25*0.9825,VLOOKUP(C37,[1]Taux!$B$2:$F$58,2,)) -> totalite | F37: 2,628.44 | G37: =VLOOKUP(B37,[1]Taux!$A$1:$F$58,5,) ->  | J37: =VLOOKUP(B37,[1]Taux!$A$1:$F$58,6,) -> 0.300% | K37: 7.89
B38: =IF($C$11="non cadre",[1]Taux!A28,[1]Taux!A35) -> NC1 | C38: =VLOOKUP(B38,[1]Taux!$A$1:$F$58,2,) -> ARRCO Tranche 1 (Non Cadre) | E38: =IF(VLOOKUP(C38,[1]Taux!$B$2:$F$58,2,)=98.25,$H$25*0.9825,VLOOKUP(C38,[1]Taux!$B$2:$F$58,2,)) -> 3,170.00 | F38: 2,628.44 | G38: =VLOOKUP(B38,[1]Taux!$A$1:$F$58,5,) -> 3.100% | I38: 81.48 | J38: =VLOOKUP(B38,[1]Taux!$A$1:$F$58,6,) -> 4.650% | K38: 122.22 | L38: Bulletin de paie établi avec GestionVB_Paie v8.06
B39: =IF($C$11="non cadre",[1]Taux!A29,[1]Taux!A36) -> NC2 | C39: =VLOOKUP(B39,[1]Taux!$A$1:$F$58,2,) -> AGFF Tranche 1 (Non Cadre) | E39: =IF(VLOOKUP(C39,[1]Taux!$B$2:$F$58,2,)=98.25,$H$25*0.9825,VLOOKUP(C39,[1]Taux!$B$2:$F$58,2,)) -> 3,170.00 | F39: 2,628.44 | G39: =VLOOKUP(B39,[1]Taux!$A$1:$F$58,5,) -> 0.800% | I39: 21.03 | J39: =VLOOKUP(B39,[1]Taux!$A$1:$F$58,6,) -> 1.200% | K39: 31.54
B40: =IF(AND($B$39=_NC2,$H$25>PSS),_NC3,IF(AND($B$39=_CAD2,$H$25>PSS),_CAD3,IF($B$39=_CAD2,_CAD5,_PR1))) -> PR1 | C40: =VLOOKUP(B40,[1]Taux!$A$1:$F$58,2,) -> Mutuelle non cadre | E40: =IF(VLOOKUP(C40,[1]Taux!$B$2:$F$58,2,)=98.25,$H$25*0.9825,VLOOKUP(C40,[1]Taux!$B$2:$F$58,2,)) -> x | F40: 2,628.44 | G40: =VLOOKUP(B40,[1]Taux!$A$1:$F$58,5,) -> 1.813% | I40: 47.65 | J40: =VLOOKUP(B40,[1]Taux!$A$1:$F$58,6,) -> 1.483% | K40: 38.98
B41: =IF(AND($B$39=_NC2,$H$25>PSS),_NC4,IF(AND($B$39=_CAD2,$H$25>PSS),_CAD4,IF($B$39=_CAD2,_CAD6,_TA1))) -> TA1 | C41: =VLOOKUP(B41,[1]Taux!$A$1:$F$58,2,) -> Taxe d’apprentissage (hors Al-Mo) | E41: =IF(VLOOKUP(C41,[1]Taux!$B$2:$F$58,2,)=98.25,$H$25*0.9825,VLOOKUP(C41,[1]Taux!$B$2:$F$58,2,)) -> totalite | F41: 2,628.44 | G41: =VLOOKUP(B41,[1]Taux!$A$1:$F$58,5,) ->  | J41: =VLOOKUP(B41,[1]Taux!$A$1:$F$58,6,) -> 0.680% | K41: 17.87
B42: =IF(AND($B$39=_NC2,$H$25>PSS),_TA1,IF(AND($B$39=_CAD2,$H$25>PSS),_CAD6,IF($B$39=_CAD2,_CAD7,_PF1))) -> PF1 | C42: =VLOOKUP(B42,[1]Taux!$A$1:$F$58,2,) -> Participation formation (10 sal.) | E42: =IF(VLOOKUP(C42,[1]Taux!$B$2:$F$58,2,)=98.25,$H$25*0.9825,VLOOKUP(C42,[1]Taux!$B$2:$F$58,2,)) -> totalite | F42: 2,628.44 | G42: =VLOOKUP(B42,[1]Taux!$A$1:$F$58,5,) ->  | J42: =VLOOKUP(B42,[1]Taux!$A$1:$F$58,6,) -> 1.000% | K42: 26.28
B43: =IF(AND($B$39=_NC2,$H$25>PSS),_PF1,IF(AND($B$39=_CAD2,$H$25>PSS),_CAD7,IF($B$39=_CAD2,_PR2,_csg1))) -> CSG1 | C43: =VLOOKUP(B43,[1]Taux!$A$1:$F$58,2,) -> CSG non déductible | E43: =IF(VLOOKUP(C43,[1]Taux!$B$2:$F$58,2,)=98.25,$H$25*0.9825,VLOOKUP(C43,[1]Taux!$B$2:$F$58,2,)) -> 2,582.44 | F43: 2,582.44 | G43: =VLOOKUP(B43,[1]Taux!$A$1:$F$58,5,) -> 2.400% | I43: 61.98 | J43: =VLOOKUP(B43,[1]Taux!$A$1:$F$58,6,) -> 
B44: =IF(AND($B$39=_NC2,$H$25>PSS),_csg1,IF(AND($B$39=_CAD2,$H$25>PSS),_PR2,IF($B$39=_CAD2,_TA1,_CSG2))) -> CSG2 | C44: =VLOOKUP(B44,[1]Taux!$A$1:$F$58,2,) -> CSG déductible | E44: =IF(VLOOKUP(C44,[1]Taux!$B$2:$F$58,2,)=98.25,$H$25*0.9825,VLOOKUP(C44,[1]Taux!$B$2:$F$58,2,)) -> 2,582.44 | F44: 2,582.44 | G44: =VLOOKUP(B44,[1]Taux!$A$1:$F$58,5,) -> 5.100% | I44: 131.70 | J44: =VLOOKUP(B44,[1]Taux!$A$1:$F$58,6,) -> 
B45: =IF(AND($B$39=_NC2,$H$25>PSS),_CSG2,IF(AND($B$39=_CAD2,$H$25>PSS),_TA1,IF($B$39=_CAD2,_PF1,_CSG3))) -> CSG3 | C45: =VLOOKUP(B45,[1]Taux!$A$1:$F$58,2,) -> CRDS | E45: =IF(VLOOKUP(C45,[1]Taux!$B$2:$F$58,2,)=98.25,$H$25*0.9825,VLOOKUP(C45,[1]Taux!$B$2:$F$58,2,)) -> 2,582.44 | F45: 2,582.44 | G45: =VLOOKUP(B45,[1]Taux!$A$1:$F$58,5,) -> 0.500% | I45: 12.91 | J45: =VLOOKUP(B45,[1]Taux!$A$1:$F$58,6,) -> 
B46: =IF(AND($B$39=_NC2,$H$25>PSS),_CSG3,IF(AND($B$39=_CAD2,$H$25>PSS),_PF1,IF($B$39=_CAD2,_csg1," "))) ->  | C46: =VLOOKUP(B46,[1]Taux!$A$1:$F$58,2,) ->  | E46: =IF(VLOOKUP(C46,[1]Taux!$B$2:$F$58,2,)=98.25,$H$25*0.9825,VLOOKUP(C46,[1]Taux!$B$2:$F$58,2,)) -> 0.00 | F46: =IF(E46=" ","",IF(B46="CSG1",$H$25*0.9825,IF(B46="CSG2",$H$25*0.9825,IF(E46="totalite",$H$25,IF(E46<PSS,E46,IF($H$25<=PSS,$H$25,IF(AND($H$25>PSS,E46=_PSS4),$H$25-PSS,PSS))))))) -> 0.00 | G46: =VLOOKUP(B46,[1]Taux!$A$1:$F$58,5,) ->  | J46: =VLOOKUP(B46,[1]Taux!$A$1:$F$58,6,) -> 
B47: =IF(AND($B$39=_NC2,$H$25>PSS)," ",IF(AND($B$39=_CAD2,$H$25>PSS),_csg1,IF($B$39=_CAD2,_CSG2," "))) ->  | C47: =VLOOKUP(B47,[1]Taux!$A$1:$F$58,2,) ->  | E47: =IF(VLOOKUP(C47,[1]Taux!$B$2:$F$58,2,)=98.25,$H$25*0.9825,VLOOKUP(C47,[1]Taux!$B$2:$F$58,2,)) -> 0.00 | F47: =IF(E47=" ","",IF(B47="CSG1",$H$25*0.9825,IF(B47="CSG2",$H$25*0.9825,IF(E47="totalite",$H$25,IF(E47<PSS,E47,IF($H$25<=PSS,$H$25,IF(AND($H$25>PSS,E47=_PSS4),$H$25-PSS,PSS))))))) -> 0.00 | G47: =VLOOKUP(B47,[1]Taux!$A$1:$F$58,5,) ->  | J47: =VLOOKUP(B47,[1]Taux!$A$1:$F$58,6,) -> 
B48: =IF(AND($B$39=_NC2,$H$25>PSS)," ",IF(AND($B$39=_CAD2,$H$25>PSS),_CSG2,IF($B$39=_CAD2,_CSG3," "))) ->  | C48: =VLOOKUP(B48,[1]Taux!$A$1:$F$58,2,) ->  | E48: =IF(VLOOKUP(C48,[1]Taux!$B$2:$F$58,2,)=98.25,$H$25*0.9825,VLOOKUP(C48,[1]Taux!$B$2:$F$58,2,)) -> 0.00 | F48: =IF(E48=" ","",IF(B48="CSG2",$H$25*0.9825,IF(B48="CSG3",$H$25*0.9825,IF(E48="totalite",$H$25,IF(E48<PSS,E48,IF($H$25<=PSS,$H$25,IF(AND($H$25>PSS,E48=_PSS4),$H$25-PSS,PSS))))))) -> 0.00 | G48: =VLOOKUP(B48,[1]Taux!$A$1:$F$58,5,) ->  | J48: =VLOOKUP(B48,[1]Taux!$A$1:$F$58,6,) -> 
B49: =IF(AND($B$39=_NC2,$H$25>PSS)," ",IF(AND($B$39=_CAD2,$H$25>PSS),_CSG3,IF($B$39=_CAD2," "," "))) ->  | C49: =VLOOKUP(B49,[1]Taux!$A$1:$F$59,2,) ->  | E49: =IF(VLOOKUP(C49,[1]Taux!$B$2:$F$58,2,)=98.25,$H$25*0.9825,VLOOKUP(C49,[1]Taux!$B$2:$F$58,2,)) -> 0.00 | F49: =IF(E49=" "," ",IF(B49="CSG2",$H$25*0.9825,IF(B49="CSG3",$H$25*0.9825,IF(E49="totalite",$H$25,IF(E49<PSS,E49,IF($H$25<=PSS,$H$25,IF(AND($H$25>PSS,E49=_PSS4),$H$25-PSS,PSS))))))) -> 0.00 | G49: =VLOOKUP(B49,[1]Taux!$A$1:$F$59,5,) ->  | J49: =VLOOKUP(B49,[1]Taux!$A$1:$F$59,6,) -> 
C50: Total cotisations | I50: =SUM(I27:I49) -> 627.49 | K50: =SUM(K27:K49) -> 1,027.53
J53: =IF([1]Taux!B59<>"",[1]Taux!E59,"") -> 
K54: Pour vous aider à faire valoir vos droits , conservez ce bulletin de paie sans limitation de durée.
C55: Net imposable | D55: =VLOOKUP("csg1",B27:I49,8,)+K55 -> 2,062.93 | I55: Net à payer | K55: =$H$25-$I$50 -> 2,000.95
C56: Cumul année | D56: =Salaire!L35 -> 22,692.25 | I56: Cumul année | K56: =Salaire!L33 -> 22,010.49

Sheet dec
A2: =Ident!B2 -> calindoudou | J2: ="BULLETIN DE PAIE " -> BULLETIN DE PAIE
A3: =Ident!B3 -> 0 | G3: =EOMONTH(nov!G3,0)+1 -> 2015-11-01 | J3: =EOMONTH(G3,0) -> 2015-11-30
A4: =Ident!B4 -> 00000
A5: =Ident!B5 &" " & Ident!B6 ->  | G5: =+"SIRET: " &Ident!B10 & " APE : " &Ident!B11 -> SIRET: APE :
G6: ="URSSAF :" & Ident!B12 -> URSSAF :
A8: Numéro S.S : | C8: =Ident!F8 -> 0 | G8: =CONCATENATE(Ident!F2," ",Ident!F3) -> 
A9: Emploi : | C9: =Ident!F13 -> Resp Administratif & Fin | G9: =Ident!F4 -> 0
A10: Anc : | C10: =(J3-Ident!F17)/360 -> 3 an(s).3 mois | G10: =Ident!F5 -> 0
A11: Cat : | C11: =Ident!F14 -> non cadre | G11: =CONCATENATE(Ident!F6," ",(Ident!F7)) -> 
A12: Qualité : | C12: =Ident!F9 -> 0
A13: Coef : | C13: =Ident!F10 -> 0 | G13: ="Congés " & Salaire!A1 & "-" & Salaire!A1+1 -> Congés 2015-2016 | I13: CP A-1 | J13: ="Rtt " & Salaire!A1 -> Rtt 2015
A14: Echelon : | C14: =Ident!F11 -> 0 | G14: Pris | H14: =HLOOKUP($G$3,Salaire!$B$9:$M$26,6,) -> 0.00 jr(s) | J14: Pris | K14: =HLOOKUP($G$3,Salaire!$B$9:$M$26,9,) -> 0.00
A15: =CONCATENATE(Ident!A13," ",Ident!B14) -> Convention Collective Ventes à distance sur catalogue spécialisé de produits par internet | G15: Restant | H15: =HLOOKUP($G$3,Salaire!$B$9:$M$26,17,) -> 33.92 jr(s) | I15: =HLOOKUP($G$3,Salaire!$B$9:$M$26,15,) -> 0.00 jr(s) | J15: Restant | K15: =HLOOKUP($G$3,Salaire!$B$9:$M$26,18,) -> 11.00
G16: Acquis | H16: =HLOOKUP($G$3,Salaire!$B$9:$M$26,16,) -> 2.08 jr(s) | J16: Acquis | K16: =HLOOKUP($G$3,Salaire!$B$9:$M$26,14,) -> 1.00
B18: Rub. | C18: Intitulé | D18: Nombre | F18: Base | G18: Part Salariale | J18: Part Patronale
G19: Taux | H19: Gain | I19: Retenue | J19: Taux | K19: Retenue
C20: Salaire Brut | F20: =Ident!G16 -> 151.67 | G20: =Salaire!M5 -> 17.33 | H20: =G20*F20 -> 2,628.44
C21: =IF(ISBLANK(Salaire!M13)=TRUE,"",Salaire!A13) -> Primes, avantages | D21: =IF(ISNA(VLOOKUP($C21,Salaire!$A$13:$M$19,13,FALSE))=TRUE,"",VLOOKUP($C21,Salaire!$A$13:$M$19,13,FALSE)) -> 3,000.00 | H21: =IF(D21>0,D21," ") -> 3,000.00
C22: =IF(ISBLANK(Salaire!M14)=TRUE,"",Salaire!A14) ->  | D22: =IF(ISNA(VLOOKUP($C22,Salaire!$A$13:$M$19,13,FALSE))=TRUE,"",VLOOKUP($C22,Salaire!$A$13:$M$19,13,FALSE)) -> 
C23: =IF(ISBLANK(Salaire!M15)=TRUE,"",Salaire!A15) ->  | D23: =IF(ISNA(VLOOKUP($C23,Salaire!$A$13:$M$19,13,FALSE))=TRUE,"",VLOOKUP($C23,Salaire!$A$13:$M$19,13,FALSE)) ->  | G23: =IF(D23=""," ",(G20+G20*Salaire!A15/100)) ->  | H23: =IF(ISNA(VLOOKUP($C23,Salaire!$A$13:$M$19,13,FALSE))=TRUE,"",IF(OR($C23="Abs/Ind congés payés",$C23="Abs/Ind Maladie 100%")=TRUE,,IF($C23="Primes, avantages",D23,(D23*E23)+((D23*G23))))) -> 
C24: =IF(ISBLANK(Salaire!M16)=TRUE,"",Salaire!A16) ->  | D24: =IF(ISNA(VLOOKUP($C24,Salaire!$A$13:$M$19,13,FALSE))=TRUE,"",VLOOKUP($C24,Salaire!$A$13:$M$19,13,FALSE)) ->  | G24: =IF(D24=""," ",G20*Salaire!M4) ->  | I24: =IF(ISNA(VLOOKUP($C24,Salaire!$A$13:$M$19,13,FALSE))=TRUE,"",IF(OR($C24="Abs/Ind congés payés",$C24="Abs/Ind Maladie 100%")=FALSE,,IF($C24="Primes, avantages",D24,D24*G24))) -> 
C25: Total brut Mensuel | H25: =SUM(H20:H24)-SUM(I21:I24) -> 5,628.44
B27: SS1 | C27: =VLOOKUP(B27,[1]Taux!$A$1:$F$58,2,) -> Maladie, Maternité , Veuvage | E27: =IF(VLOOKUP(C27,[1]Taux!$B$2:$F$58,2,)=98.25,$H$25*0.9825,VLOOKUP(C27,[1]Taux!$B$2:$F$58,2,)) -> totalite | F27: =IF(E27=" ","",IF(E27="totalite",$H$25,IF(E27<PSS,E27,IF($H$25<=PSS,$H$25,IF(AND($H$25>PSS,E27=_PSS4),$H$25-PSS,PSS))))) -> 5,628.44 | G27: =VLOOKUP(B27,[1]Taux!$A$1:$F$58,5,) -> 0.750% | I27: =IF(G27=" "," ",F27*G27) -> 42.21 | J27: =VLOOKUP(B27,[1]Taux!$A$1:$F$58,6,) -> 12.800% | K27: =IF(J27=" "," ",F27*J27) -> 720.44
B28: ss4 | C28: =VLOOKUP(B28,[1]Taux!$A$1:$F$58,2,) -> Allocations Familiales | E28: =IF(VLOOKUP(C28,[1]Taux!$B$2:$F$58,2,)=98.25,$H$25*0.9825,VLOOKUP(C28,[1]Taux!$B$2:$F$58,2,)) -> totalite | F28: 5,628.44 | G28: =VLOOKUP(B28,[1]Taux!$A$1:$F$58,5,) ->  | I28: =IF(G28=" "," ",F28*G28) ->  | J28: =VLOOKUP(B28,[1]Taux!$A$1:$F$58,6,) -> 5.250% | K28: 295.49
B29: SS2 | C29: =VLOOKUP(B29,[1]Taux!$A$1:$F$58,2,) -> Vieillesse Déplafonnée | E29: =IF(VLOOKUP(C29,[1]Taux!$B$2:$F$58,2,)=98.25,$H$25*0.9825,VLOOKUP(C29,[1]Taux!$B$2:$F$58,2,)) -> totalite | F29: 5,628.44 | G29: =VLOOKUP(B29,[1]Taux!$A$1:$F$58,5,) -> 0.300% | I29: 16.89 | J29: =VLOOKUP(B29,[1]Taux!$A$1:$F$58,6,) -> 1.800% | K29: 101.31
B30: SS3 | C30: =VLOOKUP(B30,[1]Taux!$A$1:$F$58,2,) -> Vieillesse Plafonnée | E30: =IF(VLOOKUP(C30,[1]Taux!$B$2:$F$58,2,)=98.25,$H$25*0.9825,VLOOKUP(C30,[1]Taux!$B$2:$F$58,2,)) -> 3,170.00 | F30: 3,170.00 | G30: =VLOOKUP(B30,[1]Taux!$A$1:$F$58,5,) -> 6.850% | I30: 217.15 | J30: =VLOOKUP(B30,[1]Taux!$A$1:$F$58,6,) -> 8.500% | K30: 269.45
B31: SS5 | C31: =VLOOKUP(B31,[1]Taux!$A$1:$F$58,2,) -> FNAL (tous employeurs) | E31: =IF(VLOOKUP(C31,[1]Taux!$B$2:$F$58,2,)=98.25,$H$25*0.9825,VLOOKUP(C31,[1]Taux!$B$2:$F$58,2,)) -> 3,170.00 | F31: 3,170.00 | G31: =VLOOKUP(B31,[1]Taux!$A$1:$F$58,5,) ->  | J31: =VLOOKUP(B31,[1]Taux!$A$1:$F$58,6,) -> 0.100% | K31: 3.17
B32: SS6 | C32: =VLOOKUP(B32,[1]Taux!$A$1:$F$58,2,) -> FNAL supplémentaire TA | E32: =IF(VLOOKUP(C32,[1]Taux!$B$2:$F$58,2,)=98.25,$H$25*0.9825,VLOOKUP(C32,[1]Taux!$B$2:$F$58,2,)) -> 3,170.00 | F32: 3,170.00 | G32: =VLOOKUP(B32,[1]Taux!$A$1:$F$58,5,) ->  | J32: =VLOOKUP(B32,[1]Taux!$A$1:$F$58,6,) -> 0.400% | K32: 12.68
B33: SS8 | C33: =VLOOKUP(B33,[1]Taux!$A$1:$F$58,2,) -> Contribution solidarité | E33: =IF(VLOOKUP(C33,[1]Taux!$B$2:$F$58,2,)=98.25,$H$25*0.9825,VLOOKUP(C33,[1]Taux!$B$2:$F$58,2,)) -> totalite | F33: 5,628.44 | G33: =VLOOKUP(B33,[1]Taux!$A$1:$F$58,5,) ->  | J33: =VLOOKUP(B33,[1]Taux!$A$1:$F$58,6,) -> 0.300% | K33: 16.89
B34: ss11 | C34: =VLOOKUP(B34,[1]Taux!$A$1:$F$58,2,) -> Accidents du Travail | E34: =IF(VLOOKUP(C34,[1]Taux!$B$2:$F$58,2,)=98.25,$H$25*0.9825,VLOOKUP(C34,[1]Taux!$B$2:$F$58,2,)) -> totalite | F34: 5,628.44 | G34: =VLOOKUP(B34,[1]Taux!$A$1:$F$58,5,) ->  | J34: =VLOOKUP(B34,[1]Taux!$A$1:$F$58,6,) -> 1.880% | K34: 105.81
B35: LF1 | C35: =VLOOKUP(B35,[1]Taux!$A$1:$F$58,2,) -> Loi Fillon | E35: =IF(VLOOKUP(C35,[1]Taux!$B$2:$F$58,2,)=98.25,$H$25*0.9825,VLOOKUP(C35,[1]Taux!$B$2:$F$58,2,)) -> totalite | F35: 5,628.44 | G35: =VLOOKUP(B35,[1]Taux!$A$1:$F$58,5,) ->  | J35: =VLOOKUP(B35,[1]Taux!$A$1:$F$58,6,) -> -5.250% | K35: -295.51
B36: pe1 | C36: =VLOOKUP(B36,[1]Taux!$A$1:$F$58,2,) -> Assurance chômage TA + TB | E36: =IF(VLOOKUP(C36,[1]Taux!$B$2:$F$58,2,)=98.25,$H$25*0.9825,VLOOKUP(C36,[1]Taux!$B$2:$F$58,2,)) -> totalite | F36: 5,628.44 | G36: =VLOOKUP(B36,[1]Taux!$A$1:$F$58,5,) -> 2.400% | I36: 135.08 | J36: =VLOOKUP(B36,[1]Taux!$A$1:$F$58,6,) -> 4.000% | K36: 225.14
B37: pe2 | C37: =VLOOKUP(B37,[1]Taux!$A$1:$F$58,2,) -> AGS (FNGS) | E37: =IF(VLOOKUP(C37,[1]Taux!$B$2:$F$58,2,)=98.25,$H$25*0.9825,VLOOKUP(C37,[1]Taux!$B$2:$F$58,2,)) -> totalite | F37: 5,628.44 | G37: =VLOOKUP(B37,[1]Taux!$A$1:$F$58,5,) ->  | J37: =VLOOKUP(B37,[1]Taux!$A$1:$F$58,6,) -> 0.300% | K37: 16.89
B38: =IF($C$11="non cadre",[1]Taux!A28,[1]Taux!A35) -> NC1 | C38: =VLOOKUP(B38,[1]Taux!$A$1:$F$58,2,) -> ARRCO Tranche 1 (Non Cadre) | E38: =IF(VLOOKUP(C38,[1]Taux!$B$2:$F$58,2,)=98.25,$H$25*0.9825,VLOOKUP(C38,[1]Taux!$B$2:$F$58,2,)) -> 3,170.00 | F38: 3,170.00 | G38: =VLOOKUP(B38,[1]Taux!$A$1:$F$58,5,) -> 3.100% | I38: 98.27 | J38: =VLOOKUP(B38,[1]Taux!$A$1:$F$58,6,) -> 4.650% | K38: 147.41 | L38: Bulletin de paie établi avec GestionVB_Paie v8.06
B39: =IF($C$11="non cadre",[1]Taux!A29,[1]Taux!A36) -> NC2 | C39: =VLOOKUP(B39,[1]Taux!$A$1:$F$58,2,) -> AGFF Tranche 1 (Non Cadre) | E39: =IF(VLOOKUP(C39,[1]Taux!$B$2:$F$58,2,)=98.25,$H$25*0.9825,VLOOKUP(C39,[1]Taux!$B$2:$F$58,2,)) -> 3,170.00 | F39: 3,170.00 | G39: =VLOOKUP(B39,[1]Taux!$A$1:$F$58,5,) -> 0.800% | I39: 25.36 | J39: =VLOOKUP(B39,[1]Taux!$A$1:$F$58,6,) -> 1.200% | K39: 38.04
B40: =IF(AND($B$39=_NC2,$H$25>PSS),_NC3,IF(AND($B$39=_CAD2,$H$25>PSS),_CAD3,IF($B$39=_CAD2,_CAD5,_PR1))) -> NC3 | C40: =VLOOKUP(B40,[1]Taux!$A$1:$F$58,2,) -> ARRCO Tranche 2 (Non Cadre) | E40: =IF(VLOOKUP(C40,[1]Taux!$B$2:$F$58,2,)=98.25,$H$25*0.9825,VLOOKUP(C40,[1]Taux!$B$2:$F$58,2,)) -> 12,680.00 | F40: 2,458.44 | G40: =VLOOKUP(B40,[1]Taux!$A$1:$F$58,5,) -> 8.100% | I40: 199.13 | J40: =VLOOKUP(B40,[1]Taux!$A$1:$F$58,6,) -> 12.150% | K40: 298.70
B41: =IF(AND($B$39=_NC2,$H$25>PSS),_NC4,IF(AND($B$39=_CAD2,$H$25>PSS),_CAD4,IF($B$39=_CAD2,_CAD6,_TA1))) -> NC4 | C41: =VLOOKUP(B41,[1]Taux!$A$1:$F$58,2,) -> AGFF Tranche 2 (Non Cadre) | E41: =IF(VLOOKUP(C41,[1]Taux!$B$2:$F$58,2,)=98.25,$H$25*0.9825,VLOOKUP(C41,[1]Taux!$B$2:$F$58,2,)) -> 12,680.00 | F41: 2,458.44 | G41: =VLOOKUP(B41,[1]Taux!$A$1:$F$58,5,) -> 0.900% | I41: 22.13 | J41: =VLOOKUP(B41,[1]Taux!$A$1:$F$58,6,) -> 1.300% | K41: 31.96
B42: =IF(AND($B$39=_NC2,$H$25>PSS),_TA1,IF(AND($B$39=_CAD2,$H$25>PSS),_CAD6,IF($B$39=_CAD2,_CAD7,_PF1))) -> TA1 | C42: =VLOOKUP(B42,[1]Taux!$A$1:$F$58,2,) -> Taxe d’apprentissage (hors Al-Mo) | E42: =IF(VLOOKUP(C42,[1]Taux!$B$2:$F$58,2,)=98.25,$H$25*0.9825,VLOOKUP(C42,[1]Taux!$B$2:$F$58,2,)) -> totalite | F42: 5,628.44 | G42: =VLOOKUP(B42,[1]Taux!$A$1:$F$58,5,) ->  | J42: =VLOOKUP(B42,[1]Taux!$A$1:$F$58,6,) -> 0.680% | K42: 38.27
B43: =IF(AND($B$39=_NC2,$H$25>PSS),_PF1,IF(AND($B$39=_CAD2,$H$25>PSS),_CAD7,IF($B$39=_CAD2,_PR2,_csg1))) -> PF1 | C43: =VLOOKUP(B43,[1]Taux!$A$1:$F$58,2,) -> Participation formation (10 sal.) | E43: =IF(VLOOKUP(C43,[1]Taux!$B$2:$F$58,2,)=98.25,$H$25*0.9825,VLOOKUP(C43,[1]Taux!$B$2:$F$58,2,)) -> totalite | F43: 5,628.44 | G43: =VLOOKUP(B43,[1]Taux!$A$1:$F$58,5,) ->  | J43: =VLOOKUP(B43,[1]Taux!$A$1:$F$58,6,) -> 1.000% | K43: 56.28
B44: =IF(AND($B$39=_NC2,$H$25>PSS),_csg1,IF(AND($B$39=_CAD2,$H$25>PSS),_PR2,IF($B$39=_CAD2,_TA1,_CSG2))) -> CSG1 | C44: =VLOOKUP(B44,[1]Taux!$A$1:$F$58,2,) -> CSG non déductible | E44: =IF(VLOOKUP(C44,[1]Taux!$B$2:$F$58,2,)=98.25,$H$25*0.9825,VLOOKUP(C44,[1]Taux!$B$2:$F$58,2,)) -> 5,529.94 | F44: 3,170.00 | G44: =VLOOKUP(B44,[1]Taux!$A$1:$F$58,5,) -> 2.400% | I44: 76.08 | J44: =VLOOKUP(B44,[1]Taux!$A$1:$F$58,6,) -> 
B45: =IF(AND($B$39=_NC2,$H$25>PSS),_CSG2,IF(AND($B$39=_CAD2,$H$25>PSS),_TA1,IF($B$39=_CAD2,_PF1,_CSG3))) -> CSG2 | C45: =VLOOKUP(B45,[1]Taux!$A$1:$F$58,2,) -> CSG déductible | E45: =IF(VLOOKUP(C45,[1]Taux!$B$2:$F$58,2,)=98.25,$H$25*0.9825,VLOOKUP(C45,[1]Taux!$B$2:$F$58,2,)) -> 5,529.94 | F45: 3,170.00 | G45: =VLOOKUP(B45,[1]Taux!$A$1:$F$58,5,) -> 5.100% | I45: 161.67 | J45: =VLOOKUP(B45,[1]Taux!$A$1:$F$58,6,) -> 
B46: =IF(AND($B$39=_NC2,$H$25>PSS),_CSG3,IF(AND($B$39=_CAD2,$H$25>PSS),_PF1,IF($B$39=_CAD2,_csg1," "))) -> CSG3 | C46: =VLOOKUP(B46,[1]Taux!$A$1:$F$58,2,) -> CRDS | E46: =IF(VLOOKUP(C46,[1]Taux!$B$2:$F$58,2,)=98.25,$H$25*0.9825,VLOOKUP(C46,[1]Taux!$B$2:$F$58,2,)) -> 5,529.94 | F46: =IF(E46=" ","",IF(B46="CSG1",$H$25*0.9825,IF(B46="CSG2",$H$25*0.9825,IF(E46="totalite",$H$25,IF(E46<PSS,E46,IF($H$25<=PSS,$H$25,IF(AND($H$25>PSS,E46=_PSS4),$H$25-PSS,PSS))))))) -> 3,170.00 | G46: =VLOOKUP(B46,[1]Taux!$A$1:$F$58,5,) -> 0.500% | I46: 15.85 | J46: =VLOOKUP(B46,[1]Taux!$A$1:$F$58,6,) -> 
B47: =IF(AND($B$39=_NC2,$H$25>PSS)," ",IF(AND($B$39=_CAD2,$H$25>PSS),_csg1,IF($B$39=_CAD2,_CSG2," "))) ->  | C47: =VLOOKUP(B47,[1]Taux!$A$1:$F$58,2,) ->  | E47: =IF(VLOOKUP(C47,[1]Taux!$B$2:$F$58,2,)=98.25,$H$25*0.9825,VLOOKUP(C47,[1]Taux!$B$2:$F$58,2,)) -> 0.00 | F47: =IF(E47=" ","",IF(B47="CSG1",$H$25*0.9825,IF(B47="CSG2",$H$25*0.9825,IF(E47="totalite",$H$25,IF(E47<PSS,E47,IF($H$25<=PSS,$H$25,IF(AND($H$25>PSS,E47=_PSS4),$H$25-PSS,PSS))))))) -> 0.00 | G47: =VLOOKUP(B47,[1]Taux!$A$1:$F$58,5,) ->  | J47: =VLOOKUP(B47,[1]Taux!$A$1:$F$58,6,) -> 
B48: =IF(AND($B$39=_NC2,$H$25>PSS)," ",IF(AND($B$39=_CAD2,$H$25>PSS),_CSG2,IF($B$39=_CAD2,_CSG3," "))) ->  | C48: =VLOOKUP(B48,[1]Taux!$A$1:$F$58,2,) ->  | E48: =IF(VLOOKUP(C48,[1]Taux!$B$2:$F$58,2,)=98.25,$H$25*0.9825,VLOOKUP(C48,[1]Taux!$B$2:$F$58,2,)) -> 0.00 | F48: =IF(E48=" ","",IF(B48="CSG2",$H$25*0.9825,IF(B48="CSG3",$H$25*0.9825,IF(E48="totalite",$H$25,IF(E48<PSS,E48,IF($H$25<=PSS,$H$25,IF(AND($H$25>PSS,E48=_PSS4),$H$25-PSS,PSS))))))) -> 0.00 | G48: =VLOOKUP(B48,[1]Taux!$A$1:$F$58,5,) ->  | J48: =VLOOKUP(B48,[1]Taux!$A$1:$F$58,6,) -> 
B49: =IF(AND($B$39=_NC2,$H$25>PSS)," ",IF(AND($B$39=_CAD2,$H$25>PSS),_CSG3,IF($B$39=_CAD2," "," "))) ->  | C49: =VLOOKUP(B49,[1]Taux!$A$1:$F$59,2,) ->  | E49: =IF(VLOOKUP(C49,[1]Taux!$B$2:$F$58,2,)=98.25,$H$25*0.9825,VLOOKUP(C49,[1]Taux!$B$2:$F$58,2,)) -> 0.00 | F49: =IF(E49=" "," ",IF(B49="CSG2",$H$25*0.9825,IF(B49="CSG3",$H$25*0.9825,IF(E49="totalite",$H$25,IF(E49<PSS,E49,IF($H$25<=PSS,$H$25,IF(AND($H$25>PSS,E49=_PSS4),$H$25-PSS,PSS))))))) -> 0.00 | G49: =VLOOKUP(B49,[1]Taux!$A$1:$F$59,5,) ->  | J49: =VLOOKUP(B49,[1]Taux!$A$1:$F$59,6,) -> 
C50: Total cotisations | I50: =SUM(I27:I49) -> 1,009.82 | K50: =SUM(K27:K49) -> 2,082.42
J53: =IF([1]Taux!B59<>"",[1]Taux!E59,"") -> 
K54: Pour vous aider à faire valoir vos droits , conservez ce bulletin de paie sans limitation de durée.
C55: Net imposable | D55: =VLOOKUP("csg1",B27:I49,8,)+K55 -> 4,694.71 | I55: Net à payer | K55: =$H$25-$I$50 -> 4,618.63
C56: Cumul année | D56: =Salaire!M35 -> 24,755.18 | I56: Cumul année | K56: =Salaire!M33 -> 24,011.44
